Workbook

Sheet Main
B10: 2021-05-24
B12: Sheet No. | C12: Template Name | D12: Summary
B13: 1 | C13: Future Intra | D13: For Intraday trading in F&O segment
B14: 2 | C14: Cash Intra | D14: For Intraday trading in cash market segment
B15: 3 | C15: Mid-cap Intra | D15: For Intraday trading in Mid-cap stocks
B16: 4 | C16: Bulk Deals | D16: Reveals Bulk Deals carried on NSE & BSE
B17: 5 | C17: Call Tracker
K27: `

Sheet Future Intra
M5: Back to Main Page
A6: FOR INTRA DAY TRADING | L6: =Main!B10 -> 2021-05-24
A9: Sr.no | B9: Sector | C9: Scrip | D9: Expiry Date | E9: CLOSE RATE | F9: Pivot Point | G9: Supports | J9: Resistances
B10: Sector | E10: Point | F10: Point | G10: S1 | H10: S2 | I10: S3 | J10: R1 | K10: R2 | L10: R3 | M10: HIGH | N10: LOW | O10: OI | P10: % Change in OI
A11: 1 | B11: Index | C11: BANKNIFTY | D11: 2021-05-27 | E11: 34763.15 | F11: 34402.68 | G11: 33950.37 | H11: 33137.58 | I11: 32685.27 | J11: 35215.47 | K11: 35667.78 | L11: 36480.57 | M11: 34855 | N11: 33589.9 | O11: 1994150 | P11: 23.98%
A12: 2 | B12: Index | C12: NIFTY | D12: 2021-05-27 | E12: 15206.20 | F12: 15140.98 | G12: 15057.22 | H12: 14908.23 | I12: 14824.47 | J12: 15289.97 | K12: 15373.73 | L12: 15522.72 | M12: 15224.75 | N12: 14992 | O12: 12085775 | P12: -1.31%
A13: 3 | B13: Index | C13: FINNIFTY | D13: 2021-05-27 | E13: 16395.95 | F13: 16271.10 | G13: 16109.75 | H13: 15823.55 | I13: 15662.20 | J13: 16557.30 | K13: 16718.65 | L13: 17004.85 | M13: 16432.45 | N13: 15984.9 | O13: 18840 | P13: -1.46%
A14: 4 | B14: Chemical | C14: AARTIIND | D14: 2021-05-27 | E14: 1669.85 | F14: 1687.22 | G14: 1648.38 | H14: 1626.92 | I14: 1588.08 | J14: 1708.68 | K14: 1747.52 | L14: 1768.98 | M14: 1726.05 | N14: 1665.75 | O14: 986000 | P14: 1.00%
A15: 5 | B15: Cement | C15: ACC | D15: 2021-05-27 | E15: 1967.60 | F15: 1973.87 | G15: 1958.03 | H15: 1948.47 | I15: 1932.63 | J15: 1983.43 | K15: 1999.27 | L15: 2008.83 | M15: 1989.7 | N15: 1964.3 | O15: 2263000 | P15: -1.93%
A16: 6 | B16: Others | C16: ADANIENT | D16: 2021-05-27 | E16: 1318.45 | F16: 1320.33 | G16: 1303.22 | H16: 1287.98 | I16: 1270.87 | J16: 1335.57 | K16: 1352.68 | L16: 1367.92 | M16: 1337.45 | N16: 1305.1 | O16: 16547000 | P16: 1.33%
A17: 7 | B17: Others | C17: ADANIPORTS | D17: 2021-05-27 | E17: 771.75 | F17: 772.58 | G17: 767.42 | H17: 763.08 | I17: 757.92 | J17: 776.92 | K17: 782.08 | L17: 786.42 | M17: 777.75 | N17: 768.25 | O17: 74627500 | P17: -0.76%
A18: 8 | B18: Pharma | C18: ALKEM | D18: 2021-05-27 | E18: 3012.30 | F18: 3018.55 | G18: 2989.80 | H18: 2967.30 | I18: 2938.55 | J18: 3041.05 | K18: 3069.80 | L18: 3092.30 | M18: 3047.3 | N18: 2996.05 | O18: 471600 | P18: 2.61%
A19: 9 | B19: Automobile | C19: AMARAJABAT | D19: 2021-05-27 | E19: 794.30 | F19: 792.82 | G19: 786.68 | H19: 779.07 | I19: 772.93 | J19: 800.43 | K19: 806.57 | L19: 814.18 | M19: 798.95 | N19: 785.2 | O19: 5992000 | P19: 2.51%
A20: 10 | B20: Cement | C20: AMBUJACEM | D20: 2021-05-27 | E20: 321.05 | F20: 321.82 | G20: 319.23 | H20: 317.42 | I20: 314.83 | J20: 323.63 | K20: 326.22 | L20: 328.03 | M20: 324.4 | N20: 320 | O20: 13989000 | P20: -4.60%
A21: 11 | B21: Pharma | C21: APLLTD | D21: 2021-05-27 | E21: 958.25 | F21: 962.82 | G21: 950.88 | H21: 943.52 | I21: 931.58 | J21: 970.18 | K21: 982.12 | L21: 989.48 | M21: 974.75 | N21: 955.45 | O21: 1359600 | P21: 3.26%
A22: 12 | B22: Others | C22: APOLLOHOSP | D22: 2021-05-27 | E22: 3251.65 | F22: 3249.88 | G22: 3231.62 | H22: 3211.58 | I22: 3193.32 | J22: 3269.92 | K22: 3288.18 | L22: 3308.22 | M22: 3268.15 | N22: 3229.85 | O22: 1915500 | P22: -3.83%
A23: 13 | B23: Automobile | C23: APOLLOTYRE | D23: 2021-05-27 | E23: 218.35 | F23: 217.55 | G23: 215.45 | H23: 212.55 | I23: 210.45 | J23: 220.45 | K23: 222.55 | L23: 225.45 | M23: 219.65 | N23: 214.65 | O23: 16597500 | P23: 0.80%
A24: 14 | B24: Automobile | C24: ASHOKLEY | D24: 2021-05-27 | E24: 126.00 | F24: 125.77 | G24: 124.43 | H24: 122.87 | I24: 121.53 | J24: 127.33 | K24: 128.67 | L24: 130.23 | M24: 127.1 | N24: 124.2 | O24: 34785000 | P24: 2.17%
A25: 15 | B25: FMCG | C25: ASIANPAINT | D25: 2021-05-27 | E25: 2842.25 | F25: 2837.68 | G25: 2812.57 | H25: 2782.88 | I25: 2757.77 | J25: 2867.37 | K25: 2892.48 | L25: 2922.17 | M25: 2862.8 | N25: 2808 | O25: 5023800 | P25: -0.38%
A26: 16 | B26: Banking | C26: AUBANK | D26: 2021-05-27 | E26: 985.05 | F26: 980.88 | G26: 969.37 | H26: 953.68 | I26: 942.17 | J26: 996.57 | K26: 1008.08 | L26: 1023.77 | M26: 992.4 | N26: 965.2 | O26: 2877500 | P26: -0.40%
A27: 17 | B27: Pharma | C27: AUROPHARMA | D27: 2021-05-27 | E27: 1015.05 | F27: 1021.22 | G27: 1006.68 | H27: 998.32 | I27: 983.78 | J27: 1029.58 | K27: 1044.12 | L27: 1052.48 | M27: 1035.75 | N27: 1012.85 | O27: 9712950 | P27: -1.16%
A28: 18 | B28: Banking | C28: AXISBANK | D28: 2021-05-27 | E28: 733.70 | F28: 726.27 | G28: 717.13 | H28: 700.57 | I28: 691.43 | J28: 742.83 | K28: 751.97 | L28: 768.53 | M28: 735.4 | N28: 709.7 | O28: 45988800 | P28: 3.61%
A29: 19 | B29: Automobile | C29: BAJAJ-AUTO | D29: 2021-05-27 | E29: 4132.55 | F29: 4112.70 | G29: 4081.05 | H29: 4029.55 | I29: 3997.90 | J29: 4164.20 | K29: 4195.85 | L29: 4247.35 | M29: 4144.35 | N29: 4061.2 | O29: 1945500 | P29: 6.41%
A30: 20 | B30: Finance | C30: BAJAJFINSV | D30: 2021-05-27 | E30: 11311.35 | F30: 11339.45 | G30: 11226.90 | H30: 11142.45 | I30: 11029.90 | J30: 11423.90 | K30: 11536.45 | L30: 11620.90 | M30: 11452 | N30: 11255 | O30: 785200 | P30: -1.51%
A31: 21 | B31: Finance | C31: BAJFINANCE | D31: 2021-05-27 | E31: 5658.05 | F31: 5660.58 | G31: 5603.92 | H31: 5549.78 | I31: 5493.12 | J31: 5714.72 | K31: 5771.38 | L31: 5825.52 | M31: 5717.25 | N31: 5606.45 | O31: 4047750 | P31: 5.13%
A32: 22 | B32: Automobile | C32: BALKRISIND | D32: 2021-05-27 | E32: 2140.35 | F32: 2158.75 | G32: 2107.60 | H32: 2074.85 | I32: 2023.70 | J32: 2191.50 | K32: 2242.65 | L32: 2275.40 | M32: 2209.9 | N32: 2126 | O32: 1687600 | P32: -3.68%
A33: 23 | B33: Banking | C33: BANDHANBNK | D33: 2021-05-27 | E33: 300.60 | F33: 299.92 | G33: 296.83 | H33: 293.07 | I33: 289.98 | J33: 303.68 | K33: 306.77 | L33: 310.53 | M33: 303 | N33: 296.15 | O33: 24931800 | P33: -0.57%
A34: 24 | B34: Banking | C34: BANKBARODA | D34: 2021-05-27 | E34: 81.25 | F34: 80.07 | G34: 78.63 | H34: 76.02 | I34: 74.58 | J34: 82.68 | K34: 84.12 | L34: 86.73 | M34: 81.5 | N34: 77.45 | O34: 190815300 | P34: 18.38%
A35: 25 | B35: FMCG | C35: BATAINDIA | D35: 2021-05-27 | E35: 1491.40 | F35: 1488.82 | G35: 1469.68 | H35: 1447.97 | I35: 1428.83 | J35: 1510.53 | K35: 1529.67 | L35: 1551.38 | M35: 1507.95 | N35: 1467.1 | O35: 1102200 | P35: -0.25%
A36: 26 | B36: Capital_Goods | C36: BEL | D36: 2021-05-27 | E36: 157.40 | F36: 157.30 | G36: 155.90 | H36: 154.40 | I36: 153.00 | J36: 158.80 | K36: 160.20 | L36: 161.70 | M36: 158.7 | N36: 155.8 | O36: 29100400 | P36: -0.49%
A37: 27 | B37: FMCG | C37: BERGEPAINT | D37: 2021-05-27 | E37: 794.10 | F37: 796.40 | G37: 789.30 | H37: 784.50 | I37: 777.40 | J37: 801.20 | K37: 808.30 | L37: 813.10 | M37: 803.5 | N37: 791.6 | O37: 3691600 | P37: 0.66%
A38: 28 | B38: Automobile | C38: BHARATFORG | D38: 2021-05-27 | E38: 647.55 | F38: 652.60 | G38: 640.90 | H38: 634.25 | I38: 622.55 | J38: 659.25 | K38: 670.95 | L38: 677.60 | M38: 664.3 | N38: 645.95 | O38: 7104000 | P38: 3.52%
A39: 29 | B39: Telecom | C39: BHARTIARTL | D39: 2021-05-27 | E39: 531.90 | F39: 528.20 | G39: 522.20 | H39: 512.50 | I39: 506.50 | J39: 537.90 | K39: 543.90 | L39: 553.60 | M39: 534.2 | N39: 518.5 | O39: 116196525 | P39: -3.06%
A40: 30 | B40: Capital_Goods | C40: BHEL | D40: 2021-05-27 | E40: 72.40 | F40: 72.70 | G40: 71.65 | H40: 70.90 | I40: 69.85 | J40: 73.45 | K40: 74.50 | L40: 75.25 | M40: 73.75 | N40: 71.95 | O40: 105882000 | P40: -6.89%
A41: 31 | B41: Pharma | C41: BIOCON | D41: 2021-05-27 | E41: 383.65 | F41: 384.48 | G41: 382.27 | H41: 380.88 | I41: 378.67 | J41: 385.87 | K41: 388.08 | L41: 389.47 | M41: 386.7 | N41: 383.1 | O41: 21137000 | P41: 2.54%
A42: 32 | B42: Automobile | C42: BOSCHLTD | D42: 2021-05-27 | E42: 15293.55 | F42: 15367.85 | G42: 14985.70 | H42: 14677.85 | I42: 14295.70 | J42: 15675.70 | K42: 16057.85 | L42: 16365.70 | M42: 15750 | N42: 15060 | O42: 160300 | P42: 0.98%
A43: 33 | B43: Oil_Gas | C43: BPCL | D43: 2021-05-27 | E43: 461.70 | F43: 463.50 | G43: 458.25 | H43: 454.80 | I43: 449.55 | J43: 466.95 | K43: 472.20 | L43: 475.65 | M43: 468.75 | N43: 460.05 | O43: 47849400 | P43: 2.64%
A44: 34 | B44: FMCG | C44: BRITANNIA | D44: 2021-05-27 | E44: 3405.90 | F44: 3400.58 | G44: 3387.97 | H44: 3370.03 | I44: 3357.42 | J44: 3418.52 | K44: 3431.13 | L44: 3449.07 | M44: 3413.2 | N44: 3382.65 | O44: 2210600 | P44: -1.73%
A45: 35 | B45: Pharma | C45: CADILAHC | D45: 2021-05-27 | E45: 616.90 | F45: 616.43 | G45: 610.87 | H45: 604.83 | I45: 599.27 | J45: 622.47 | K45: 628.03 | L45: 634.07 | M45: 622 | N45: 610.4 | O45: 19925400 | P45: -0.82%
A46: 36 | B46: Banking | C46: CANBK | D46: 2021-05-27 | E46: 153.60 | F46: 152.12 | G46: 149.93 | H46: 146.27 | I46: 144.08 | J46: 155.78 | K46: 157.97 | L46: 161.63 | M46: 154.3 | N46: 148.45 | O46: 61014600 | P46: 9.25%
A47: 37 | B47: Finance | C47: CHOLAFIN | D47: 2021-05-27 | E47: 582.65 | F47: 580.42 | G47: 574.43 | H47: 566.22 | I47: 560.23 | J47: 588.63 | K47: 594.62 | L47: 602.83 | M47: 586.4 | N47: 572.2 | O47: 7537500 | P47: 3.15%
A48: 38 | B48: Pharma | C48: CIPLA | D48: 2021-05-27 | E48: 927.75 | F48: 933.58 | G48: 917.17 | H48: 906.58 | I48: 890.17 | J48: 944.17 | K48: 960.58 | L48: 971.17 | M48: 950 | N48: 923 | O48: 12462450 | P48: -8.17%
A49: 39 | B49: Others | C49: COALINDIA | D49: 2021-05-27 | E49: 147.45 | F49: 148.27 | G49: 146.38 | H49: 145.32 | I49: 143.43 | J49: 149.33 | K49: 151.22 | L49: 152.28 | M49: 150.15 | N49: 147.2 | O49: 52281600 | P49: -4.58%
A50: 40 | B50: Technology | C50: COFORGE | D50: 2021-05-27 | E50: 3338.85 | F50: 3350.95 | G50: 3307.90 | H50: 3276.95 | I50: 3233.90 | J50: 3381.90 | K50: 3424.95 | L50: 3455.90 | M50: 3394 | N50: 3320 | O50: 1727500 | P50: -9.61%
A51: 41 | B51: FMCG | C51: COLPAL | D51: 2021-05-27 | E51: 1635.45 | F51: 1636.55 | G51: 1622.55 | H51: 1609.65 | I51: 1595.65 | J51: 1649.45 | K51: 1663.45 | L51: 1676.35 | M51: 1650.55 | N51: 1623.65 | O51: 3438050 | P51: -3.12%
A52: 42 | B52: Others | C52: CONCOR | D52: 2021-05-27 | E52: 588.20 | F52: 593.63 | G52: 577.37 | H52: 566.53 | I52: 550.27 | J52: 604.47 | K52: 620.73 | L52: 631.57 | M52: 609.9 | N52: 582.8 | O52: 7610247 | P52: 5.87%
A53: 43 | B53: Banking | C53: CUB | D53: 2021-05-27 | E53: 175.85 | F53: 174.95 | G53: 173.65 | H53: 171.45 | I53: 170.15 | J53: 177.15 | K53: 178.45 | L53: 180.65 | M53: 176.25 | N53: 172.75 | O53: 5530400 | P53: 0.45%
A54: 44 | B54: Capital_Goods | C54: CUMMINSIND | D54: 2021-05-27 | E54: 834.90 | F54: 842.42 | G54: 824.88 | H54: 814.87 | I54: 797.33 | J54: 852.43 | K54: 869.97 | L54: 879.98 | M54: 859.95 | N54: 832.4 | O54: 1864800 | P54: -2.81%
A55: 45 | B55: FMCG | C55: DABUR | D55: 2021-05-27 | E55: 537.55 | F55: 538.00 | G55: 535.75 | H55: 533.95 | I55: 531.70 | J55: 539.80 | K55: 542.05 | L55: 543.85 | M55: 540.25 | N55: 536.2 | O55: 12196250 | P55: -2.83%
A56: 46 | B56: Chemical | C56: DEEPAKNTR | D56: 2021-05-27 | E56: 1764.60 | F56: 1775.05 | G56: 1750.20 | H56: 1735.80 | I56: 1710.95 | J56: 1789.45 | K56: 1814.30 | L56: 1828.70 | M56: 1799.9 | N56: 1760.65 | O56: 1901000 | P56: 1.63%
A57: 47 | B57: Pharma | C57: DIVISLAB | D57: 2021-05-27 | E57: 4088.40 | F57: 4089.33 | G57: 4061.77 | H57: 4035.13 | I57: 4007.57 | J57: 4115.97 | K57: 4143.53 | L57: 4170.17 | M57: 4116.9 | N57: 4062.7 | O57: 2509400 | P57: -2.83%
A58: 48 | B58: Realty | C58: DLF | D58: 2021-05-27 | E58: 269.40 | F58: 271.07 | G58: 265.83 | H58: 262.27 | I58: 257.03 | J58: 274.63 | K58: 279.87 | L58: 283.43 | M58: 276.3 | N58: 267.5 | O58: 30996900 | P58: 5.73%
A59: 49 | B59: Pharma | C59: DRREDDY | D59: 2021-05-27 | E59: 5237.25 | F59: 5242.65 | G59: 5196.30 | H59: 5155.35 | I59: 5109.00 | J59: 5283.60 | K59: 5329.95 | L59: 5370.90 | M59: 5289 | N59: 5201.7 | O59: 3170375 | P59: -3.53%
A60: 50 | B60: Automobile | C60: EICHERMOT | D60: 2021-05-27 | E60: 2533.05 | F60: 2539.52 | G60: 2517.38 | H60: 2501.72 | I60: 2479.58 | J60: 2555.18 | K60: 2577.32 | L60: 2592.98 | M60: 2561.65 | N60: 2523.85 | O60: 2777950 | P60: 1.02%
A61: 51 | B61: Automobile | C61: ESCORTS | D61: 2021-05-27 | E61: 1163.05 | F61: 1167.77 | G61: 1156.08 | H61: 1149.12 | I61: 1137.43 | J61: 1174.73 | K61: 1186.42 | L61: 1193.38 | M61: 1179.45 | N61: 1160.8 | O61: 3432550 | P61: 7.05%
A62: 52 | B62: Automobile | C62: EXIDEIND | D62: 2021-05-27 | E62: 187.60 | F62: 187.78 | G62: 186.77 | H62: 185.93 | I62: 184.92 | J62: 188.62 | K62: 189.63 | L62: 190.47 | M62: 188.8 | N62: 186.95 | O62: 14475600 | P62: 1.41%
A63: 53 | B63: Banking | C63: FEDERALBNK | D63: 2021-05-27 | E63: 85.55 | F63: 85.10 | G63: 84.25 | H63: 82.95 | I63: 82.10 | J63: 86.40 | K63: 87.25 | L63: 88.55 | M63: 85.95 | N63: 83.8 | O63: 74280000 | P63: 4.16%
A64: 54 | B64: Oil_Gas | C64: GAIL | D64: 2021-05-27 | E64: 146.40 | F64: 147.78 | G64: 144.62 | H64: 142.83 | I64: 139.67 | J64: 149.57 | K64: 152.73 | L64: 154.52 | M64: 150.95 | N64: 146 | O64: 35123800 | P64: 3.39%
A65: 55 | B65: Pharma | C65: GLENMARK | D65: 2021-05-27 | E65: 609.00 | F65: 610.33 | G65: 606.22 | H65: 603.43 | I65: 599.32 | J65: 613.12 | K65: 617.23 | L65: 620.02 | M65: 614.45 | N65: 607.55 | O65: 8792900 | P65: 1.28%
A66: 56 | B66: Infrastructure | C66: GMRINFRA | D66: 2021-05-27 | E66: 26.45 | F66: 26.32 | G66: 25.98 | H66: 25.52 | I66: 25.18 | J66: 26.78 | K66: 27.12 | L66: 27.58 | M66: 26.65 | N66: 25.85 | O66: 136710000 | P66: 3.47%
A67: 57 | B67: FMCG | C67: GODREJCP | D67: 2021-05-27 | E67: 818.80 | F67: 819.07 | G67: 814.18 | H67: 809.57 | I67: 804.68 | J67: 823.68 | K67: 828.57 | L67: 833.18 | M67: 823.95 | N67: 814.45 | O67: 5532000 | P67: -2.21%
A68: 58 | B68: Realty | C68: GODREJPROP | D68: 2021-05-27 | E68: 1308.95 | F68: 1313.80 | G68: 1297.85 | H68: 1286.75 | I68: 1270.80 | J68: 1324.90 | K68: 1340.85 | L68: 1351.95 | M68: 1329.75 | N68: 1302.7 | O68: 2080000 | P68: 1.75%
A69: 59 | B69: Pharma | C69: GRANULES | D69: 2021-05-27 | E69: 324.15 | F69: 325.43 | G69: 321.87 | H69: 319.58 | I69: 316.02 | J69: 327.72 | K69: 331.28 | L69: 333.57 | M69: 329 | N69: 323.15 | O69: 10259450 | P69: 1.18%
A70: 60 | B70: Cement | C70: GRASIM | D70: 2021-05-27 | E70: 1376.00 | F70: 1377.75 | G70: 1367.50 | H70: 1359.00 | I70: 1348.75 | J70: 1386.25 | K70: 1396.50 | L70: 1405.00 | M70: 1388 | N70: 1369.25 | O70: 15023300 | P70: 1.28%
A71: 61 | B71: Oil_Gas | C71: GUJGASLTD | D71: 2021-05-27 | E71: 514.15 | F71: 515.55 | G71: 507.60 | H71: 501.05 | I71: 493.10 | J71: 522.10 | K71: 530.05 | L71: 536.60 | M71: 523.5 | N71: 509 | O71: 1435000 | P71: 19.21%
A72: 62 | B72: Capital_Goods | C72: HAVELLS | D72: 2021-05-27 | E72: 1029.05 | F72: 1044.57 | G72: 1009.48 | H72: 989.92 | I72: 954.83 | J72: 1064.13 | K72: 1099.22 | L72: 1118.78 | M72: 1079.65 | N72: 1025 | O72: 4445500 | P72: -3.67%
A73: 63 | B73: Technology | C73: HCLTECH | D73: 2021-05-27 | E73: 933.95 | F73: 932.08 | G73: 926.97 | H73: 919.98 | I73: 914.87 | J73: 939.07 | K73: 944.18 | L73: 951.17 | M73: 937.2 | N73: 925.1 | O73: 21851900 | P73: -1.23%
A74: 64 | B74: Finance | C74: HDFC | D74: 2021-05-27 | E74: 2525.05 | F74: 2507.62 | G74: 2480.23 | H74: 2435.42 | I74: 2408.03 | J74: 2552.43 | K74: 2579.82 | L74: 2624.63 | M74: 2535 | N74: 2462.8 | O74: 17416800 | P74: 1.02%
A75: 65 | B75: Finance | C75: HDFCAMC | D75: 2021-05-27 | E75: 2820.95 | F75: 2825.63 | G75: 2800.32 | H75: 2779.68 | I75: 2754.37 | J75: 2846.27 | K75: 2871.58 | L75: 2892.22 | M75: 2850.95 | N75: 2805 | O75: 736000 | P75: 0.88%
A76: 66 | B76: Banking | C76: HDFCBANK | D76: 2021-05-27 | E76: 1497.35 | F76: 1481.68 | G76: 1460.27 | H76: 1423.18 | I76: 1401.77 | J76: 1518.77 | K76: 1540.18 | L76: 1577.27 | M76: 1503.1 | N76: 1444.6 | O76: 24681800 | P76: 2.82%
A77: 67 | B77: Finance | C77: HDFCLIFE | D77: 2021-05-27 | E77: 672.30 | F77: 672.23 | G77: 668.07 | H77: 663.83 | I77: 659.67 | J77: 676.47 | K77: 680.63 | L77: 684.87 | M77: 676.4 | N77: 668 | O77: 14427600 | P77: -3.40%
A78: 68 | B78: Automobile | C78: HEROMOTOCO | D78: 2021-05-27 | E78: 2900.15 | F78: 2883.85 | G78: 2861.30 | H78: 2822.45 | I78: 2799.90 | J78: 2922.70 | K78: 2945.25 | L78: 2984.10 | M78: 2906.4 | N78: 2845 | O78: 4121700 | P78: 4.00%
A79: 69 | B79: Metals | C79: HINDALCO | D79: 2021-05-27 | E79: 390.55 | F79: 389.15 | G79: 385.50 | H79: 380.45 | I79: 376.80 | J79: 394.20 | K79: 397.85 | L79: 402.90 | M79: 392.8 | N79: 384.1 | O79: 33722750 | P79: -4.11%
A80: 70 | B80: Oil_Gas | C80: HINDPETRO | D80: 2021-05-27 | E80: 276.50 | F80: 279.80 | G80: 271.25 | H80: 266.00 | I80: 257.45 | J80: 285.05 | K80: 293.60 | L80: 298.85 | M80: 288.35 | N80: 274.55 | O80: 29222100 | P80: -4.89%
A81: 71 | B81: FMCG | C81: HINDUNILVR | D81: 2021-05-27 | E81: 2369.80 | F81: 2364.52 | G81: 2355.63 | H81: 2341.47 | I81: 2332.58 | J81: 2378.68 | K81: 2387.57 | L81: 2401.73 | M81: 2373.4 | N81: 2350.35 | O81: 7263600 | P81: -2.06%
A82: 72 | B82: Finance | C82: IBULHSGFIN | D82: 2021-05-27 | E82: 216.35 | F82: 216.95 | G82: 211.60 | H82: 206.85 | I82: 201.50 | J82: 221.70 | K82: 227.05 | L82: 231.80 | M82: 222.3 | N82: 212.2 | O82: 29409700 | P82: 1.45%
A83: 73 | B83: Banking | C83: ICICIBANK | D83: 2021-05-27 | E83: 644.70 | F83: 638.60 | G83: 631.25 | H83: 617.80 | I83: 610.45 | J83: 652.05 | K83: 659.40 | L83: 672.85 | M83: 645.95 | N83: 625.15 | O83: 75201500 | P83: 9.99%
A84: 74 | B84: Finance | C84: ICICIGI | D84: 2021-05-27 | E84: 1528.05 | F84: 1528.77 | G84: 1505.53 | H84: 1483.02 | I84: 1459.78 | J84: 1551.28 | K84: 1574.52 | L84: 1597.03 | M84: 1552 | N84: 1506.25 | O84: 1156000 | P84: -2.33%
A85: 75 | B85: Finance | C85: ICICIPRULI | D85: 2021-05-27 | E85: 545.90 | F85: 545.73 | G85: 542.17 | H85: 538.43 | I85: 534.87 | J85: 549.47 | K85: 553.03 | L85: 556.77 | M85: 549.3 | N85: 542 | O85: 7438500 | P85: 0.30%
A86: 76 | B86: Telecom | C86: IDEA | D86: 2021-05-27 | E86: 8.60 | F86: 8.57 | G86: 8.43 | H86: 8.27 | I86: 8.13 | J86: 8.73 | K86: 8.87 | L86: 9.03 | M86: 8.7 | N86: 8.4 | O86: 667730000 | P86: 3.07%
A87: 77 | B87: Banking | C87: IDFCFIRSTB | D87: 2021-05-27 | E87: 57.55 | F87: 57.00 | G87: 56.10 | H87: 54.65 | I87: 53.75 | J87: 58.45 | K87: 59.35 | L87: 60.80 | M87: 57.9 | N87: 55.55 | O87: 151876500 | P87: 1.16%
A88: 78 | B88: Oil_Gas | C88: IGL | D88: 2021-05-27 | E88: 504.15 | F88: 505.05 | G88: 499.25 | H88: 494.35 | I88: 488.55 | J88: 509.95 | K88: 515.75 | L88: 520.65 | M88: 510.85 | N88: 500.15 | O88: 6534000 | P88: 9.44%
A89: 79 | B89: Others | C89: INDIGO | D89: 2021-05-27 | E89: 1696.00 | F89: 1689.98 | G89: 1675.97 | H89: 1655.93 | I89: 1641.92 | J89: 1710.02 | K89: 1724.03 | L89: 1744.07 | M89: 1704 | N89: 1669.95 | O89: 3665000 | P89: -0.48%
A90: 80 | B90: Banking | C90: INDUSINDBK | D90: 2021-05-27 | E90: 1019.95 | F90: 1010.02 | G90: 995.48 | H90: 971.02 | I90: 956.48 | J90: 1034.48 | K90: 1049.02 | L90: 1073.48 | M90: 1024.55 | N90: 985.55 | O90: 21141000 | P90: 3.73%
A91: 81 | B91: Telecom | C91: INDUSTOWER | D91: 2021-05-27 | E91: 246.45 | F91: 245.72 | G91: 243.88 | H91: 241.32 | I91: 239.48 | J91: 248.28 | K91: 250.12 | L91: 252.68 | M91: 247.55 | N91: 243.15 | O91: 11925200 | P91: 4.41%
A92: 82 | B92: Technology | C92: INFY | D92: 2021-05-27 | E92: 1359.55 | F92: 1357.52 | G92: 1353.03 | H92: 1346.52 | I92: 1342.03 | J92: 1364.03 | K92: 1368.52 | L92: 1375.03 | M92: 1362 | N92: 1351 | O92: 32137200 | P92: -3.24%
A93: 83 | B93: Oil_Gas | C93: IOC | D93: 2021-05-27 | E93: 104.60 | F93: 105.13 | G93: 103.17 | H93: 101.73 | I93: 99.77 | J93: 106.57 | K93: 108.53 | L93: 109.97 | M93: 107.1 | N93: 103.7 | O93: 87613500 | P93: -0.76%
A94: 84 | B94: Others | C94: IRCTC | D94: 2021-05-27 | E94: 1862.95 | F94: 1871.63 | G94: 1846.32 | H94: 1829.68 | I94: 1804.37 | J94: 1888.27 | K94: 1913.58 | L94: 1930.22 | M94: 1896.95 | N94: 1855 | O94: 1385475 | P94: 0.57%
A95: 85 | B95: FMCG | C95: ITC | D95: 2021-05-27 | E95: 209.85 | F95: 209.38 | G95: 208.22 | H95: 206.58 | I95: 205.42 | J95: 211.02 | K95: 212.18 | L95: 213.82 | M95: 210.55 | N95: 207.75 | O95: 138672000 | P95: 2.18%
A96: 86 | B96: Metals | C96: JINDALSTEL | D96: 2021-05-27 | E96: 403.50 | F96: 405.98 | G96: 399.17 | H96: 394.83 | I96: 388.02 | J96: 410.32 | K96: 417.13 | L96: 421.47 | M96: 412.8 | N96: 401.65 | O96: 36185000 | P96: -7.50%
A97: 87 | B97: Metals | C97: JSWSTEEL | D97: 2021-05-27 | E97: 700.35 | F97: 701.05 | G97: 695.10 | H97: 689.85 | I97: 683.90 | J97: 706.30 | K97: 712.25 | L97: 717.50 | M97: 707 | N97: 695.8 | O97: 37504350 | P97: 0.70%
A98: 88 | B98: Others | C98: JUBLFOOD | D98: 2021-05-27 | E98: 3028.75 | F98: 3031.92 | G98: 2975.83 | H98: 2922.92 | I98: 2866.83 | J98: 3084.83 | K98: 3140.92 | L98: 3193.83 | M98: 3088 | N98: 2979 | O98: 1349000 | P98: 0.17%
A99: 89 | B99: Banking | C99: KOTAKBANK | D99: 2021-05-27 | E99: 1765.20 | F99: 1753.48 | G99: 1736.07 | H99: 1706.93 | I99: 1689.52 | J99: 1782.62 | K99: 1800.03 | L99: 1829.17 | M99: 1770.9 | N99: 1724.35 | O99: 13372400 | P99: 3.04%
A100: 90 | B100: Finance | C100: L&TFH | D100: 2021-05-27 | E100: 91.50 | F100: 91.55 | G100: 90.70 | H100: 89.90 | I100: 89.05 | J100: 92.35 | K100: 93.20 | L100: 94.00 | M100: 92.4 | N100: 90.75 | O100: 48269916 | P100: -2.06%
A101: 91 | B101: Others | C101: LALPATHLAB | D101: 2021-05-27 | E101: 2838.05 | F101: 2852.28 | G101: 2804.57 | H101: 2771.08 | I101: 2723.37 | J101: 2885.77 | K101: 2933.48 | L101: 2966.97 | M101: 2900 | N101: 2818.8 | O101: 560500 | P101: -6.04%
A102: 92 | B102: Finance | C102: LICHSGFIN | D102: 2021-05-27 | E102: 458.10 | F102: 457.23 | G102: 453.87 | H102: 449.63 | I102: 446.27 | J102: 461.47 | K102: 464.83 | L102: 469.07 | M102: 460.6 | N102: 453 | O102: 6132000 | P102: -0.94%
A103: 93 | B103: Capital_Goods | C103: LT | D103: 2021-05-27 | E103: 1421.20 | F103: 1419.87 | G103: 1411.83 | H103: 1402.47 | I103: 1394.43 | J103: 1429.23 | K103: 1437.27 | L103: 1446.63 | M103: 1427.9 | N103: 1410.5 | O103: 13983425 | P103: -2.67%
A104: 94 | B104: Technology | C104: LTI | D104: 2021-05-27 | E104: 3663.05 | F104: 3667.22 | G104: 3627.43 | H104: 3591.82 | I104: 3552.03 | J104: 3702.83 | K104: 3742.62 | L104: 3778.23 | M104: 3707 | N104: 3631.6 | O104: 772650 | P104: 1.12%
A105: 95 | B105: Technology | C105: LTTS | D105: 2021-05-27 | E105: 2632.50 | F105: 2635.83 | G105: 2611.67 | H105: 2590.83 | I105: 2566.67 | J105: 2656.67 | K105: 2680.83 | L105: 2701.67 | M105: 2660 | N105: 2615 | O105: 442800 | P105: -4.40%
A106: 96 | B106: Pharma | C106: LUPIN | D106: 2021-05-27 | E106: 1216.70 | F106: 1214.27 | G106: 1209.03 | H106: 1201.37 | I106: 1196.13 | J106: 1221.93 | K106: 1227.17 | L106: 1234.83 | M106: 1219.5 | N106: 1206.6 | O106: 8777950 | P106: -2.75%
A107: 97 | B107: Automobile | C107: M&M | D107: 2021-05-27 | E107: 819.70 | F107: 814.27 | G107: 806.98 | H107: 794.27 | I107: 786.98 | J107: 826.98 | K107: 834.27 | L107: 846.98 | M107: 821.55 | N107: 801.55 | O107: 10785600 | P107: 0.87%
A108: 98 | B108: Finance | C108: M&MFIN | D108: 2021-05-27 | E108: 161.00 | F108: 161.12 | G108: 159.33 | H108: 157.67 | I108: 155.88 | J108: 162.78 | K108: 164.57 | L108: 166.23 | M108: 162.9 | N108: 159.45 | O108: 44612000 | P108: 3.93%
A109: 99 | B109: Finance | C109: MANAPPURAM | D109: 2021-05-27 | E109: 160.45 | F109: 160.40 | G109: 159.05 | H109: 157.65 | I109: 156.30 | J109: 161.80 | K109: 163.15 | L109: 164.55 | M109: 161.75 | N109: 159 | O109: 25470000 | P109: 0.83%
A110: 100 | B110: FMCG | C110: MARICO | D110: 2021-05-27 | E110: 461.40 | F110: 464.35 | G110: 456.70 | H110: 452.00 | I110: 444.35 | J110: 469.05 | K110: 476.70 | L110: 481.40 | M110: 472 | N110: 459.65 | O110: 8982000 | P110: 1.74%
A111: 101 | B111: Automobile | C111: MARUTI | D111: 2021-05-27 | E111: 6827.85 | F111: 6806.13 | G111: 6772.27 | H111: 6716.68 | I111: 6682.82 | J111: 6861.72 | K111: 6895.58 | L111: 6951.17 | M111: 6840 | N111: 6750.55 | O111: 2512800 | P111: -5.39%
A112: 102 | B112: FMCG | C112: MCDOWELL-N | D112: 2021-05-27 | E112: 574.20 | F112: 574.63 | G112: 570.57 | H112: 566.93 | I112: 562.87 | J112: 578.27 | K112: 582.33 | L112: 585.97 | M112: 578.7 | N112: 571 | O112: 13243750 | P112: 0.81%
A113: 103 | B113: Finance | C113: MFSL | D113: 2021-05-27 | E113: 909.05 | F113: 903.55 | G113: 887.10 | H113: 865.15 | I113: 848.70 | J113: 925.50 | K113: 941.95 | L113: 963.90 | M113: 920 | N113: 881.6 | O113: 2251600 | P113: 6.55%
A114: 104 | B114: Oil_Gas | C114: MGL | D114: 2021-05-27 | E114: 1132.15 | F114: 1130.32 | G114: 1115.83 | H114: 1099.52 | I114: 1085.03 | J114: 1146.63 | K114: 1161.12 | L114: 1177.43 | M114: 1144.8 | N114: 1114 | O114: 1636800 | P114: -1.62%
A115: 105 | B115: Technology | C115: MINDTREE | D115: 2021-05-27 | E115: 2126.95 | F115: 2114.92 | G115: 2091.18 | H115: 2055.42 | I115: 2031.68 | J115: 2150.68 | K115: 2174.42 | L115: 2210.18 | M115: 2138.65 | N115: 2079.15 | O115: 1978000 | P115: -2.33%
A116: 106 | B116: Automobile | C116: MOTHERSUMI | D116: 2021-05-27 | E116: 245.65 | F116: 244.10 | G116: 240.20 | H116: 234.75 | I116: 230.85 | J116: 249.55 | K116: 253.45 | L116: 258.90 | M116: 248 | N116: 238.65 | O116: 29403500 | P116: -1.08%
A117: 107 | B117: Technology | C117: MPHASIS | D117: 2021-05-27 | E117: 1808.45 | F117: 1803.52 | G117: 1757.03 | H117: 1705.62 | I117: 1659.13 | J117: 1854.93 | K117: 1901.42 | L117: 1952.83 | M117: 1850 | N117: 1752.1 | O117: 417625 | P117: 26.98%
A118: 108 | B118: Automobile | C118: MRF | D118: 2021-05-27 | E118: 82478.25 | F118: 82004.35 | G118: 81104.35 | H118: 79730.45 | I118: 78830.45 | J118: 83378.25 | K118: 84278.25 | L118: 85652.15 | M118: 82904.35 | N118: 80630.45 | O118: 47980 | P118: 1.95%
A119: 109 | B119: Finance | C119: MUTHOOTFIN | D119: 2021-05-27 | E119: 1268.00 | F119: 1270.62 | G119: 1260.28 | H119: 1252.57 | I119: 1242.23 | J119: 1278.33 | K119: 1288.67 | L119: 1296.38 | M119: 1280.95 | N119: 1262.9 | O119: 2614500 | P119: 1.81%
A120: 110 | B120: Others | C120: NAM-INDIA | D120: 2021-05-27 | E120: 352.50 | F120: 353.32 | G120: 350.13 | H120: 347.77 | I120: 344.58 | J120: 355.68 | K120: 358.87 | L120: 361.23 | M120: 356.5 | N120: 350.95 | O120: 1131200 | P120: 5.68%
A121: 111 | B121: Metals | C121: NATIONALUM | D121: 2021-05-27 | E121: 70.75 | F121: 71.33 | G121: 69.87 | H121: 68.98 | I121: 67.52 | J121: 72.22 | K121: 73.68 | L121: 74.57 | M121: 72.8 | N121: 70.45 | O121: 80818000 | P121: -2.88%
A122: 112 | B122: Others | C122: NAUKRI | D122: 2021-05-27 | E122: 4353.15 | F122: 4395.20 | G122: 4285.40 | H122: 4217.65 | I122: 4107.85 | J122: 4462.95 | K122: 4572.75 | L122: 4640.50 | M122: 4505 | N122: 4327.45 | O122: 1487125 | P122: 3.29%
A123: 113 | B123: Chemical | C123: NAVINFLUOR | D123: 2021-05-27 | E123: 3214.30 | F123: 3220.90 | G123: 3193.35 | H123: 3172.40 | I123: 3144.85 | J123: 3241.85 | K123: 3269.40 | L123: 3290.35 | M123: 3248.45 | N123: 3199.95 | O123: 414450 | P123: -6.12%
A124: 114 | B124: FMCG | C124: NESTLEIND | D124: 2021-05-27 | E124: 17510.75 | F124: 17458.58 | G124: 17342.17 | H124: 17173.58 | I124: 17057.17 | J124: 17627.17 | K124: 17743.58 | L124: 17912.17 | M124: 17575 | N124: 17290 | O124: 263800 | P124: -4.42%
A125: 115 | B125: Metals | C125: NMDC | D125: 2021-05-27 | E125: 176.80 | F125: 178.00 | G125: 174.70 | H125: 172.60 | I125: 169.30 | J125: 180.10 | K125: 183.40 | L125: 185.50 | M125: 181.3 | N125: 175.9 | O125: 62457400 | P125: 2.13%
A126: 116 | B126: Power | C126: NTPC | D126: 2021-05-27 | E126: 113.00 | F126: 112.65 | G126: 112.05 | H126: 111.10 | I126: 110.50 | J126: 113.60 | K126: 114.20 | L126: 115.15 | M126: 113.25 | N126: 111.7 | O126: 83744400 | P126: 0.42%
A127: 117 | B127: Oil_Gas | C127: ONGC | D127: 2021-05-27 | E127: 112.95 | F127: 113.03 | G127: 111.57 | H127: 110.18 | I127: 108.72 | J127: 114.42 | K127: 115.88 | L127: 117.27 | M127: 114.5 | N127: 111.65 | O127: 44367400 | P127: -5.82%
A128: 118 | B128: Textile | C128: PAGEIND | D128: 2021-05-27 | E128: 29430.20 | F128: 29616.05 | G128: 29104.25 | H128: 28778.30 | I128: 28266.50 | J128: 29942.00 | K128: 30453.80 | L128: 30779.75 | M128: 30127.85 | N128: 29290.1 | O128: 77790 | P128: 5.66%
A129: 119 | B129: Pharma | C129: PEL | D129: 2021-05-27 | E129: 1734.90 | F129: 1727.55 | G129: 1699.10 | H129: 1663.30 | I129: 1634.85 | J129: 1763.35 | K129: 1791.80 | L129: 1827.60 | M129: 1756 | N129: 1691.75 | O129: 3487275 | P129: 4.09%
A130: 120 | B130: Oil_Gas | C130: PETRONET | D130: 2021-05-27 | E130: 237.20 | F130: 237.92 | G130: 235.03 | H130: 232.87 | I130: 229.98 | J130: 240.08 | K130: 242.97 | L130: 245.13 | M130: 240.8 | N130: 235.75 | O130: 18027000 | P130: 1.25%
A131: 121 | B131: Finance | C131: PFC | D131: 2021-05-27 | E131: 119.40 | F131: 119.10 | G131: 117.80 | H131: 116.20 | I131: 114.90 | J131: 120.70 | K131: 122.00 | L131: 123.60 | M131: 120.4 | N131: 117.5 | O131: 40851800 | P131: 1.48%
A132: 122 | B132: Pharma | C132: PFIZER | D132: 2021-05-27 | E132: 5248.70 | F132: 5252.95 | G132: 5227.90 | H132: 5207.10 | I132: 5182.05 | J132: 5273.75 | K132: 5298.80 | L132: 5319.60 | M132: 5278 | N132: 5232.15 | O132: 243250 | P132: 0.52%
A133: 123 | B133: FMCG | C133: PIDILITIND | D133: 2021-05-27 | E133: 1978.90 | F133: 1975.03 | G133: 1956.07 | H133: 1933.23 | I133: 1914.27 | J133: 1997.87 | K133: 2016.83 | L133: 2039.67 | M133: 1994 | N133: 1952.2 | O133: 2194000 | P133: -1.17%
A134: 124 | B134: Chemical | C134: PIIND | D134: 2021-05-27 | E134: 2572.15 | F134: 2584.08 | G134: 2553.77 | H134: 2535.38 | I134: 2505.07 | J134: 2602.47 | K134: 2632.78 | L134: 2651.17 | M134: 2614.4 | N134: 2565.7 | O134: 711750 | P134: 1.43%
A135: 125 | B135: Banking | C135: PNB | D135: 2021-05-27 | E135: 38.20 | F135: 38.05 | G135: 37.70 | H135: 37.20 | I135: 36.85 | J135: 38.55 | K135: 38.90 | L135: 39.40 | M135: 38.4 | N135: 37.55 | O135: 297936000 | P135: -5.75%
A136: 126 | B136: Power | C136: POWERGRID | D136: 2021-05-27 | E136: 228.55 | F136: 228.22 | G136: 226.78 | H136: 225.02 | I136: 223.58 | J136: 229.98 | K136: 231.42 | L136: 233.18 | M136: 229.65 | N136: 226.45 | O136: 20728000 | P136: -4.76%
A137: 127 | B137: Media | C137: PVR | D137: 2021-05-27 | E137: 1251.35 | F137: 1243.47 | G137: 1223.23 | H137: 1195.12 | I137: 1174.88 | J137: 1271.58 | K137: 1291.82 | L137: 1319.93 | M137: 1263.7 | N137: 1215.35 | O137: 1891329 | P137: 5.93%
A138: 128 | B138: Cement | C138: RAMCOCEM | D138: 2021-05-27 | E138: 995.85 | F138: 999.60 | G138: 987.25 | H138: 978.65 | I138: 966.30 | J138: 1008.20 | K138: 1020.55 | L138: 1029.15 | M138: 1011.95 | N138: 991 | O138: 2210850 | P138: 2.97%
A139: 129 | B139: Banking | C139: RBLBANK | D139: 2021-05-27 | E139: 208.70 | F139: 208.10 | G139: 206.40 | H139: 204.10 | I139: 202.40 | J139: 210.40 | K139: 212.10 | L139: 214.40 | M139: 209.8 | N139: 205.8 | O139: 24603600 | P139: 3.35%
A140: 130 | B140: Power | C140: RECLTD | D140: 2021-05-27 | E140: 144.45 | F140: 143.95 | G140: 141.95 | H140: 139.45 | I140: 137.45 | J140: 146.45 | K140: 148.45 | L140: 150.95 | M140: 145.95 | N140: 141.45 | O140: 15306000 | P140: 7.32%
A141: 131 | B141: Oil_Gas | C141: RELIANCE | D141: 2021-05-27 | E141: 2005.50 | F141: 2002.53 | G141: 1990.82 | H141: 1976.13 | I141: 1964.42 | J141: 2017.22 | K141: 2028.93 | L141: 2043.62 | M141: 2014.25 | N141: 1987.85 | O141: 30241000 | P141: -2.05%
A142: 132 | B142: Metals | C142: SAIL | D142: 2021-05-27 | E142: 122.20 | F142: 122.77 | G142: 120.83 | H142: 119.47 | I142: 117.53 | J142: 124.13 | K142: 126.07 | L142: 127.43 | M142: 124.7 | N142: 121.4 | O142: 140096500 | P142: -1.60%
A143: 133 | B143: Finance | C143: SBILIFE | D143: 2021-05-27 | E143: 972.80 | F143: 974.72 | G143: 965.98 | H143: 959.17 | I143: 950.43 | J143: 981.53 | K143: 990.27 | L143: 997.08 | M143: 983.45 | N143: 967.9 | O143: 8066250 | P143: -0.59%
A144: 134 | B144: Banking | C144: SBIN | D144: 2021-05-27 | E144: 403.40 | F144: 396.37 | G144: 385.98 | H144: 368.57 | I144: 358.18 | J144: 413.78 | K144: 424.17 | L144: 441.58 | M144: 406.75 | N144: 378.95 | O144: 132009000 | P144: 17.09%
A145: 135 | B145: Cement | C145: SHREECEM | D145: 2021-05-27 | E145: 27752.70 | F145: 27832.63 | G145: 27588.97 | H145: 27425.23 | I145: 27181.57 | J145: 27996.37 | K145: 28240.03 | L145: 28403.77 | M145: 28076.3 | N145: 27668.9 | O145: 175950 | P145: 1.19%
A146: 136 | B146: Capital_Goods | C146: SIEMENS | D146: 2021-05-27 | E146: 1994.10 | F146: 2002.43 | G146: 1979.07 | H146: 1964.03 | I146: 1940.67 | J146: 2017.47 | K146: 2040.83 | L146: 2055.87 | M146: 2025.8 | N146: 1987.4 | O146: 1040875 | P146: 1.42%
A147: 137 | B147: Textile | C147: SRF | D147: 2021-05-27 | E147: 6479.55 | F147: 6488.97 | G147: 6433.03 | H147: 6386.52 | I147: 6330.58 | J147: 6535.48 | K147: 6591.42 | L147: 6637.93 | M147: 6544.9 | N147: 6442.45 | O147: 441500 | P147: -4.41%
A148: 138 | B148: Finance | C148: SRTRANSFIN | D148: 2021-05-27 | E148: 1485.00 | F148: 1467.98 | G148: 1440.02 | H148: 1395.03 | I148: 1367.07 | J148: 1512.97 | K148: 1540.93 | L148: 1585.92 | M148: 1495.95 | N148: 1423 | O148: 3491200 | P148: 2.99%
A149: 139 | B149: Pharma | C149: SUNPHARMA | D149: 2021-05-27 | E149: 692.65 | F149: 693.22 | G149: 689.93 | H149: 687.22 | I149: 683.93 | J149: 695.93 | K149: 699.22 | L149: 701.93 | M149: 696.5 | N149: 690.5 | O149: 47122600 | P149: -1.01%
A150: 140 | B150: Media | C150: SUNTV | D150: 2021-05-27 | E150: 526.90 | F150: 528.48 | G150: 523.42 | H150: 519.93 | I150: 514.87 | J150: 531.97 | K150: 537.03 | L150: 540.52 | M150: 533.55 | N150: 525 | O150: 12946500 | P150: 1.05%
A151: 141 | B151: Chemical | C151: TATACHEM | D151: 2021-05-27 | E151: 709.80 | F151: 711.92 | G151: 706.38 | H151: 702.97 | I151: 697.43 | J151: 715.33 | K151: 720.87 | L151: 724.28 | M151: 717.45 | N151: 708.5 | O151: 9610000 | P151: -1.47%
A152: 142 | B152: FMCG | C152: TATACONSUM | D152: 2021-05-27 | E152: 650.60 | F152: 650.20 | G152: 645.80 | H152: 641.00 | I152: 636.60 | J152: 655.00 | K152: 659.40 | L152: 664.20 | M152: 654.6 | N152: 645.4 | O152: 6970050 | P152: -2.55%
A153: 143 | B153: Automobile | C153: TATAMOTORS | D153: 2021-05-27 | E153: 313.15 | F153: 313.02 | G153: 309.78 | H153: 306.42 | I153: 303.18 | J153: 316.38 | K153: 319.62 | L153: 322.98 | M153: 316.25 | N153: 309.65 | O153: 103192800 | P153: -3.19%
A154: 144 | B154: Power | C154: TATAPOWER | D154: 2021-05-27 | E154: 105.25 | F154: 105.08 | G154: 103.72 | H154: 102.18 | I154: 100.82 | J154: 106.62 | K154: 107.98 | L154: 109.52 | M154: 106.45 | N154: 103.55 | O154: 129316500 | P154: -1.13%
A155: 145 | B155: Metals | C155: TATASTEEL | D155: 2021-05-27 | E155: 1113.80 | F155: 1115.70 | G155: 1105.40 | H155: 1097.00 | I155: 1086.70 | J155: 1124.10 | K155: 1134.40 | L155: 1142.80 | M155: 1126 | N155: 1107.3 | O155: 41196950 | P155: -0.10%
A156: 146 | B156: Technology | C156: TCS | D156: 2021-05-27 | E156: 3075.40 | F156: 3069.63 | G156: 3055.77 | H156: 3036.13 | I156: 3022.27 | J156: 3089.27 | K156: 3103.13 | L156: 3122.77 | M156: 3083.5 | N156: 3050 | O156: 7735500 | P156: 1.39%
A157: 147 | B157: Technology | C157: TECHM | D157: 2021-05-27 | E157: 981.65 | F157: 980.68 | G157: 973.47 | H157: 965.28 | I157: 958.07 | J157: 988.87 | K157: 996.08 | L157: 1004.27 | M157: 987.9 | N157: 972.5 | O157: 11691600 | P157: -2.91%
A158: 148 | B158: FMCG | C158: TITAN | D158: 2021-05-27 | E158: 1544.00 | F158: 1546.12 | G158: 1536.53 | H158: 1529.07 | I158: 1519.48 | J158: 1553.58 | K158: 1563.17 | L158: 1570.63 | M158: 1555.7 | N158: 1538.65 | O158: 5129250 | P158: 0.92%
A159: 149 | B159: Pharma | C159: TORNTPHARM | D159: 2021-05-27 | E159: 2726.45 | F159: 2734.92 | G159: 2702.13 | H159: 2677.82 | I159: 2645.03 | J159: 2759.23 | K159: 2792.02 | L159: 2816.33 | M159: 2767.7 | N159: 2710.6 | O159: 961000 | P159: -1.08%
A160: 150 | B160: Power | C160: TORNTPOWER | D160: 2021-05-27 | E160: 452.70 | F160: 448.82 | G160: 430.83 | H160: 408.97 | I160: 390.98 | J160: 470.68 | K160: 488.67 | L160: 510.53 | M160: 466.8 | N160: 426.95 | O160: 3048000 | P160: 16.85%
A161: 151 | B161: Others | C161: TRENT | D161: 2021-05-27 | E161: 827.45 | F161: 822.27 | G161: 810.38 | H161: 793.32 | I161: 781.43 | J161: 839.33 | K161: 851.22 | L161: 868.28 | M161: 834.15 | N161: 805.2 | O161: 999775 | P161: -5.09%
A162: 152 | B162: Automobile | C162: TVSMOTOR | D162: 2021-05-27 | E162: 627.95 | F162: 630.50 | G162: 623.30 | H162: 618.65 | I162: 611.45 | J162: 635.15 | K162: 642.35 | L162: 647.00 | M162: 637.7 | N162: 625.85 | O162: 5028800 | P162: -0.75%
A163: 153 | B163: FMCG | C163: UBL | D163: 2021-05-27 | E163: 1283.40 | F163: 1283.98 | G163: 1275.67 | H163: 1267.93 | I163: 1259.62 | J163: 1291.72 | K163: 1300.03 | L163: 1307.77 | M163: 1292.3 | N163: 1276.25 | O163: 974400 | P163: 3.11%
A164: 154 | B164: Cement | C164: ULTRACEMCO | D164: 2021-05-27 | E164: 6645.45 | F164: 6646.38 | G164: 6593.77 | H164: 6542.08 | I164: 6489.47 | J164: 6698.07 | K164: 6750.68 | L164: 6802.37 | M164: 6699 | N164: 6594.7 | O164: 2468900 | P164: 1.08%
A165: 155 | B165: Chemical | C165: UPL | D165: 2021-05-27 | E165: 781.50 | F165: 777.98 | G165: 768.97 | H165: 756.43 | I165: 747.42 | J165: 790.52 | K165: 799.53 | L165: 812.07 | M165: 787 | N165: 765.45 | O165: 20465900 | P165: -1.63%
A166: 156 | B166: Metals | C166: VEDL | D166: 2021-05-27 | E166: 274.15 | F166: 275.60 | G166: 269.85 | H166: 265.55 | I166: 259.80 | J166: 279.90 | K166: 285.65 | L166: 289.95 | M166: 281.35 | N166: 271.3 | O166: 120819400 | P166: 1.95%
A167: 157 | B167: Capital_Goods | C167: VOLTAS | D167: 2021-05-27 | E167: 998.70 | F167: 1002.75 | G167: 988.30 | H167: 977.90 | I167: 963.45 | J167: 1013.15 | K167: 1027.60 | L167: 1038.00 | M167: 1017.2 | N167: 992.35 | O167: 2723000 | P167: -1.73%
A168: 158 | B168: Technology | C168: WIPRO | D168: 2021-05-27 | E168: 513.10 | F168: 513.07 | G168: 509.33 | H168: 505.57 | I168: 501.83 | J168: 516.83 | K168: 520.57 | L168: 524.33 | M168: 516.8 | N168: 509.3 | O168: 30939200 | P168: -0.96%
A169: 159 | B169: Media | C169: ZEEL | D169: 2021-05-27 | E169: 190.95 | F169: 193.63 | G169: 187.67 | H169: 184.38 | I169: 178.42 | J169: 196.92 | K169: 202.88 | L169: 206.17 | M169: 199.6 | N169: 190.35 | O169: 84297000 | P169: -3.65%
A175: Pivot Point: This is trigger point for intra day buy/sell based on the price range of the previous day
A176: As per the tool,the trader should take BUY position just above Pivot and keep the stop loss of pivot point and the first target would be Resistance 1(R1)
A177: If R1 is crossed then R2 becomes the next target with stop loss of at R1
A178: Similarly if price goes below pivot point then the trader should sell and keep a stop loss of pivot point and the first target would be S1
A179: If S1 is crossed then S2 becomes the next target with stop loss of at S1
A181: Disclaimer:
A182: This document has been prepared by the Retail Research Desk of Asit C Mehta
A183: Investment Intermediates Ltd. and is meant for use of the recipient only
A184: and is not for circulation. This document is not to be reported or
A185: copied or made available to others. It should not be considered to be
A186: taken as an offer to sell or a solicitation to buy any security. The
A187: information contained herein is from sources believed reliable. We do
A188: not represent that it is accurate or complete and it should not be
A189: relied upon as such. We may from time to time have positions in and buy
A190: and sell securities referred to herein

Sheet Cash Intra
M5: Back to Main Page
A6: FOR INTRA DAY TRADING | K6: =Main!B10 -> 2021-05-24
A8: Sr.no | C8: CLOSE RATE | D8: Pivot Point | E8: Supports | H8: Resistances
C9: Point | E9: S1 | F9: S2 | G9: S3 | H9: R1 | I9: R2 | J9: R3 | K9: HIGH | L9: LOW | M9: Total Trade Quanity in Lakhs
A10: 1 | B10: Nifty 50 | C10: 15175.3 | D10: 15117.05 | E10: 15044.10 | F10: 14912.90 | G10: 14839.95 | H10: 15248.25 | I10: 15321.20 | J10: 15452.40 | K10: 15190 | L10: 14985.85
A11: 2 | B11: Nifty Bank | C11: 34606.9 | D11: 34287.03 | E11: 33879.62 | F11: 33152.33 | G11: 32744.92 | H11: 35014.32 | I11: 35421.73 | J11: 36149.02 | K11: 34694.45 | L11: 33559.75
A12: 3 | B12: Nifty CPSE | C12: 1973.5 | D12: 1973.77 | E12: 1966.18 | F12: 1958.87 | G12: 1951.28 | H12: 1981.08 | I12: 1988.67 | J12: 1995.98 | K12: 1981.35 | L12: 1966.45
A13: 4 | B13: Nifty Infra | C13: 4194.65 | D13: 4194.78 | E13: 4185.52 | F13: 4176.38 | G13: 4167.12 | H13: 4203.92 | I13: 4213.18 | J13: 4222.32 | K13: 4204.05 | L13: 4185.65
A14: 5 | B14: Nifty IT | C14: 26105.3 | D14: 26065.30 | E14: 25976.60 | F14: 25847.90 | G14: 25759.20 | H14: 26194.00 | I14: 26282.70 | J14: 26411.40 | K14: 26154 | L14: 25936.6
A15: 6 | B15: Nifty PSE | C15: 3461.75 | D15: 3467.75 | E15: 3451.85 | F15: 3441.95 | G15: 3426.05 | H15: 3477.65 | I15: 3493.55 | J15: 3503.45 | K15: 3483.65 | L15: 3457.85
A16: 7 | B16: Nifty Midcap 50 | C16: 7093 | D16: 7085.60 | E16: 7061.05 | F16: 7029.10 | G16: 7004.55 | H16: 7117.55 | I16: 7142.10 | J16: 7174.05 | K16: 7110.15 | L16: 7053.65
A17: 8 | B17: ACC | C17: 1965.25 | D17: 1970.83 | E17: 1953.72 | F17: 1942.18 | G17: 1925.07 | H17: 1982.37 | I17: 1999.48 | J17: 2011.02 | K17: 1987.95 | L17: 1959.3 | M17: 6.74816
A18: 9 | B18: AUBANK | C18: 980.5 | D18: 976.50 | E18: 964.05 | F18: 947.60 | G18: 935.15 | H18: 992.95 | I18: 1005.40 | J18: 1021.85 | K18: 988.95 | L18: 960.05 | M18: 11.69852
A19: 10 | B19: AARTIIND | C19: 1664.65 | D19: 1682.23 | E19: 1642.47 | F19: 1620.28 | G19: 1580.52 | H19: 1704.42 | I19: 1744.18 | J19: 1766.37 | K19: 1722 | L19: 1660.05 | M19: 7.55839
A20: 11 | B20: ABBOTINDIA | C20: 16036.7 | D20: 16042.27 | E20: 15894.53 | F20: 15752.37 | G20: 15604.63 | H20: 16184.43 | I20: 16332.17 | J20: 16474.33 | K20: 16190 | L20: 15900.1 | M20: 0.09375
A21: 12 | B21: ADANIENT | C21: 1315.1 | D21: 1317.05 | E21: 1298.10 | F21: 1281.10 | G21: 1262.15 | H21: 1334.05 | I21: 1353.00 | J21: 1370.00 | K21: 1336 | L21: 1300.05 | M21: 83.14215
A22: 13 | B22: ADANIGREEN | C22: 1299.2 | D22: 1297.23 | E22: 1273.97 | F22: 1248.73 | G22: 1225.47 | H22: 1322.47 | I22: 1345.73 | J22: 1370.97 | K22: 1320.5 | L22: 1272 | M22: 11.45075
A23: 14 | B23: ADANIPORTS | C23: 769.2 | D23: 770.37 | E23: 765.48 | F23: 761.77 | G23: 756.88 | H23: 774.08 | I23: 778.97 | J23: 782.68 | K23: 775.25 | L23: 766.65 | M23: 52.74817
A24: 15 | B24: ATGL | C24: 1338.7 | D24: 1349.63 | E24: 1299.27 | F24: 1259.83 | G24: 1209.47 | H24: 1389.07 | I24: 1439.43 | J24: 1478.87 | K24: 1400 | L24: 1310.2 | M24: 66.74625
A25: 16 | B25: ADANITRANS | C25: 1453.85 | D25: 1441.30 | E25: 1427.60 | F25: 1401.35 | G25: 1387.65 | H25: 1467.55 | I25: 1481.25 | J25: 1507.50 | K25: 1455 | L25: 1415.05 | M25: 41.56347
A26: 17 | B26: ABCAPITAL | C26: 125.2 | D26: 126.28 | E26: 123.62 | F26: 122.03 | G26: 119.37 | H26: 127.87 | I26: 130.53 | J26: 132.12 | K26: 128.95 | L26: 124.7 | M26: 57.72544
A27: 18 | B27: ABFRL | C27: 188.5 | D27: 187.55 | E27: 185.10 | F27: 181.70 | G27: 179.25 | H27: 190.95 | I27: 193.40 | J27: 196.80 | K27: 190 | L27: 184.15 | M27: 14.79694
A28: 19 | B28: AJANTPHARM | C28: 1935.1 | D28: 1938.48 | E28: 1926.27 | F28: 1917.43 | G28: 1905.22 | H28: 1947.32 | I28: 1959.53 | J28: 1968.37 | K28: 1950.7 | L28: 1929.65 | M28: 0.81217
A29: 20 | B29: APLLTD | C29: 956.45 | D29: 961.25 | E29: 947.65 | F29: 938.85 | G29: 925.25 | H29: 970.05 | I29: 983.65 | J29: 992.45 | K29: 974.85 | L29: 952.45 | M29: 3.38273
A30: 21 | B30: ALKEM | C30: 3003.5 | D30: 3011.25 | E30: 2982.50 | F30: 2961.50 | G30: 2932.75 | H30: 3032.25 | I30: 3061.00 | J30: 3082.00 | K30: 3040 | L30: 2990.25 | M30: 4.25787
A31: 22 | B31: AMARAJABAT | C31: 791.65 | D31: 790.77 | E31: 786.08 | F31: 780.52 | G31: 775.83 | H31: 796.33 | I31: 801.02 | J31: 806.58 | K31: 795.45 | L31: 785.2 | M31: 5.83057
A32: 23 | B32: AMBUJACEM | C32: 321.45 | D32: 322.02 | E32: 319.68 | F32: 317.92 | G32: 315.58 | H32: 323.78 | I32: 326.12 | J32: 327.88 | K32: 324.35 | L32: 320.25 | M32: 40.39119
A33: 24 | B33: APOLLOHOSP | C33: 3247.75 | D33: 3244.05 | E33: 3228.70 | F33: 3209.65 | G33: 3194.30 | H33: 3263.10 | I33: 3278.45 | J33: 3297.50 | K33: 3259.4 | L33: 3225 | M33: 4.71439
A34: 25 | B34: APOLLOTYRE | C34: 217.35 | D34: 216.95 | E34: 214.90 | F34: 212.45 | G34: 210.40 | H34: 219.40 | I34: 221.45 | J34: 223.90 | K34: 219 | L34: 214.5 | M34: 76.73508
A35: 26 | B35: ASHOKLEY | C35: 125.45 | D35: 125.38 | E35: 123.92 | F35: 122.38 | G35: 120.92 | H35: 126.92 | I35: 128.38 | J35: 129.92 | K35: 126.85 | L35: 123.85 | M35: 155.00993
A36: 27 | B36: ASIANPAINT | C36: 2832.5 | D36: 2827.17 | E36: 2800.33 | F36: 2768.17 | G36: 2741.33 | H36: 2859.33 | I36: 2886.17 | J36: 2918.33 | K36: 2854 | L36: 2795 | M36: 13.28308
A37: 28 | B37: AUROPHARMA | C37: 1013.15 | D37: 1018.83 | E37: 1002.77 | F37: 992.38 | G37: 976.32 | H37: 1029.22 | I37: 1045.28 | J37: 1055.67 | K37: 1034.9 | L37: 1008.45 | M37: 13.38498
A38: 29 | B38: DMART | C38: 3034.15 | D38: 3039.05 | E38: 3008.10 | F38: 2982.05 | G38: 2951.10 | H38: 3065.10 | I38: 3096.05 | J38: 3122.10 | K38: 3070 | L38: 3013 | M38: 3.75397
A39: 30 | B39: AXISBANK | C39: 730.9 | D39: 723.77 | E39: 714.13 | F39: 697.37 | G39: 687.73 | H39: 740.53 | I39: 750.17 | J39: 766.93 | K39: 733.4 | L39: 707 | M39: 158.83692
A40: 31 | B40: BAJAJ-AUTO | C40: 4125.55 | D40: 4104.22 | E40: 4076.43 | F40: 4027.32 | G40: 3999.53 | H40: 4153.33 | I40: 4181.12 | J40: 4230.23 | K40: 4132 | L40: 4055.1 | M40: 3.78016
A41: 32 | B41: BAJFINANCE | C41: 5631.75 | D41: 5637.68 | E41: 5580.37 | F41: 5528.98 | G41: 5471.67 | H41: 5689.07 | I41: 5746.38 | J41: 5797.77 | K41: 5695 | L41: 5586.3 | M41: 18.56966
A42: 33 | B42: BAJAJFINSV | C42: 11265.15 | D42: 11297.72 | E42: 11180.43 | F42: 11095.72 | G42: 10978.43 | H42: 11382.43 | I42: 11499.72 | J42: 11584.43 | K42: 11415 | L42: 11213 | M42: 2.77521
A43: 34 | B43: BAJAJHLDNG | C43: 3588.25 | D43: 3604.33 | E43: 3547.92 | F43: 3507.58 | G43: 3451.17 | H43: 3644.67 | I43: 3701.08 | J43: 3741.42 | K43: 3660.75 | L43: 3564 | M43: 0.19259
A44: 35 | B44: BALKRISIND | C44: 2131.1 | D44: 2146.37 | E44: 2102.73 | F44: 2074.37 | G44: 2030.73 | H44: 2174.73 | I44: 2218.37 | J44: 2246.73 | K44: 2190 | L44: 2118 | M44: 7.38291
A45: 36 | B45: BANDHANBNK | C45: 299.65 | D45: 298.82 | E45: 296.13 | F45: 292.62 | G45: 289.93 | H45: 302.33 | I45: 305.02 | J45: 308.53 | K45: 301.5 | L45: 295.3 | M45: 84.26593
A46: 37 | B46: BANKBARODA | C46: 80.8 | D46: 79.68 | E46: 78.22 | F46: 75.63 | G46: 74.17 | H46: 82.27 | I46: 83.73 | J46: 86.32 | K46: 81.15 | L46: 77.1 | M46: 1368.7951
A47: 38 | B47: BANKINDIA | C47: 78.4 | D47: 78.50 | E47: 77.00 | F47: 75.60 | G47: 74.10 | H47: 79.90 | I47: 81.40 | J47: 82.80 | K47: 80 | L47: 77.1 | M47: 126.68355
A48: 39 | B48: BATAINDIA | C48: 1484.65 | D48: 1484.45 | E48: 1464.90 | F48: 1445.15 | G48: 1425.60 | H48: 1504.20 | I48: 1523.75 | J48: 1543.50 | K48: 1504 | L48: 1464.7 | M48: 9.38434
A49: 40 | B49: BERGEPAINT | C49: 790.8 | D49: 793.35 | E49: 785.70 | F49: 780.60 | G49: 772.95 | H49: 798.45 | I49: 806.10 | J49: 811.20 | K49: 801 | L49: 788.25 | M49: 14.79506
A50: 41 | B50: BEL | C50: 157.6 | D50: 157.62 | E50: 156.23 | F50: 154.87 | G50: 153.48 | H50: 158.98 | I50: 160.37 | J50: 161.73 | K50: 159 | L50: 156.25 | M50: 193.87924
A51: 42 | B51: BHARATFORG | C51: 644.65 | D51: 650.38 | E51: 637.27 | F51: 629.88 | G51: 616.77 | H51: 657.77 | I51: 670.88 | J51: 678.27 | K51: 663.5 | L51: 643 | M51: 26.95667
A52: 43 | B52: BHEL | C52: 72.2 | D52: 72.57 | E52: 71.33 | F52: 70.47 | G52: 69.23 | H52: 73.43 | I52: 74.67 | J52: 75.53 | K52: 73.8 | L52: 71.7 | M52: 637.1377
A53: 44 | B53: BPCL | C53: 461.05 | D53: 462.70 | E53: 457.40 | F53: 453.75 | G53: 448.45 | H53: 466.35 | I53: 471.65 | J53: 475.30 | K53: 468 | L53: 459.05 | M53: 119.93869
A54: 45 | B54: BHARTIARTL | C54: 530.95 | D54: 528.75 | E54: 524.20 | F54: 517.45 | G54: 512.90 | H54: 535.50 | I54: 540.05 | J54: 546.80 | K54: 533.3 | L54: 522 | M54: 102.99402
A55: 46 | B55: BIOCON | C55: 382.5 | D55: 383.52 | E55: 380.63 | F55: 378.77 | G55: 375.88 | H55: 385.38 | I55: 388.27 | J55: 390.13 | K55: 386.4 | L55: 381.65 | M55: 14.48078
A56: 47 | B56: BBTC | C56: 1201.75 | D56: 1209.65 | E56: 1184.30 | F56: 1166.85 | G56: 1141.50 | H56: 1227.10 | I56: 1252.45 | J56: 1269.90 | K56: 1235 | L56: 1192.2 | M56: 1.15498
A57: 48 | B57: BOSCHLTD | C57: 15288.15 | D57: 15394.05 | E57: 14947.10 | F57: 14606.05 | G57: 14159.10 | H57: 15735.10 | I57: 16182.05 | J57: 16523.10 | K57: 15841 | L57: 15053 | M57: 2.56287
A58: 49 | B58: BRITANNIA | C58: 3435.75 | D58: 3434.25 | E58: 3419.50 | F58: 3403.25 | G58: 3388.50 | H58: 3450.50 | I58: 3465.25 | J58: 3481.50 | K58: 3449 | L58: 3418 | M58: 5.21688
A59: 50 | B59: CESC | C59: 689.35 | D59: 690.50 | E59: 679.05 | F59: 668.75 | G59: 657.30 | H59: 700.80 | I59: 712.25 | J59: 722.55 | K59: 701.95 | L59: 680.2 | M59: 6.44658
A60: 51 | B60: CADILAHC | C60: 613.15 | D60: 614.25 | E60: 606.80 | F60: 600.45 | G60: 593.00 | H60: 620.60 | I60: 628.05 | J60: 634.40 | K60: 621.7 | L60: 607.9 | M60: 41.37273
A61: 52 | B61: CANBK | C61: 152.85 | D61: 151.62 | E61: 149.73 | F61: 146.62 | G61: 144.73 | H61: 154.73 | I61: 156.62 | J61: 159.73 | K61: 153.5 | L61: 148.5 | M61: 335.05835
A62: 53 | B62: CASTROLIND | C62: 129.55 | D62: 129.42 | E62: 127.88 | F62: 126.22 | G62: 124.68 | H62: 131.08 | I62: 132.62 | J62: 134.28 | K62: 130.95 | L62: 127.75 | M62: 17.78266
A63: 54 | B63: CHOLAFIN | C63: 582.8 | D63: 580.42 | E63: 574.43 | F63: 566.07 | G63: 560.08 | H63: 588.78 | I63: 594.77 | J63: 603.13 | K63: 586.4 | L63: 572.05 | M63: 70.59325
A64: 55 | B64: CIPLA | C64: 926.9 | D64: 928.07 | E64: 921.13 | F64: 915.37 | G64: 908.43 | H64: 933.83 | I64: 940.77 | J64: 946.53 | K64: 935 | L64: 922.3 | M64: 67.40711
A65: 56 | B65: CUB | C65: 175.05 | D65: 174.47 | E65: 173.18 | F65: 171.32 | G65: 170.03 | H65: 176.33 | I65: 177.62 | J65: 179.48 | K65: 175.75 | L65: 172.6 | M65: 36.36647
A66: 57 | B66: COALINDIA | C66: 147.2 | D66: 147.88 | E66: 146.17 | F66: 145.13 | G66: 143.42 | H66: 148.92 | I66: 150.63 | J66: 151.67 | K66: 149.6 | L66: 146.85 | M66: 130.09821
A67: 58 | B67: COFORGE | C67: 3330.2 | D67: 3343.78 | E67: 3301.67 | F67: 3273.13 | G67: 3231.02 | H67: 3372.32 | I67: 3414.43 | J67: 3442.97 | K67: 3385.9 | L67: 3315.25 | M67: 8.67323
A68: 59 | B68: COLPAL | C68: 1633.05 | D68: 1634.72 | E68: 1619.43 | F68: 1605.82 | G68: 1590.53 | H68: 1648.33 | I68: 1663.62 | J68: 1677.23 | K68: 1650 | L68: 1621.1 | M68: 5.37668
A69: 60 | B69: CONCOR | C69: 586.6 | D69: 592.73 | E69: 576.52 | F69: 566.43 | G69: 550.22 | H69: 602.82 | I69: 619.03 | J69: 629.12 | K69: 608.95 | L69: 582.65 | M69: 30.20824
A70: 61 | B70: COROMANDEL | C70: 834.6 | D70: 822.05 | E70: 806.10 | F70: 777.60 | G70: 761.65 | H70: 850.55 | I70: 866.50 | J70: 895.00 | K70: 838 | L70: 793.55 | M70: 9.61832
A71: 62 | B71: CROMPTON | C71: 388.45 | D71: 390.13 | E71: 382.52 | F71: 376.58 | G71: 368.97 | H71: 396.07 | I71: 403.68 | J71: 409.62 | K71: 397.75 | L71: 384.2 | M71: 20.92569
A72: 63 | B72: CUMMINSIND | C72: 833.5 | D72: 840.90 | E72: 822.60 | F72: 811.70 | G72: 793.40 | H72: 851.80 | I72: 870.10 | J72: 881.00 | K72: 859.2 | L72: 830 | M72: 14.04966
A73: 64 | B73: DLF | C73: 268.4 | D73: 270.50 | E73: 265.05 | F73: 261.70 | G73: 256.25 | H73: 273.85 | I73: 279.30 | J73: 282.65 | K73: 275.95 | L73: 267.15 | M73: 117.98677
A74: 65 | B74: DABUR | C74: 536.75 | D74: 537.40 | E74: 534.80 | F74: 532.85 | G74: 530.25 | H74: 539.35 | I74: 541.95 | J74: 543.90 | K74: 540 | L74: 535.45 | M74: 15.82534
A75: 66 | B75: DALBHARAT | C75: 1830.95 | D75: 1837.57 | E75: 1805.13 | F75: 1779.32 | G75: 1746.88 | H75: 1863.38 | I75: 1895.82 | J75: 1921.63 | K75: 1870 | L75: 1811.75 | M75: 1.58642
A76: 67 | B76: DHANI | C76: 176.7 | D76: 177.37 | E76: 174.58 | F76: 172.47 | G76: 169.68 | H76: 179.48 | I76: 182.27 | J76: 184.38 | K76: 180.15 | L76: 175.25 | M76: 8.37647
A77: 68 | B77: DIVISLAB | C77: 4079.9 | D77: 4077.23 | E77: 4044.47 | F77: 4009.03 | G77: 3976.27 | H77: 4112.67 | I77: 4145.43 | J77: 4180.87 | K77: 4110 | L77: 4041.8 | M77: 4.26797
A78: 69 | B78: LALPATHLAB | C78: 2830.9 | D78: 2843.05 | E78: 2787.85 | F78: 2744.80 | G78: 2689.60 | H78: 2886.10 | I78: 2941.30 | J78: 2984.35 | K78: 2898.25 | L78: 2800 | M78: 4.82846
A79: 70 | B79: DRREDDY | C79: 5216.45 | D79: 5227.42 | E79: 5185.33 | F79: 5154.22 | G79: 5112.13 | H79: 5258.53 | I79: 5300.62 | J79: 5331.73 | K79: 5269.5 | L79: 5196.3 | M79: 7.11634
A80: 71 | B80: EDELWEISS | C80: 63.95 | D80: 63.00 | E80: 62.05 | F80: 60.15 | G80: 59.20 | H80: 64.90 | I80: 65.85 | J80: 67.75 | K80: 63.95 | L80: 61.1 | M80: 52.08648
A81: 72 | B81: EICHERMOT | C81: 2522.3 | D81: 2531.78 | E81: 2504.07 | F81: 2485.83 | G81: 2458.12 | H81: 2550.02 | I81: 2577.73 | J81: 2595.97 | K81: 2559.5 | L81: 2513.55 | M81: 7.4311
A82: 73 | B82: EMAMILTD | C82: 503.9 | D82: 506.28 | E82: 497.62 | F82: 491.33 | G82: 482.67 | H82: 512.57 | I82: 521.23 | J82: 527.52 | K82: 514.95 | L82: 500 | M82: 5.45292
A83: 74 | B83: ENDURANCE | C83: 1398 | D83: 1401.00 | E83: 1382.00 | F83: 1366.00 | G83: 1347.00 | H83: 1417.00 | I83: 1436.00 | J83: 1452.00 | K83: 1420 | L83: 1385 | M83: 1.82913
A84: 75 | B84: ESCORTS | C84: 1158.65 | D84: 1163.28 | E84: 1151.57 | F84: 1144.48 | G84: 1132.77 | H84: 1170.37 | I84: 1182.08 | J84: 1189.17 | K84: 1175 | L84: 1156.2 | M84: 12.70521
A85: 76 | B85: EXIDEIND | C85: 187.15 | D85: 187.42 | E85: 186.33 | F85: 185.52 | G85: 184.43 | H85: 188.23 | I85: 189.32 | J85: 190.13 | K85: 188.5 | L85: 186.6 | M85: 23.19581
A86: 77 | B86: FEDERALBNK | C86: 85.15 | D86: 84.68 | E86: 83.87 | F86: 82.58 | G86: 81.77 | H86: 85.97 | I86: 86.78 | J86: 88.07 | K86: 85.5 | L86: 83.4 | M86: 240.25317
A87: 78 | B87: FORTIS | C87: 227.5 | D87: 226.32 | E87: 222.93 | F87: 218.37 | G87: 214.98 | H87: 230.88 | I87: 234.27 | J87: 238.83 | K87: 229.7 | L87: 221.75 | M87: 37.98892
A88: 79 | B88: FRETAIL | C88: 45.95 | D88: 46.15 | E88: 44.90 | F88: 43.85 | G88: 42.60 | H88: 47.20 | I88: 48.45 | J88: 49.50 | K88: 47.4 | L88: 45.1 | M88: 56.83633
A89: 80 | B89: GAIL | C89: 145.75 | D89: 147.17 | E89: 143.88 | F89: 142.02 | G89: 138.73 | H89: 149.03 | I89: 152.32 | J89: 154.18 | K89: 150.45 | L89: 145.3 | M89: 170.50299
A90: 81 | B90: GMRINFRA | C90: 26.4 | D90: 26.30 | E90: 25.95 | F90: 25.50 | G90: 25.15 | H90: 26.75 | I90: 27.10 | J90: 27.55 | K90: 26.65 | L90: 25.85 | M90: 179.82002
A91: 82 | B91: GICRE | C91: 194.05 | D91: 195.15 | E91: 192.50 | F91: 190.95 | G91: 188.30 | H91: 196.70 | I91: 199.35 | J91: 200.90 | K91: 197.8 | L91: 193.6 | M91: 4.59892
A92: 83 | B92: GLENMARK | C92: 607.25 | D92: 608.55 | E92: 604.35 | F92: 601.45 | G92: 597.25 | H92: 611.45 | I92: 615.65 | J92: 618.55 | K92: 612.75 | L92: 605.65 | M92: 11.85358
A93: 84 | B93: GODREJAGRO | C93: 549.55 | D93: 549.07 | E93: 542.48 | F93: 535.42 | G93: 528.83 | H93: 556.13 | I93: 562.72 | J93: 569.78 | K93: 555.65 | L93: 542 | M93: 2.29057
A94: 85 | B94: GODREJCP | C94: 818.45 | D94: 818.63 | E94: 813.62 | F94: 808.78 | G94: 803.77 | H94: 823.47 | I94: 828.48 | J94: 833.32 | K94: 823.65 | L94: 813.8 | M94: 15.105
A95: 86 | B95: GODREJIND | C95: 563.6 | D95: 567.67 | E95: 551.93 | F95: 540.27 | G95: 524.53 | H95: 579.33 | I95: 595.07 | J95: 606.73 | K95: 583.4 | L95: 556 | M95: 6.35668
A96: 87 | B96: GODREJPROP | C96: 1305.25 | D96: 1311.07 | E96: 1294.18 | F96: 1283.12 | G96: 1266.23 | H96: 1322.13 | I96: 1339.02 | J96: 1350.08 | K96: 1327.95 | L96: 1300 | M96: 13.92137
A97: 88 | B97: GRASIM | C97: 1371.85 | D97: 1374.60 | E97: 1362.25 | F97: 1352.65 | G97: 1340.30 | H97: 1384.20 | I97: 1396.55 | J97: 1406.15 | K97: 1386.95 | L97: 1365 | M97: 7.40146
A98: 89 | B98: GUJGASLTD | C98: 512 | D98: 513.00 | E98: 505.00 | F98: 498.00 | G98: 490.00 | H98: 520.00 | I98: 528.00 | J98: 535.00 | K98: 521 | L98: 506 | M98: 18.66328
A99: 90 | B99: GSPL | C99: 271.8 | D99: 271.25 | E99: 269.55 | F99: 267.30 | G99: 265.60 | H99: 273.50 | I99: 275.20 | J99: 277.45 | K99: 272.95 | L99: 269 | M99: 2.06621
A100: 91 | B100: HCLTECH | C100: 930.65 | D100: 929.43 | E100: 924.22 | F100: 917.78 | G100: 912.57 | H100: 935.87 | I100: 941.08 | J100: 947.52 | K100: 934.65 | L100: 923 | M100: 41.61547
A101: 92 | B101: HDFCAMC | C101: 2813.6 | D101: 2815.82 | E101: 2797.83 | F101: 2782.07 | G101: 2764.08 | H101: 2831.58 | I101: 2849.57 | J101: 2865.33 | K101: 2833.8 | L101: 2800.05 | M101: 1.30135
A102: 93 | B102: HDFCBANK | C102: 1497.3 | D102: 1480.73 | E102: 1459.57 | F102: 1421.83 | G102: 1400.67 | H102: 1518.47 | I102: 1539.63 | J102: 1577.37 | K102: 1501.9 | L102: 1443 | M102: 96.70823
A103: 94 | B103: HDFCLIFE | C103: 670.7 | D103: 670.87 | E103: 666.83 | F103: 662.97 | G103: 658.93 | H103: 674.73 | I103: 678.77 | J103: 682.63 | K103: 674.9 | L103: 667 | M103: 16.29616
A104: 95 | B104: HAVELLS | C104: 1028.3 | D104: 1042.10 | E104: 1011.20 | F104: 994.10 | G104: 963.20 | H104: 1059.20 | I104: 1090.10 | J104: 1107.20 | K104: 1073 | L104: 1025 | M104: 66.65482
A105: 96 | B105: HEROMOTOCO | C105: 2884.4 | D105: 2869.83 | E105: 2849.57 | F105: 2814.73 | G105: 2794.47 | H105: 2904.67 | I105: 2924.93 | J105: 2959.77 | K105: 2890.1 | L105: 2835 | M105: 16.58538
A106: 97 | B106: HINDALCO | C106: 389.8 | D106: 388.35 | E106: 384.80 | F106: 379.80 | G106: 376.25 | H106: 393.35 | I106: 396.90 | J106: 401.90 | K106: 391.9 | L106: 383.35 | M106: 224.06993
A107: 98 | B107: HINDPETRO | C107: 276.3 | D107: 279.63 | E107: 270.97 | F107: 265.63 | G107: 256.97 | H107: 284.97 | I107: 293.63 | J107: 298.97 | K107: 288.3 | L107: 274.3 | M107: 331.42356
A108: 99 | B108: HINDUNILVR | C108: 2362.25 | D108: 2356.13 | E108: 2346.12 | F108: 2329.98 | G108: 2319.97 | H108: 2372.27 | I108: 2382.28 | J108: 2398.42 | K108: 2366.15 | L108: 2340 | M108: 7.71492
A109: 100 | B109: HINDZINC | C109: 344.55 | D109: 346.98 | E109: 339.97 | F109: 335.38 | G109: 328.37 | H109: 351.57 | I109: 358.58 | J109: 363.17 | K109: 354 | L109: 342.4 | M109: 34.2282
A110: 101 | B110: HUDCO | C110: 46.8 | D110: 46.85 | E110: 46.15 | F110: 45.50 | G110: 44.80 | H110: 47.50 | I110: 48.20 | J110: 48.85 | K110: 47.55 | L110: 46.2 | M110: 35.59857
A111: 102 | B111: HDFC | C111: 2518.05 | D111: 2500.38 | E111: 2474.82 | F111: 2431.58 | G111: 2406.02 | H111: 2543.62 | I111: 2569.18 | J111: 2612.42 | K111: 2525.95 | L111: 2457.15 | M111: 27.11607
A112: 103 | B112: ICICIBANK | C112: 642.45 | D112: 636.23 | E112: 628.52 | F112: 614.58 | G112: 606.87 | H112: 650.17 | I112: 657.88 | J112: 671.82 | K112: 643.95 | L112: 622.3 | M112: 239.75898
A113: 104 | B113: ICICIGI | C113: 1527.4 | D113: 1529.38 | E113: 1504.02 | F113: 1480.63 | G113: 1455.27 | H113: 1552.77 | I113: 1578.13 | J113: 1601.52 | K113: 1554.75 | L113: 1506 | M113: 4.03021
A114: 105 | B114: ICICIPRULI | C114: 544.9 | D114: 544.18 | E114: 540.82 | F114: 536.73 | G114: 533.37 | H114: 548.27 | I114: 551.63 | J114: 555.72 | K114: 547.55 | L114: 540.1 | M114: 8.21007
A115: 106 | B115: ISEC | C115: 589.1 | D115: 586.02 | E115: 576.08 | F115: 563.07 | G115: 553.13 | H115: 599.03 | I115: 608.97 | J115: 621.98 | K115: 595.95 | L115: 573 | M115: 33.11064
A116: 107 | B116: IDFCFIRSTB | C116: 57.25 | D116: 56.75 | E116: 55.80 | F116: 54.35 | G116: 53.40 | H116: 58.20 | I116: 59.15 | J116: 60.60 | K116: 57.7 | L116: 55.3 | M116: 524.28351
A117: 108 | B117: ITC | C117: 209.05 | D117: 208.77 | E117: 207.68 | F117: 206.32 | G117: 205.23 | H117: 210.13 | I117: 211.22 | J117: 212.58 | K117: 209.85 | L117: 207.4 | M117: 226.3802
A118: 109 | B118: IBULHSGFIN | C118: 215.5 | D118: 216.47 | E118: 211.13 | F118: 206.77 | G118: 201.43 | H118: 220.83 | I118: 226.17 | J118: 230.53 | K118: 221.8 | L118: 212.1 | M118: 332.00501
A119: 110 | B119: INDHOTEL | C119: 130.25 | D119: 129.52 | E119: 128.03 | F119: 125.82 | G119: 124.33 | H119: 131.73 | I119: 133.22 | J119: 135.43 | K119: 131 | L119: 127.3 | M119: 31.1908
A120: 111 | B120: IOC | C120: 104.3 | D120: 104.92 | E120: 102.93 | F120: 101.57 | G120: 99.58 | H120: 106.28 | I120: 108.27 | J120: 109.63 | K120: 106.9 | L120: 103.55 | M120: 385.79179
A121: 112 | B121: IRCTC | C121: 1862 | D121: 1868.92 | E121: 1843.13 | F121: 1824.27 | G121: 1798.48 | H121: 1887.78 | I121: 1913.57 | J121: 1932.43 | K121: 1894.7 | L121: 1850.05 | M121: 12.00153
A122: 113 | B122: IGL | C122: 502.4 | D122: 503.62 | E122: 497.43 | F122: 492.47 | G122: 486.28 | H122: 508.58 | I122: 514.77 | J122: 519.73 | K122: 509.8 | L122: 498.65 | M122: 27.29818
A123: 114 | B123: INDUSTOWER | C123: 245.2 | D123: 244.62 | E123: 242.83 | F123: 240.47 | G123: 238.68 | H123: 246.98 | I123: 248.77 | J123: 251.13 | K123: 246.4 | L123: 242.25 | M123: 19.85366
A124: 115 | B124: INDUSINDBK | C124: 1016 | D124: 1005.93 | E124: 991.87 | F124: 967.73 | G124: 953.67 | H124: 1030.07 | I124: 1044.13 | J124: 1068.27 | K124: 1020 | L124: 981.8 | M124: 125.9186
A125: 116 | B125: NAUKRI | C125: 4333.7 | D125: 4380.87 | E125: 4264.88 | F125: 4196.07 | G125: 4080.08 | H125: 4449.68 | I125: 4565.67 | J125: 4634.48 | K125: 4496.85 | L125: 4312.05 | M125: 7.96681
A126: 117 | B126: INFY | C126: 1354.5 | D126: 1352.78 | E126: 1348.07 | F126: 1341.63 | G126: 1336.92 | H126: 1359.22 | I126: 1363.93 | J126: 1370.37 | K126: 1357.5 | L126: 1346.35 | M126: 49.69733
A127: 118 | B127: INDIGO | C127: 1692.5 | D127: 1685.85 | E127: 1667.65 | F127: 1642.80 | G127: 1624.60 | H127: 1710.70 | I127: 1728.90 | J127: 1753.75 | K127: 1704.05 | L127: 1661 | M127: 5.12802
A128: 119 | B128: IPCALAB | C128: 2227.4 | D128: 2229.23 | E128: 2206.17 | F128: 2184.93 | G128: 2161.87 | H128: 2250.47 | I128: 2273.53 | J128: 2294.77 | K128: 2252.3 | L128: 2208 | M128: 3.58479
A129: 120 | B129: JSWENERGY | C129: 117.1 | D129: 117.10 | E129: 115.70 | F129: 114.30 | G129: 112.90 | H129: 118.50 | I129: 119.90 | J129: 121.30 | K129: 118.5 | L129: 115.7 | M129: 31.35122
A130: 121 | B130: JSWSTEEL | C130: 698.2 | D130: 699.70 | E130: 693.50 | F130: 688.80 | G130: 682.60 | H130: 704.40 | I130: 710.60 | J130: 715.30 | K130: 705.9 | L130: 695 | M130: 73.40528
A131: 122 | B131: JINDALSTEL | C131: 403.15 | D131: 405.55 | E131: 398.60 | F131: 394.05 | G131: 387.10 | H131: 410.10 | I131: 417.05 | J131: 421.60 | K131: 412.5 | L131: 401 | M131: 106.23656
A132: 123 | B132: JUBLFOOD | C132: 3020.15 | D132: 3024.37 | E132: 2965.78 | F132: 2911.42 | G132: 2852.83 | H132: 3078.73 | I132: 3137.32 | J132: 3191.68 | K132: 3082.95 | L132: 2970 | M132: 8.89261
A133: 124 | B133: KOTAKBANK | C133: 1757.65 | D133: 1745.87 | E133: 1727.28 | F133: 1696.92 | G133: 1678.33 | H133: 1776.23 | I133: 1794.82 | J133: 1825.18 | K133: 1764.45 | L133: 1715.5 | M133: 42.93112
A134: 125 | B134: L&TFH | C134: 91 | D134: 91.13 | E134: 90.37 | F134: 89.73 | G134: 88.97 | H134: 91.77 | I134: 92.53 | J134: 93.17 | K134: 91.9 | L134: 90.5 | M134: 105.74773
A135: 126 | B135: LTTS | C135: 2624.25 | D135: 2629.72 | E135: 2604.78 | F135: 2585.32 | G135: 2560.38 | H135: 2649.18 | I135: 2674.12 | J135: 2693.58 | K135: 2654.65 | L135: 2610.25 | M135: 1.31585
A136: 127 | B136: LICHSGFIN | C136: 456.05 | D136: 455.68 | E136: 452.37 | F136: 448.68 | G136: 445.37 | H136: 459.37 | I136: 462.68 | J136: 466.37 | K136: 459 | L136: 452 | M136: 36.68647
A137: 128 | B137: LTI | C137: 3655.65 | D137: 3664.38 | E137: 3626.37 | F137: 3597.08 | G137: 3559.07 | H137: 3693.67 | I137: 3731.68 | J137: 3760.97 | K137: 3702.4 | L137: 3635.1 | M137: 2.59149
A138: 129 | B138: LT | C138: 1418.05 | D138: 1416.62 | E138: 1408.53 | F138: 1399.02 | G138: 1390.93 | H138: 1426.13 | I138: 1434.22 | J138: 1443.73 | K138: 1424.7 | L138: 1407.1 | M138: 21.85322
A139: 130 | B139: LUPIN | C139: 1214.55 | D139: 1212.65 | E139: 1207.40 | F139: 1200.25 | G139: 1195.00 | H139: 1219.80 | I139: 1225.05 | J139: 1232.20 | K139: 1217.9 | L139: 1205.5 | M139: 12.48152
A140: 131 | B140: MRF | C140: 82178.2 | D140: 81987.28 | E140: 81490.92 | F140: 80803.63 | G140: 80307.27 | H140: 82674.57 | I140: 83170.93 | J140: 83858.22 | K140: 82483.65 | L140: 81300 | M140: 0.2021
A141: 132 | B141: MGL | C141: 1130.85 | D141: 1128.65 | E141: 1114.40 | F141: 1097.95 | G141: 1083.70 | H141: 1145.10 | I141: 1159.35 | J141: 1175.80 | K141: 1142.9 | L141: 1112.2 | M141: 5.25963
A142: 133 | B142: M&MFIN | C142: 160.3 | D142: 160.63 | E142: 158.77 | F142: 157.23 | G142: 155.37 | H142: 162.17 | I142: 164.03 | J142: 165.57 | K142: 162.5 | L142: 159.1 | M142: 154.04629
A143: 134 | B143: M&M | C143: 818.95 | D143: 813.57 | E143: 806.13 | F143: 793.32 | G143: 785.88 | H143: 826.38 | I143: 833.82 | J143: 846.63 | K143: 821 | L143: 800.75 | M143: 57.2163
A144: 135 | B144: MANAPPURAM | C144: 159.65 | D144: 160.07 | E144: 158.28 | F144: 156.92 | G144: 155.13 | H144: 161.43 | I144: 163.22 | J144: 164.58 | K144: 161.85 | L144: 158.7 | M144: 25.7931
A145: 136 | B145: MARICO | C145: 459.7 | D145: 462.53 | E145: 454.77 | F145: 449.83 | G145: 442.07 | H145: 467.47 | I145: 475.23 | J145: 480.17 | K145: 470.3 | L145: 457.6 | M145: 24.8847
A146: 137 | B146: MARUTI | C146: 6814.65 | D146: 6798.13 | E146: 6760.77 | F146: 6706.88 | G146: 6669.52 | H146: 6852.02 | I146: 6889.38 | J146: 6943.27 | K146: 6835.5 | L146: 6744.25 | M146: 4.34363
A147: 138 | B147: MFSL | C147: 902.75 | D147: 899.07 | E147: 883.73 | F147: 864.72 | G147: 849.38 | H147: 918.08 | I147: 933.42 | J147: 952.43 | K147: 914.4 | L147: 880.05 | M147: 7.7577
A148: 139 | B148: MINDTREE | C148: 2122.7 | D148: 2111.90 | E148: 2088.85 | F148: 2055.00 | G148: 2031.95 | H148: 2145.75 | I148: 2168.80 | J148: 2202.65 | K148: 2134.95 | L148: 2078.05 | M148: 9.68443
A149: 140 | B149: MOTHERSUMI | C149: 245.45 | D149: 244.13 | E149: 240.37 | F149: 235.28 | G149: 231.52 | H149: 249.22 | I149: 252.98 | J149: 258.07 | K149: 247.9 | L149: 239.05 | M149: 124.77007
A150: 141 | B150: MPHASIS | C150: 1786.05 | D150: 1791.30 | E150: 1742.80 | F150: 1699.55 | G150: 1651.05 | H150: 1834.55 | I150: 1883.05 | J150: 1926.30 | K150: 1839.8 | L150: 1748.05 | M150: 7.99241
A151: 142 | B151: MUTHOOTFIN | C151: 1265.2 | D151: 1268.15 | E151: 1258.30 | F151: 1251.40 | G151: 1241.55 | H151: 1275.05 | I151: 1284.90 | J151: 1291.80 | K151: 1278 | L151: 1261.25 | M151: 5.79488
A152: 143 | B152: NATCOPHARM | C152: 990.05 | D152: 974.82 | E152: 952.23 | F152: 914.42 | G152: 891.83 | H152: 1012.63 | I152: 1035.22 | J152: 1073.03 | K152: 997.4 | L152: 937 | M152: 34.76916
A153: 144 | B153: NMDC | C153: 176.2 | D153: 177.38 | E153: 173.87 | F153: 171.53 | G153: 168.02 | H153: 179.72 | I153: 183.23 | J153: 185.57 | K153: 180.9 | L153: 175.05 | M153: 135.45641
A154: 145 | B154: NTPC | C154: 112.85 | D154: 112.42 | E154: 111.68 | F154: 110.52 | G154: 109.78 | H154: 113.58 | I154: 114.32 | J154: 115.48 | K154: 113.15 | L154: 111.25 | M154: 121.71685
A155: 146 | B155: NATIONALUM | C155: 70.8 | D155: 71.28 | E155: 70.07 | F155: 69.33 | G155: 68.12 | H155: 72.02 | I155: 73.23 | J155: 73.97 | K155: 72.5 | L155: 70.55 | M155: 207.65563
A156: 147 | B156: NAVINFLUOR | C156: 3198.9 | D156: 3210.30 | E156: 3180.60 | F156: 3162.30 | G156: 3132.60 | H156: 3228.60 | I156: 3258.30 | J156: 3276.60 | K156: 3240 | L156: 3192 | M156: 1.99858
A157: 148 | B157: NESTLEIND | C157: 17497.1 | D157: 17442.45 | E157: 17334.90 | F157: 17172.70 | G157: 17065.15 | H157: 17604.65 | I157: 17712.20 | J157: 17874.40 | K157: 17550 | L157: 17280.25 | M157: 0.6726
A158: 149 | B158: NAM-INDIA | C158: 350.9 | D158: 352.42 | E158: 348.48 | F158: 346.07 | G158: 342.13 | H158: 354.83 | I158: 358.77 | J158: 361.18 | K158: 356.35 | L158: 350 | M158: 6.00233
A159: 150 | B159: OBEROIRLTY | C159: 612 | D159: 612.97 | E159: 592.18 | F159: 572.37 | G159: 551.58 | H159: 632.78 | I159: 653.57 | J159: 673.38 | K159: 633.75 | L159: 593.15 | M159: 16.14721
A160: 151 | B160: ONGC | C160: 112.75 | D160: 112.62 | E160: 111.18 | F160: 109.62 | G160: 108.18 | H160: 114.18 | I160: 115.62 | J160: 117.18 | K160: 114.05 | L160: 111.05 | M160: 205.62816
A161: 152 | B161: OIL | C161: 131.65 | D161: 132.28 | E161: 130.77 | F161: 129.88 | G161: 128.37 | H161: 133.17 | I161: 134.68 | J161: 135.57 | K161: 133.8 | L161: 131.4 | M161: 10.22258
A162: 153 | B162: OFSS | C162: 3659.7 | D162: 3659.88 | E162: 3629.82 | F162: 3599.93 | G162: 3569.87 | H162: 3689.77 | I162: 3719.83 | J162: 3749.72 | K162: 3689.95 | L162: 3630 | M162: 1.30557
A163: 154 | B163: PIIND | C163: 2565.45 | D163: 2578.83 | E163: 2541.97 | F163: 2518.48 | G163: 2481.62 | H163: 2602.32 | I163: 2639.18 | J163: 2662.67 | K163: 2615.7 | L163: 2555.35 | M163: 6.69931
A164: 155 | B164: PAGEIND | C164: 29279.75 | D164: 29468.17 | E164: 28911.58 | F164: 28543.42 | G164: 27986.83 | H164: 29836.33 | I164: 30392.92 | J164: 30761.08 | K164: 30024.75 | L164: 29100 | M164: 0.35223
A165: 156 | B165: PETRONET | C165: 236.55 | D165: 237.02 | E165: 235.13 | F165: 233.72 | G165: 231.83 | H165: 238.43 | I165: 240.32 | J165: 241.73 | K165: 238.9 | L165: 235.6 | M165: 26.94744
A166: 157 | B166: PFIZER | C166: 5233.35 | D166: 5245.57 | E166: 5210.83 | F166: 5188.32 | G166: 5153.58 | H166: 5268.08 | I166: 5302.82 | J166: 5325.33 | K166: 5280.3 | L166: 5223.05 | M166: 0.31037
A167: 158 | B167: PIDILITIND | C167: 1978 | D167: 1972.00 | E167: 1952.00 | F167: 1926.00 | G167: 1906.00 | H167: 1998.00 | I167: 2018.00 | J167: 2044.00 | K167: 1992 | L167: 1946 | M167: 14.7798
A168: 159 | B168: PEL | C168: 1728.7 | D168: 1721.20 | E168: 1693.60 | F168: 1658.50 | G168: 1630.90 | H168: 1756.30 | I168: 1783.90 | J168: 1819.00 | K168: 1748.8 | L168: 1686.1 | M168: 16.5914
A169: 160 | B169: POLYCAB | C169: 1626.65 | D169: 1631.52 | E169: 1610.13 | F169: 1593.62 | G169: 1572.23 | H169: 1648.03 | I169: 1669.42 | J169: 1685.93 | K169: 1652.9 | L169: 1615 | M169: 3.01419
A170: 161 | B170: PFC | C170: 118.85 | D170: 118.97 | E170: 117.68 | F170: 116.52 | G170: 115.23 | H170: 120.13 | I170: 121.42 | J170: 122.58 | K170: 120.25 | L170: 117.8 | M170: 109.74303
A171: 162 | B171: POWERGRID | C171: 227.95 | D171: 227.73 | E171: 226.22 | F171: 224.48 | G171: 222.97 | H171: 229.47 | I171: 230.98 | J171: 232.72 | K171: 229.25 | L171: 226 | M171: 122.07875
A172: 163 | B172: PRESTIGE | C172: 267.85 | D172: 268.63 | E172: 266.22 | F172: 264.58 | G172: 262.17 | H172: 270.27 | I172: 272.68 | J172: 274.32 | K172: 271.05 | L172: 267 | M172: 2.54367
A173: 164 | B173: PGHH | C173: 13303.5 | D173: 13302.72 | E173: 13264.08 | F173: 13224.67 | G173: 13186.03 | H173: 13342.13 | I173: 13380.77 | J173: 13420.18 | K173: 13341.35 | L173: 13263.3 | M173: 0.02113
A174: 165 | B174: PNB | C174: 38.05 | D174: 37.98 | E174: 37.62 | F174: 37.18 | G174: 36.82 | H174: 38.42 | I174: 38.78 | J174: 39.22 | K174: 38.35 | L174: 37.55 | M174: 1783.07284
A175: 166 | B175: RBLBANK | C175: 207.7 | D175: 207.28 | E175: 205.57 | F175: 203.43 | G175: 201.72 | H175: 209.42 | I175: 211.13 | J175: 213.27 | K175: 209 | L175: 205.15 | M175: 113.36046
A176: 167 | B176: RECLTD | C176: 144.2 | D176: 143.57 | E176: 141.48 | F176: 138.77 | G176: 136.68 | H176: 146.28 | I176: 148.37 | J176: 151.08 | K176: 145.65 | L176: 140.85 | M176: 49.20322
A177: 168 | B177: RAJESHEXPO | C177: 516.45 | D177: 523.45 | E177: 507.00 | F177: 497.55 | G177: 481.10 | H177: 532.90 | I177: 549.35 | J177: 558.80 | K177: 539.9 | L177: 514 | M177: 6.69819
A178: 169 | B178: RELIANCE | C178: 2002.55 | D178: 1999.38 | E178: 1989.17 | F178: 1975.78 | G178: 1965.57 | H178: 2012.77 | I178: 2022.98 | J178: 2036.37 | K178: 2009.6 | L178: 1986 | M178: 49.77555
A179: 170 | B179: SBICARD | C179: 1064.2 | D179: 1062.13 | E179: 1047.72 | F179: 1031.23 | G179: 1016.82 | H179: 1078.62 | I179: 1093.03 | J179: 1109.52 | K179: 1076.55 | L179: 1045.65 | M179: 34.33549
A180: 171 | B180: SBILIFE | C180: 969.25 | D180: 970.07 | E180: 964.43 | F180: 959.62 | G180: 953.98 | H180: 974.88 | I180: 980.52 | J180: 985.33 | K180: 975.7 | L180: 965.25 | M180: 12.45988
A181: 172 | B181: SRF | C181: 6451.8 | D181: 6467.97 | E181: 6405.93 | F181: 6360.07 | G181: 6298.03 | H181: 6513.83 | I181: 6575.87 | J181: 6621.73 | K181: 6530 | L181: 6422.1 | M181: 0.98965
A182: 173 | B182: SANOFI | C182: 7791.35 | D182: 7790.78 | E182: 7756.57 | F182: 7721.78 | G182: 7687.57 | H182: 7825.57 | I182: 7859.78 | J182: 7894.57 | K182: 7825 | L182: 7756 | M182: 0.06855
A183: 174 | B183: SHREECEM | C183: 27622.65 | D183: 27712.03 | E183: 27449.07 | F183: 27275.48 | G183: 27012.52 | H183: 27885.62 | I183: 28148.58 | J183: 28322.17 | K183: 27975 | L183: 27538.45 | M183: 0.48242
A184: 175 | B184: SRTRANSFIN | C184: 1478.75 | D184: 1462.27 | E184: 1436.53 | F184: 1394.32 | G184: 1368.58 | H184: 1504.48 | I184: 1530.22 | J184: 1572.43 | K184: 1488 | L184: 1420.05 | M184: 22.51783
A185: 176 | B185: SIEMENS | C185: 1986.35 | D185: 1993.77 | E185: 1967.93 | F185: 1949.52 | G185: 1923.68 | H185: 2012.18 | I185: 2038.02 | J185: 2056.43 | K185: 2019.6 | L185: 1975.35 | M185: 2.22759
A186: 177 | B186: SBIN | C186: 401.2 | D186: 394.53 | E186: 384.67 | F186: 368.13 | G186: 358.27 | H186: 411.07 | I186: 420.93 | J186: 437.47 | K186: 404.4 | L186: 378 | M186: 1928.10772
A187: 178 | B187: SAIL | C187: 122 | D187: 122.73 | E187: 120.67 | F187: 119.33 | G187: 117.27 | H187: 124.07 | I187: 126.13 | J187: 127.47 | K187: 124.8 | L187: 121.4 | M187: 362.01475
A188: 179 | B188: SUNPHARMA | C188: 690.4 | D188: 690.97 | E188: 687.43 | F188: 684.47 | G188: 680.93 | H188: 693.93 | I188: 697.47 | J188: 700.43 | K188: 694.5 | L188: 688 | M188: 34.34231
A189: 180 | B189: SUNTV | C189: 524.7 | D189: 526.57 | E189: 521.13 | F189: 517.57 | G189: 512.13 | H189: 530.13 | I189: 535.57 | J189: 539.13 | K189: 532 | L189: 523 | M189: 16.47713
A190: 181 | B190: SYNGENE | C190: 570.7 | D190: 573.92 | E190: 565.83 | F190: 560.97 | G190: 552.88 | H190: 578.78 | I190: 586.87 | J190: 591.73 | K190: 582 | L190: 569.05 | M190: 2.32695
A191: 182 | B191: TVSMOTOR | C191: 625 | D191: 628.08 | E191: 620.37 | F191: 615.73 | G191: 608.02 | H191: 632.72 | I191: 640.43 | J191: 645.07 | K191: 635.8 | L191: 623.45 | M191: 10.7314
A192: 183 | B192: TATACHEM | C192: 707.85 | D192: 710.05 | E192: 704.15 | F192: 700.45 | G192: 694.55 | H192: 713.75 | I192: 719.65 | J192: 723.35 | K192: 715.95 | L192: 706.35 | M192: 19.6184
A193: 184 | B193: TCS | C193: 3080.5 | D193: 3074.60 | E193: 3061.00 | F193: 3041.50 | G193: 3027.90 | H193: 3094.10 | I193: 3107.70 | J193: 3127.20 | K193: 3088.2 | L193: 3055.1 | M193: 16.85566
A194: 185 | B194: TATACONSUM | C194: 649.7 | D194: 648.83 | E194: 645.17 | F194: 640.63 | G194: 636.97 | H194: 653.37 | I194: 657.03 | J194: 661.57 | K194: 652.5 | L194: 644.3 | M194: 18.33201
A195: 186 | B195: TATAMOTORS | C195: 313.1 | D195: 312.77 | E195: 309.83 | F195: 306.57 | G195: 303.63 | H195: 316.03 | I195: 318.97 | J195: 322.23 | K195: 315.7 | L195: 309.5 | M195: 403.58753
A196: 187 | B196: TATAPOWER | C196: 104.9 | D196: 104.73 | E196: 103.47 | F196: 102.03 | G196: 100.77 | H196: 106.17 | I196: 107.43 | J196: 108.87 | K196: 106 | L196: 103.3 | M196: 270.04076
A197: 188 | B197: TATASTEEL | C197: 1113.1 | D197: 1114.28 | E197: 1104.67 | F197: 1096.23 | G197: 1086.62 | H197: 1122.72 | I197: 1132.33 | J197: 1140.77 | K197: 1123.9 | L197: 1105.85 | M197: 141.04926
A198: 189 | B198: TECHM | C198: 980.5 | D198: 979.45 | E198: 972.90 | F198: 965.30 | G198: 958.75 | H198: 987.05 | I198: 993.60 | J198: 1001.20 | K198: 986 | L198: 971.85 | M198: 15.34262
A199: 190 | B199: RAMCOCEM | C199: 991.15 | D199: 997.40 | E199: 981.90 | F199: 972.65 | G199: 957.15 | H199: 1006.65 | I199: 1022.15 | J199: 1031.40 | K199: 1012.9 | L199: 988.15 | M199: 9.99725
A200: 191 | B200: TITAN | C200: 1538.35 | D200: 1541.58 | E200: 1530.32 | F200: 1522.28 | G200: 1511.02 | H200: 1549.62 | I200: 1560.88 | J200: 1568.92 | K200: 1552.85 | L200: 1533.55 | M200: 11.58893
A201: 192 | B201: TORNTPHARM | C201: 2717.95 | D201: 2729.13 | E201: 2693.82 | F201: 2669.68 | G201: 2634.37 | H201: 2753.27 | I201: 2788.58 | J201: 2812.72 | K201: 2764.45 | L201: 2705 | M201: 2.8019
A202: 193 | B202: TORNTPOWER | C202: 450.6 | D202: 447.53 | E202: 429.17 | F202: 407.73 | G202: 389.37 | H202: 468.97 | I202: 487.33 | J202: 508.77 | K202: 465.9 | L202: 426.1 | M202: 156.61484
A203: 194 | B203: TRENT | C203: 826.85 | D203: 820.72 | E203: 809.13 | F203: 791.42 | G203: 779.83 | H203: 838.43 | I203: 850.02 | J203: 867.73 | K203: 832.3 | L203: 803 | M203: 8.06206
A204: 195 | B204: UPL | C204: 779.85 | D204: 776.37 | E204: 766.73 | F204: 753.62 | G204: 743.98 | H204: 789.48 | I204: 799.12 | J204: 812.23 | K204: 786 | L204: 763.25 | M204: 80.97156
A205: 196 | B205: ULTRACEMCO | C205: 6637.6 | D205: 6634.13 | E205: 6593.52 | F205: 6549.43 | G205: 6508.82 | H205: 6678.22 | I205: 6718.83 | J205: 6762.92 | K205: 6674.75 | L205: 6590.05 | M205: 3.07027
... 29 more rows

Sheet MidCap Intra
L5: Back To Main Page
A6: FOR INTRA DAY TRADING | K6: =Main!B10 -> 2021-05-24
A9: Sr.no | B9: Scrip | C9: CLOSE RATE | D9: Pivot Point | E9: Supports | H9: Resistances
C10: Point | E10: S1 | F10: S2 | G10: S3 | H10: R1 | I10: R2 | J10: R3 | K10: HIGH | L10: LOW | M10: Total Trade Quanity in Lakhs
A11: 1 | B11: 3MINDIA | C11: 26092.7 | D11: 26085.35 | E11: 25689.60 | F11: 25286.50 | G11: 24890.75 | H11: 26488.45 | I11: 26884.20 | J11: 27287.30 | K11: 26481.1 | L11: 25682.25 | M11: 0.04279
A12: 2 | B12: ABB | C12: 1433.1 | D12: 1433.85 | E12: 1424.00 | F12: 1414.90 | G12: 1405.05 | H12: 1442.95 | I12: 1452.80 | J12: 1461.90 | K12: 1443.7 | L12: 1424.75 | M12: 1.41945
A13: 3 | B13: POWERINDIA | C13: 1772.8 | D13: 1764.07 | E13: 1717.13 | F13: 1661.47 | G13: 1614.53 | H13: 1819.73 | I13: 1866.67 | J13: 1922.33 | K13: 1811 | L13: 1708.4 | M13: 0.68647
A14: 4 | B14: ACC | C14: 1965.25 | D14: 1970.83 | E14: 1953.72 | F14: 1942.18 | G14: 1925.07 | H14: 1982.37 | I14: 1999.48 | J14: 2011.02 | K14: 1987.95 | L14: 1959.3 | M14: 6.74816
A15: 5 | B15: AIAENG | C15: 1985 | D15: 1980.33 | E15: 1965.67 | F15: 1946.33 | G15: 1931.67 | H15: 1999.67 | I15: 2014.33 | J15: 2033.67 | K15: 1995 | L15: 1961 | M15: 0.22195
A16: 6 | B16: APLAPOLLO | C16: 1253.05 | D16: 1261.02 | E16: 1237.03 | F16: 1221.02 | G16: 1197.03 | H16: 1277.03 | I16: 1301.02 | J16: 1317.03 | K16: 1285 | L16: 1245 | M16: 0.7442
A17: 7 | B17: AUBANK | C17: 980.5 | D17: 976.50 | E17: 964.05 | F17: 947.60 | G17: 935.15 | H17: 992.95 | I17: 1005.40 | J17: 1021.85 | K17: 988.95 | L17: 960.05 | M17: 11.69852
A18: 8 | B18: AARTIDRUGS | C18: 749.3 | D18: 751.40 | E18: 737.90 | F18: 726.50 | G18: 713.00 | H18: 762.80 | I18: 776.30 | J18: 787.70 | K18: 764.9 | L18: 740 | M18: 4.24809
A19: 9 | B19: AARTIIND | C19: 1664.65 | D19: 1682.23 | E19: 1642.47 | F19: 1620.28 | G19: 1580.52 | H19: 1704.42 | I19: 1744.18 | J19: 1766.37 | K19: 1722 | L19: 1660.05 | M19: 7.55839
A20: 10 | B20: AAVAS | C20: 2309.15 | D20: 2310.88 | E20: 2297.77 | F20: 2286.38 | G20: 2273.27 | H20: 2322.27 | I20: 2335.38 | J20: 2346.77 | K20: 2324 | L20: 2299.5 | M20: 0.4903
A21: 11 | B21: ABBOTINDIA | C21: 16036.7 | D21: 16042.27 | E21: 15894.53 | F21: 15752.37 | G21: 15604.63 | H21: 16184.43 | I21: 16332.17 | J21: 16474.33 | K21: 16190 | L21: 15900.1 | M21: 0.09375
A22: 12 | B22: ADANIENT | C22: 1315.1 | D22: 1317.05 | E22: 1298.10 | F22: 1281.10 | G22: 1262.15 | H22: 1334.05 | I22: 1353.00 | J22: 1370.00 | K22: 1336 | L22: 1300.05 | M22: 83.14215
A23: 13 | B23: ADANIGREEN | C23: 1299.2 | D23: 1297.23 | E23: 1273.97 | F23: 1248.73 | G23: 1225.47 | H23: 1322.47 | I23: 1345.73 | J23: 1370.97 | K23: 1320.5 | L23: 1272 | M23: 11.45075
A24: 14 | B24: ADANIPORTS | C24: 769.2 | D24: 770.37 | E24: 765.48 | F24: 761.77 | G24: 756.88 | H24: 774.08 | I24: 778.97 | J24: 782.68 | K24: 775.25 | L24: 766.65 | M24: 52.74817
A25: 15 | B25: ATGL | C25: 1338.7 | D25: 1349.63 | E25: 1299.27 | F25: 1259.83 | G25: 1209.47 | H25: 1389.07 | I25: 1439.43 | J25: 1478.87 | K25: 1400 | L25: 1310.2 | M25: 66.74625
A26: 16 | B26: ADANITRANS | C26: 1453.85 | D26: 1441.30 | E26: 1427.60 | F26: 1401.35 | G26: 1387.65 | H26: 1467.55 | I26: 1481.25 | J26: 1507.50 | K26: 1455 | L26: 1415.05 | M26: 41.56347
A27: 17 | B27: ABCAPITAL | C27: 125.2 | D27: 126.28 | E27: 123.62 | F27: 122.03 | G27: 119.37 | H27: 127.87 | I27: 130.53 | J27: 132.12 | K27: 128.95 | L27: 124.7 | M27: 57.72544
A28: 18 | B28: ABFRL | C28: 188.5 | D28: 187.55 | E28: 185.10 | F28: 181.70 | G28: 179.25 | H28: 190.95 | I28: 193.40 | J28: 196.80 | K28: 190 | L28: 184.15 | M28: 14.79694
A29: 19 | B29: ADVENZYMES | C29: 479.95 | D29: 484.33 | E29: 470.67 | F29: 461.38 | G29: 447.72 | H29: 493.62 | I29: 507.28 | J29: 516.57 | K29: 498 | L29: 475.05 | M29: 3.24441
A30: 20 | B30: AEGISCHEM | C30: 332.15 | D30: 334.25 | E30: 326.00 | F30: 319.85 | G30: 311.60 | H30: 340.40 | I30: 348.65 | J30: 354.80 | K30: 342.5 | L30: 328.1 | M30: 3.82071
A31: 21 | B31: AFFLE | C31: 5097.3 | D31: 5122.77 | E31: 5054.53 | F31: 5011.77 | G31: 4943.53 | H31: 5165.53 | I31: 5233.77 | J31: 5276.53 | K31: 5191 | L31: 5080 | M31: 0.51354
A32: 22 | B32: AJANTPHARM | C32: 1935.1 | D32: 1938.48 | E32: 1926.27 | F32: 1917.43 | G32: 1905.22 | H32: 1947.32 | I32: 1959.53 | J32: 1968.37 | K32: 1950.7 | L32: 1929.65 | M32: 0.81217
A33: 23 | B33: AKZOINDIA | C33: 2267.35 | D33: 2255.53 | E33: 2236.07 | F33: 2204.78 | G33: 2185.32 | H33: 2286.82 | I33: 2306.28 | J33: 2337.57 | K33: 2275 | L33: 2224.25 | M33: 0.26082
A34: 24 | B34: ALEMBICLTD | C34: 132.35 | D34: 134.05 | E34: 129.80 | F34: 127.25 | G34: 123.00 | H34: 136.60 | I34: 140.85 | J34: 143.40 | K34: 138.3 | L34: 131.5 | M34: 21.02479
A35: 25 | B35: APLLTD | C35: 956.45 | D35: 961.25 | E35: 947.65 | F35: 938.85 | G35: 925.25 | H35: 970.05 | I35: 983.65 | J35: 992.45 | K35: 974.85 | L35: 952.45 | M35: 3.38273
A36: 26 | B36: ALKEM | C36: 3003.5 | D36: 3011.25 | E36: 2982.50 | F36: 2961.50 | G36: 2932.75 | H36: 3032.25 | I36: 3061.00 | J36: 3082.00 | K36: 3040 | L36: 2990.25 | M36: 4.25787
A37: 27 | B37: ALKYLAMINE | C37: 3608.05 | D37: 3611.02 | E37: 3557.03 | F37: 3506.02 | G37: 3452.03 | H37: 3662.03 | I37: 3716.02 | J37: 3767.03 | K37: 3665 | L37: 3560 | M37: 1.34814
A38: 28 | B38: ALOKINDS | C38: 21 | D38: 21.08 | E38: 20.72 | F38: 20.43 | G38: 20.07 | H38: 21.37 | I38: 21.73 | J38: 22.02 | K38: 21.45 | L38: 20.8 | M38: 98.40513
A39: 29 | B39: AMARAJABAT | C39: 791.65 | D39: 790.77 | E39: 786.08 | F39: 780.52 | G39: 775.83 | H39: 796.33 | I39: 801.02 | J39: 806.58 | K39: 795.45 | L39: 785.2 | M39: 5.83057
A40: 30 | B40: AMBER | C40: 3005.3 | D40: 2991.65 | E40: 2953.30 | F40: 2901.30 | G40: 2862.95 | H40: 3043.65 | I40: 3082.00 | J40: 3134.00 | K40: 3030 | L40: 2939.65 | M40: 0.6914
A41: 31 | B41: AMBUJACEM | C41: 321.45 | D41: 322.02 | E41: 319.68 | F41: 317.92 | G41: 315.58 | H41: 323.78 | I41: 326.12 | J41: 327.88 | K41: 324.35 | L41: 320.25 | M41: 40.39119
A42: 32 | B42: APOLLOHOSP | C42: 3247.75 | D42: 3244.05 | E42: 3228.70 | F42: 3209.65 | G42: 3194.30 | H42: 3263.10 | I42: 3278.45 | J42: 3297.50 | K42: 3259.4 | L42: 3225 | M42: 4.71439
A43: 33 | B43: APOLLOTYRE | C43: 217.35 | D43: 216.95 | E43: 214.90 | F43: 212.45 | G43: 210.40 | H43: 219.40 | I43: 221.45 | J43: 223.90 | K43: 219 | L43: 214.5 | M43: 76.73508
A44: 34 | B44: ASHOKLEY | C44: 125.45 | D44: 125.38 | E44: 123.92 | F44: 122.38 | G44: 120.92 | H44: 126.92 | I44: 128.38 | J44: 129.92 | K44: 126.85 | L44: 123.85 | M44: 155.00993
A45: 35 | B45: ASHOKA | C45: 87.3 | D45: 87.33 | E45: 86.37 | F45: 85.43 | G45: 84.47 | H45: 88.27 | I45: 89.23 | J45: 90.17 | K45: 88.3 | L45: 86.4 | M45: 11.65575
A46: 36 | B46: ASIANPAINT | C46: 2832.5 | D46: 2827.17 | E46: 2800.33 | F46: 2768.17 | G46: 2741.33 | H46: 2859.33 | I46: 2886.17 | J46: 2918.33 | K46: 2854 | L46: 2795 | M46: 13.28308
A47: 37 | B47: ASTERDM | C47: 148.8 | D47: 149.63 | E47: 147.57 | F47: 146.33 | G47: 144.27 | H47: 150.87 | I47: 152.93 | J47: 154.17 | K47: 151.7 | L47: 148.4 | M47: 4.37692
A48: 38 | B48: ASTRAZEN | C48: 3773.85 | D48: 3779.77 | E48: 3760.58 | F48: 3747.32 | G48: 3728.13 | H48: 3793.03 | I48: 3812.22 | J48: 3825.48 | K48: 3798.95 | L48: 3766.5 | M48: 0.12349
A49: 39 | B49: ASTRAL | C49: 1753 | D49: 1762.60 | E49: 1732.40 | F49: 1711.80 | G49: 1681.60 | H49: 1783.20 | I49: 1813.40 | J49: 1834.00 | K49: 1792.8 | L49: 1742 | M49: 3.2132
A50: 40 | B50: ATUL | C50: 8562.95 | D50: 8531.93 | E50: 8464.97 | F50: 8366.98 | G50: 8300.02 | H50: 8629.92 | I50: 8696.88 | J50: 8794.87 | K50: 8598.9 | L50: 8433.95 | M50: 0.29654
A51: 41 | B51: AUROPHARMA | C51: 1013.15 | D51: 1018.83 | E51: 1002.77 | F51: 992.38 | G51: 976.32 | H51: 1029.22 | I51: 1045.28 | J51: 1055.67 | K51: 1034.9 | L51: 1008.45 | M51: 13.38498
A52: 42 | B52: AVANTIFEED | C52: 528.85 | D52: 532.52 | E52: 520.33 | F52: 511.82 | G52: 499.63 | H52: 541.03 | I52: 553.22 | J52: 561.73 | K52: 544.7 | L52: 524 | M52: 2.36866
A53: 43 | B53: DMART | C53: 3034.15 | D53: 3039.05 | E53: 3008.10 | F53: 2982.05 | G53: 2951.10 | H53: 3065.10 | I53: 3096.05 | J53: 3122.10 | K53: 3070 | L53: 3013 | M53: 3.75397
A54: 44 | B54: AXISBANK | C54: 730.9 | D54: 723.77 | E54: 714.13 | F54: 697.37 | G54: 687.73 | H54: 740.53 | I54: 750.17 | J54: 766.93 | K54: 733.4 | L54: 707 | M54: 158.83692
A55: 45 | B55: BASF | C55: 2443.55 | D55: 2456.18 | E55: 2417.37 | F55: 2391.18 | G55: 2352.37 | H55: 2482.37 | I55: 2521.18 | J55: 2547.37 | K55: 2495 | L55: 2430 | M55: 0.30539
A56: 46 | B56: BEML | C56: 1314.75 | D56: 1325.72 | E56: 1294.03 | F56: 1273.32 | G56: 1241.63 | H56: 1346.43 | I56: 1378.12 | J56: 1398.83 | K56: 1357.4 | L56: 1305 | M56: 9.72649
A57: 47 | B57: BSE | C57: 747.1 | D57: 754.68 | E57: 736.42 | F57: 725.73 | G57: 707.47 | H57: 765.37 | I57: 783.63 | J57: 794.32 | K57: 772.95 | L57: 744 | M57: 4.73065
A58: 48 | B58: BAJAJ-AUTO | C58: 4125.55 | D58: 4104.22 | E58: 4076.43 | F58: 4027.32 | G58: 3999.53 | H58: 4153.33 | I58: 4181.12 | J58: 4230.23 | K58: 4132 | L58: 4055.1 | M58: 3.78016
A59: 49 | B59: BAJAJCON | C59: 278.65 | D59: 279.88 | E59: 273.77 | F59: 268.88 | G59: 262.77 | H59: 284.77 | I59: 290.88 | J59: 295.77 | K59: 286 | L59: 275 | M59: 12.83793
A60: 50 | B60: BAJAJELEC | C60: 1136 | D60: 1148.90 | E60: 1112.10 | F60: 1088.20 | G60: 1051.40 | H60: 1172.80 | I60: 1209.60 | J60: 1233.50 | K60: 1185.7 | L60: 1125 | M60: 1.81643
A61: 51 | B61: BAJFINANCE | C61: 5631.75 | D61: 5637.68 | E61: 5580.37 | F61: 5528.98 | G61: 5471.67 | H61: 5689.07 | I61: 5746.38 | J61: 5797.77 | K61: 5695 | L61: 5586.3 | M61: 18.56966
A62: 52 | B62: BAJAJFINSV | C62: 11265.15 | D62: 11297.72 | E62: 11180.43 | F62: 11095.72 | G62: 10978.43 | H62: 11382.43 | I62: 11499.72 | J62: 11584.43 | K62: 11415 | L62: 11213 | M62: 2.77521
A63: 53 | B63: BAJAJHLDNG | C63: 3588.25 | D63: 3604.33 | E63: 3547.92 | F63: 3507.58 | G63: 3451.17 | H63: 3644.67 | I63: 3701.08 | J63: 3741.42 | K63: 3660.75 | L63: 3564 | M63: 0.19259
A64: 54 | B64: BALKRISIND | C64: 2131.1 | D64: 2146.37 | E64: 2102.73 | F64: 2074.37 | G64: 2030.73 | H64: 2174.73 | I64: 2218.37 | J64: 2246.73 | K64: 2190 | L64: 2118 | M64: 7.38291
A65: 55 | B65: BALMLAWRIE | C65: 138.2 | D65: 139.12 | E65: 136.78 | F65: 135.37 | G65: 133.03 | H65: 140.53 | I65: 142.87 | J65: 144.28 | K65: 141.45 | L65: 137.7 | M65: 5.4926
A66: 56 | B66: BALRAMCHIN | C66: 303.1 | D66: 305.63 | E66: 299.47 | F66: 295.83 | G66: 289.67 | H66: 309.27 | I66: 315.43 | J66: 319.07 | K66: 311.8 | L66: 302 | M66: 18.67427
A67: 57 | B67: BANDHANBNK | C67: 299.65 | D67: 298.82 | E67: 296.13 | F67: 292.62 | G67: 289.93 | H67: 302.33 | I67: 305.02 | J67: 308.53 | K67: 301.5 | L67: 295.3 | M67: 84.26593
A68: 58 | B68: BANKBARODA | C68: 80.8 | D68: 79.68 | E68: 78.22 | F68: 75.63 | G68: 74.17 | H68: 82.27 | I68: 83.73 | J68: 86.32 | K68: 81.15 | L68: 77.1 | M68: 1368.7951
A69: 59 | B69: BANKINDIA | C69: 78.4 | D69: 78.50 | E69: 77.00 | F69: 75.60 | G69: 74.10 | H69: 79.90 | I69: 81.40 | J69: 82.80 | K69: 80 | L69: 77.1 | M69: 126.68355
A70: 60 | B70: MAHABANK | C70: 25.15 | D70: 25.13 | E70: 24.92 | F70: 24.68 | G70: 24.47 | H70: 25.37 | I70: 25.58 | J70: 25.82 | K70: 25.35 | L70: 24.9 | M70: 60.98172
A71: 61 | B71: BATAINDIA | C71: 1484.65 | D71: 1484.45 | E71: 1464.90 | F71: 1445.15 | G71: 1425.60 | H71: 1504.20 | I71: 1523.75 | J71: 1543.50 | K71: 1504 | L71: 1464.7 | M71: 9.38434
A72: 62 | B72: BAYERCROP | C72: 5404.4 | D72: 5412.17 | E72: 5374.33 | F72: 5344.27 | G72: 5306.43 | H72: 5442.23 | I72: 5480.07 | J72: 5510.13 | K72: 5450 | L72: 5382.1 | M72: 0.12761
A73: 63 | B73: BERGEPAINT | C73: 790.8 | D73: 793.35 | E73: 785.70 | F73: 780.60 | G73: 772.95 | H73: 798.45 | I73: 806.10 | J73: 811.20 | K73: 801 | L73: 788.25 | M73: 14.79506
A74: 64 | B74: BDL | C74: 359.55 | D74: 357.87 | E74: 350.73 | F74: 341.92 | G74: 334.78 | H74: 366.68 | I74: 373.82 | J74: 382.63 | K74: 365 | L74: 349.05 | M74: 6.33854
A75: 65 | B75: BEL | C75: 157.6 | D75: 157.62 | E75: 156.23 | F75: 154.87 | G75: 153.48 | H75: 158.98 | I75: 160.37 | J75: 161.73 | K75: 159 | L75: 156.25 | M75: 193.87924
A76: 66 | B76: BHARATFORG | C76: 644.65 | D76: 650.38 | E76: 637.27 | F76: 629.88 | G76: 616.77 | H76: 657.77 | I76: 670.88 | J76: 678.27 | K76: 663.5 | L76: 643 | M76: 26.95667
A77: 67 | B77: BHEL | C77: 72.2 | D77: 72.57 | E77: 71.33 | F77: 70.47 | G77: 69.23 | H77: 73.43 | I77: 74.67 | J77: 75.53 | K77: 73.8 | L77: 71.7 | M77: 637.1377
A78: 68 | B78: BPCL | C78: 461.05 | D78: 462.70 | E78: 457.40 | F78: 453.75 | G78: 448.45 | H78: 466.35 | I78: 471.65 | J78: 475.30 | K78: 468 | L78: 459.05 | M78: 119.93869
A79: 69 | B79: BHARATRAS | C79: 12387.35 | D79: 12486.93 | E79: 12199.87 | F79: 12012.38 | G79: 11725.32 | H79: 12674.42 | I79: 12961.48 | J79: 13148.97 | K79: 12774 | L79: 12299.45 | M79: 0.03959
A80: 70 | B80: BHARTIARTL | C80: 530.95 | D80: 528.75 | E80: 524.20 | F80: 517.45 | G80: 512.90 | H80: 535.50 | I80: 540.05 | J80: 546.80 | K80: 533.3 | L80: 522 | M80: 102.99402
A81: 71 | B81: BIOCON | C81: 382.5 | D81: 383.52 | E81: 380.63 | F81: 378.77 | G81: 375.88 | H81: 385.38 | I81: 388.27 | J81: 390.13 | K81: 386.4 | L81: 381.65 | M81: 14.48078
A82: 72 | B82: BIRLACORPN | C82: 1259.55 | D82: 1248.55 | E82: 1222.10 | F82: 1184.65 | G82: 1158.20 | H82: 1286.00 | I82: 1312.45 | J82: 1349.90 | K82: 1275 | L82: 1211.1 | M82: 2.52835
A83: 73 | B83: BSOFT | C83: 267.1 | D83: 251.90 | E83: 231.10 | F83: 195.10 | G83: 174.30 | H83: 287.90 | I83: 308.70 | J83: 344.70 | K83: 272.7 | L83: 215.9 | M83: 14.35059
A84: 74 | B84: BLISSGVS | C84: 108.75 | D84: 109.03 | E84: 108.07 | F84: 107.38 | G84: 106.42 | H84: 109.72 | I84: 110.68 | J84: 111.37 | K84: 110 | L84: 108.35 | M84: 2.62658
A85: 75 | B85: BLUEDART | C85: 5959.85 | D85: 5986.12 | E85: 5827.23 | F85: 5694.62 | G85: 5535.73 | H85: 6118.73 | I85: 6277.62 | J85: 6410.23 | K85: 6145 | L85: 5853.5 | M85: 1.5991
A86: 76 | B86: BLUESTARCO | C86: 807.7 | D86: 810.70 | E86: 802.10 | F86: 796.50 | G86: 787.90 | H86: 816.30 | I86: 824.90 | J86: 830.50 | K86: 819.3 | L86: 805.1 | M86: 0.7633
A87: 77 | B87: BBTC | C87: 1201.75 | D87: 1209.65 | E87: 1184.30 | F87: 1166.85 | G87: 1141.50 | H87: 1227.10 | I87: 1252.45 | J87: 1269.90 | K87: 1235 | L87: 1192.2 | M87: 1.15498
A88: 78 | B88: BOMDYEING | C88: 77 | D88: 77.62 | E88: 76.03 | F88: 75.07 | G88: 73.48 | H88: 78.58 | I88: 80.17 | J88: 81.13 | K88: 79.2 | L88: 76.65 | M88: 16.46511
A89: 79 | B89: BOSCHLTD | C89: 15288.15 | D89: 15394.05 | E89: 14947.10 | F89: 14606.05 | G89: 14159.10 | H89: 15735.10 | I89: 16182.05 | J89: 16523.10 | K89: 15841 | L89: 15053 | M89: 2.56287
A90: 80 | B90: BRIGADE | C90: 269.1 | D90: 268.67 | E90: 265.68 | F90: 262.27 | G90: 259.28 | H90: 272.08 | I90: 275.07 | J90: 278.48 | K90: 271.65 | L90: 265.25 | M90: 8.41237
A91: 81 | B91: BRITANNIA | C91: 3435.75 | D91: 3434.25 | E91: 3419.50 | F91: 3403.25 | G91: 3388.50 | H91: 3450.50 | I91: 3465.25 | J91: 3481.50 | K91: 3449 | L91: 3418 | M91: 5.21688
A92: 82 | B92: CARERATING | C92: 551.9 | D92: 553.60 | E92: 548.30 | F92: 544.70 | G92: 539.40 | H92: 557.20 | I92: 562.50 | J92: 566.10 | K92: 558.9 | L92: 550 | M92: 2.11216
A93: 83 | B93: CCL | C93: 312.2 | D93: 315.52 | E93: 306.68 | F93: 301.17 | G93: 292.33 | H93: 321.03 | I93: 329.87 | J93: 335.38 | K93: 324.35 | L93: 310 | M93: 4.18499
A94: 84 | B94: CESC | C94: 689.35 | D94: 690.50 | E94: 679.05 | F94: 668.75 | G94: 657.30 | H94: 700.80 | I94: 712.25 | J94: 722.55 | K94: 701.95 | L94: 680.2 | M94: 6.44658
A95: 85 | B95: CRISIL | C95: 1902.75 | D95: 1905.92 | E95: 1891.83 | F95: 1880.92 | G95: 1866.83 | H95: 1916.83 | I95: 1930.92 | J95: 1941.83 | K95: 1920 | L95: 1895 | M95: 0.1243
A96: 86 | B96: CSBBANK | C96: 314.5 | D96: 314.12 | E96: 309.38 | F96: 304.27 | G96: 299.53 | H96: 319.23 | I96: 323.97 | J96: 329.08 | K96: 318.85 | L96: 309 | M96: 19.0234
A97: 87 | B97: CADILAHC | C97: 613.15 | D97: 614.25 | E97: 606.80 | F97: 600.45 | G97: 593.00 | H97: 620.60 | I97: 628.05 | J97: 634.40 | K97: 621.7 | L97: 607.9 | M97: 41.37273
A98: 88 | B98: CANFINHOME | C98: 511.45 | D98: 514.37 | E98: 504.98 | F98: 498.52 | G98: 489.13 | H98: 520.83 | I98: 530.22 | J98: 536.68 | K98: 523.75 | L98: 507.9 | M98: 3.76779
A99: 89 | B99: CANBK | C99: 152.85 | D99: 151.62 | E99: 149.73 | F99: 146.62 | G99: 144.73 | H99: 154.73 | I99: 156.62 | J99: 159.73 | K99: 153.5 | L99: 148.5 | M99: 335.05835
A100: 90 | B100: CAPLIPOINT | C100: 589.5 | D100: 588.53 | E100: 581.07 | F100: 572.63 | G100: 565.17 | H100: 596.97 | I100: 604.43 | J100: 612.87 | K100: 596 | L100: 580.1 | M100: 2.15534
A101: 91 | B101: CGCL | C101: 460.3 | D101: 461.77 | E101: 458.53 | F101: 456.77 | G101: 453.53 | H101: 463.53 | I101: 466.77 | J101: 468.53 | K101: 465 | L101: 460 | M101: 1.28032
A102: 92 | B102: CARBORUNIV | C102: 588.5 | D102: 591.18 | E102: 578.42 | F102: 568.33 | G102: 555.57 | H102: 601.27 | I102: 614.03 | J102: 624.12 | K102: 603.95 | L102: 581.1 | M102: 2.84687
A103: 93 | B103: CASTROLIND | C103: 129.55 | D103: 129.42 | E103: 127.88 | F103: 126.22 | G103: 124.68 | H103: 131.08 | I103: 132.62 | J103: 134.28 | K103: 130.95 | L103: 127.75 | M103: 17.78266
A104: 94 | B104: CEATLTD | C104: 1285.4 | D104: 1291.08 | E104: 1276.37 | F104: 1267.33 | G104: 1252.62 | H104: 1300.12 | I104: 1314.83 | J104: 1323.87 | K104: 1305.8 | L104: 1282.05 | M104: 2.51736
A105: 95 | B105: CENTRALBK | C105: 18.45 | D105: 18.42 | E105: 18.23 | F105: 18.02 | G105: 17.83 | H105: 18.63 | I105: 18.82 | J105: 19.03 | K105: 18.6 | L105: 18.2 | M105: 93.89862
A106: 96 | B106: CDSL | C106: 871.1 | D106: 872.75 | E106: 866.35 | F106: 861.60 | G106: 855.20 | H106: 877.50 | I106: 883.90 | J106: 888.65 | K106: 879.15 | L106: 868 | M106: 2.96671
A107: 97 | B107: CENTURYPLY | C107: 401.45 | D107: 397.55 | E107: 388.90 | F107: 376.35 | G107: 367.70 | H107: 410.10 | I107: 418.75 | J107: 431.30 | K107: 406.2 | L107: 385 | M107: 5.63872
A108: 98 | B108: CENTURYTEX | C108: 501.35 | D108: 503.13 | E108: 495.27 | F108: 489.18 | G108: 481.32 | H108: 509.22 | I108: 517.08 | J108: 523.17 | K108: 511 | L108: 497.05 | M108: 4.15438
A109: 99 | B109: CERA | C109: 3950.95 | D109: 3962.32 | E109: 3923.63 | F109: 3896.32 | G109: 3857.63 | H109: 3989.63 | I109: 4028.32 | J109: 4055.63 | K109: 4001 | L109: 3935 | M109: 0.02463
A110: 100 | B110: CHALET | C110: 156.35 | D110: 156.63 | E110: 155.22 | F110: 154.08 | G110: 152.67 | H110: 157.77 | I110: 159.18 | J110: 160.32 | K110: 158.05 | L110: 155.5 | M110: 1.33944
A111: 101 | B111: CHAMBLFERT | C111: 286.2 | D111: 288.03 | E111: 281.27 | F111: 276.33 | G111: 269.57 | H111: 292.97 | I111: 299.73 | J111: 304.67 | K111: 294.8 | L111: 283.1 | M111: 8.07924
A112: 102 | B112: CHENNPETRO | C112: 129.1 | D112: 127.37 | E112: 123.53 | F112: 117.97 | G112: 114.13 | H112: 132.93 | I112: 136.77 | J112: 142.33 | K112: 131.2 | L112: 121.8 | M112: 77.0831
A113: 103 | B113: CHOLAHLDNG | C113: 609.55 | D113: 603.85 | E113: 591.90 | F113: 574.25 | G113: 562.30 | H113: 621.50 | I113: 633.45 | J113: 651.10 | K113: 615.8 | L113: 586.2 | M113: 4.2835
A114: 104 | B114: CHOLAFIN | C114: 582.8 | D114: 580.42 | E114: 574.43 | F114: 566.07 | G114: 560.08 | H114: 588.78 | I114: 594.77 | J114: 603.13 | K114: 586.4 | L114: 572.05 | M114: 70.59325
A115: 105 | B115: CIPLA | C115: 926.9 | D115: 928.07 | E115: 921.13 | F115: 915.37 | G115: 908.43 | H115: 933.83 | I115: 940.77 | J115: 946.53 | K115: 935 | L115: 922.3 | M115: 67.40711
A116: 106 | B116: CUB | C116: 175.05 | D116: 174.47 | E116: 173.18 | F116: 171.32 | G116: 170.03 | H116: 176.33 | I116: 177.62 | J116: 179.48 | K116: 175.75 | L116: 172.6 | M116: 36.36647
A117: 107 | B117: COALINDIA | C117: 147.2 | D117: 147.88 | E117: 146.17 | F117: 145.13 | G117: 143.42 | H117: 148.92 | I117: 150.63 | J117: 151.67 | K117: 149.6 | L117: 146.85 | M117: 130.09821
A118: 108 | B118: COCHINSHIP | C118: 385.15 | D118: 386.72 | E118: 381.53 | F118: 377.92 | G118: 372.73 | H118: 390.33 | I118: 395.52 | J118: 399.13 | K118: 391.9 | L118: 383.1 | M118: 2.75188
A119: 109 | B119: COFORGE | C119: 3330.2 | D119: 3343.78 | E119: 3301.67 | F119: 3273.13 | G119: 3231.02 | H119: 3372.32 | I119: 3414.43 | J119: 3442.97 | K119: 3385.9 | L119: 3315.25 | M119: 8.67323
A120: 110 | B120: COLPAL | C120: 1633.05 | D120: 1634.72 | E120: 1619.43 | F120: 1605.82 | G120: 1590.53 | H120: 1648.33 | I120: 1663.62 | J120: 1677.23 | K120: 1650 | L120: 1621.1 | M120: 5.37668
A121: 111 | B121: CONCOR | C121: 586.6 | D121: 592.73 | E121: 576.52 | F121: 566.43 | G121: 550.22 | H121: 602.82 | I121: 619.03 | J121: 629.12 | K121: 608.95 | L121: 582.65 | M121: 30.20824
A122: 112 | B122: COROMANDEL | C122: 834.6 | D122: 822.05 | E122: 806.10 | F122: 777.60 | G122: 761.65 | H122: 850.55 | I122: 866.50 | J122: 895.00 | K122: 838 | L122: 793.55 | M122: 9.61832
A123: 113 | B123: CREDITACC | C123: 607.6 | D123: 610.35 | E123: 601.25 | F123: 594.90 | G123: 585.80 | H123: 616.70 | I123: 625.80 | J123: 632.15 | K123: 619.45 | L123: 604 | M123: 0.45695
A124: 114 | B124: CROMPTON | C124: 388.45 | D124: 390.13 | E124: 382.52 | F124: 376.58 | G124: 368.97 | H124: 396.07 | I124: 403.68 | J124: 409.62 | K124: 397.75 | L124: 384.2 | M124: 20.92569
A125: 115 | B125: CUMMINSIND | C125: 833.5 | D125: 840.90 | E125: 822.60 | F125: 811.70 | G125: 793.40 | H125: 851.80 | I125: 870.10 | J125: 881.00 | K125: 859.2 | L125: 830 | M125: 14.04966
A126: 116 | B126: CYIENT | C126: 806.1 | D126: 814.05 | E126: 790.60 | F126: 775.10 | G126: 751.65 | H126: 829.55 | I126: 853.00 | J126: 868.50 | K126: 837.5 | L126: 798.55 | M126: 2.28096
A127: 117 | B127: DBCORP | C127: 90.55 | D127: 91.17 | E127: 89.58 | F127: 88.62 | G127: 87.03 | H127: 92.13 | I127: 93.72 | J127: 94.68 | K127: 92.75 | L127: 90.2 | M127: 2.0239
A128: 118 | B128: DCBBANK | C128: 102.85 | D128: 103.05 | E128: 101.35 | F128: 99.85 | G128: 98.15 | H128: 104.55 | I128: 106.25 | J128: 107.75 | K128: 104.75 | L128: 101.55 | M128: 30.65028
A129: 119 | B129: DCMSHRIRAM | C129: 682.9 | D129: 686.60 | E129: 669.20 | F129: 655.50 | G129: 638.10 | H129: 700.30 | I129: 717.70 | J129: 731.40 | K129: 704 | L129: 672.9 | M129: 3.00893
A130: 120 | B130: DLF | C130: 268.4 | D130: 270.50 | E130: 265.05 | F130: 261.70 | G130: 256.25 | H130: 273.85 | I130: 279.30 | J130: 282.65 | K130: 275.95 | L130: 267.15 | M130: 117.98677
A131: 121 | B131: DABUR | C131: 536.75 | D131: 537.40 | E131: 534.80 | F131: 532.85 | G131: 530.25 | H131: 539.35 | I131: 541.95 | J131: 543.90 | K131: 540 | L131: 535.45 | M131: 15.82534
A132: 122 | B132: DALBHARAT | C132: 1830.95 | D132: 1837.57 | E132: 1805.13 | F132: 1779.32 | G132: 1746.88 | H132: 1863.38 | I132: 1895.82 | J132: 1921.63 | K132: 1870 | L132: 1811.75 | M132: 1.58642
A133: 123 | B133: DEEPAKNTR | C133: 1762.15 | D133: 1772.55 | E133: 1746.35 | F133: 1730.55 | G133: 1704.35 | H133: 1788.35 | I133: 1814.55 | J133: 1830.35 | K133: 1798.75 | L133: 1756.75 | M133: 8.4064
A134: 124 | B134: DELTACORP | C134: 163.2 | D134: 163.18 | E134: 159.32 | F134: 155.43 | G134: 151.57 | H134: 167.07 | I134: 170.93 | J134: 174.82 | K134: 167.05 | L134: 159.3 | M134: 40.87677
A135: 125 | B135: DHANI | C135: 176.7 | D135: 177.37 | E135: 174.58 | F135: 172.47 | G135: 169.68 | H135: 179.48 | I135: 182.27 | J135: 184.38 | K135: 180.15 | L135: 175.25 | M135: 8.37647
A136: 126 | B136: DHANUKA | C136: 892.45 | D136: 906.03 | E136: 868.07 | F136: 843.68 | G136: 805.72 | H136: 930.42 | I136: 968.38 | J136: 992.77 | K136: 944 | L136: 881.65 | M136: 7.4403
A137: 127 | B137: DBL | C137: 536.3 | D137: 539.65 | E137: 529.75 | F137: 523.20 | G137: 513.30 | H137: 546.20 | I137: 556.10 | J137: 562.65 | K137: 549.55 | L137: 533.1 | M137: 3.70142
A138: 128 | B138: DISHTV | C138: 12.8 | D138: 13.02 | E138: 12.43 | F138: 12.07 | G138: 11.48 | H138: 13.38 | I138: 13.97 | J138: 14.33 | K138: 13.6 | L138: 12.65 | M138: 291.18573
A139: 129 | B139: DCAL | C139: 193.55 | D139: 192.83 | E139: 185.77 | F139: 177.98 | G139: 170.92 | H139: 200.62 | I139: 207.68 | J139: 215.47 | K139: 199.9 | L139: 185.05 | M139: 40.78305
A140: 130 | B140: DIVISLAB | C140: 4079.9 | D140: 4077.23 | E140: 4044.47 | F140: 4009.03 | G140: 3976.27 | H140: 4112.67 | I140: 4145.43 | J140: 4180.87 | K140: 4110 | L140: 4041.8 | M140: 4.26797
A141: 131 | B141: DIXON | C141: 3944.85 | D141: 3943.62 | E141: 3908.23 | F141: 3871.62 | G141: 3836.23 | H141: 3980.23 | I141: 4015.62 | J141: 4052.23 | K141: 3979 | L141: 3907 | M141: 1.28784
A142: 132 | B142: LALPATHLAB | C142: 2830.9 | D142: 2843.05 | E142: 2787.85 | F142: 2744.80 | G142: 2689.60 | H142: 2886.10 | I142: 2941.30 | J142: 2984.35 | K142: 2898.25 | L142: 2800 | M142: 4.82846
A143: 133 | B143: DRREDDY | C143: 5216.45 | D143: 5227.42 | E143: 5185.33 | F143: 5154.22 | G143: 5112.13 | H143: 5258.53 | I143: 5300.62 | J143: 5331.73 | K143: 5269.5 | L143: 5196.3 | M143: 7.11634
A144: 134 | B144: EIDPARRY | C144: 417.35 | D144: 417.42 | E144: 412.93 | F144: 408.52 | G144: 404.03 | H144: 421.83 | I144: 426.32 | J144: 430.73 | K144: 421.9 | L144: 413 | M144: 2.84037
A145: 135 | B145: EIHOTEL | C145: 99.85 | D145: 99.58 | E145: 97.47 | F145: 95.08 | G145: 92.97 | H145: 101.97 | I145: 104.08 | J145: 106.47 | K145: 101.7 | L145: 97.2 | M145: 11.2672
A146: 136 | B146: EPL | C146: 245.7 | D146: 246.73 | E146: 238.97 | F146: 232.23 | G146: 224.47 | H146: 253.47 | I146: 261.23 | J146: 267.97 | K146: 254.5 | L146: 240 | M146: 10.19018
A147: 137 | B147: ESABINDIA | C147: 1888.95 | D147: 1889.65 | E147: 1851.30 | F147: 1813.65 | G147: 1775.30 | H147: 1927.30 | I147: 1965.65 | J147: 2003.30 | K147: 1928 | L147: 1852 | M147: 0.23562
A148: 138 | B148: EDELWEISS | C148: 63.95 | D148: 63.00 | E148: 62.05 | F148: 60.15 | G148: 59.20 | H148: 64.90 | I148: 65.85 | J148: 67.75 | K148: 63.95 | L148: 61.1 | M148: 52.08648
A149: 139 | B149: EICHERMOT | C149: 2522.3 | D149: 2531.78 | E149: 2504.07 | F149: 2485.83 | G149: 2458.12 | H149: 2550.02 | I149: 2577.73 | J149: 2595.97 | K149: 2559.5 | L149: 2513.55 | M149: 7.4311
A150: 140 | B150: ELGIEQUIP | C150: 215.4 | D150: 215.78 | E150: 211.62 | F150: 207.83 | G150: 203.67 | H150: 219.57 | I150: 223.73 | J150: 227.52 | K150: 219.95 | L150: 212 | M150: 1.69129
A151: 141 | B151: EMAMILTD | C151: 503.9 | D151: 506.28 | E151: 497.62 | F151: 491.33 | G151: 482.67 | H151: 512.57 | I151: 521.23 | J151: 527.52 | K151: 514.95 | L151: 500 | M151: 5.45292
A152: 142 | B152: ENDURANCE | C152: 1398 | D152: 1401.00 | E152: 1382.00 | F152: 1366.00 | G152: 1347.00 | H152: 1417.00 | I152: 1436.00 | J152: 1452.00 | K152: 1420 | L152: 1385 | M152: 1.82913
A153: 143 | B153: ENGINERSIN | C153: 80.9 | D153: 81.45 | E153: 80.05 | F153: 79.20 | G153: 77.80 | H153: 82.30 | I153: 83.70 | J153: 84.55 | K153: 82.85 | L153: 80.6 | M153: 25.24863
A154: 144 | B154: EQUITAS | C154: 87.95 | D154: 88.28 | E154: 87.27 | F154: 86.58 | G154: 85.57 | H154: 88.97 | I154: 89.98 | J154: 90.67 | K154: 89.3 | L154: 87.6 | M154: 7.89157
A155: 145 | B155: ERIS | C155: 708.7 | D155: 714.92 | E155: 694.93 | F155: 681.17 | G155: 661.18 | H155: 728.68 | I155: 748.67 | J155: 762.43 | K155: 734.9 | L155: 701.15 | M155: 1.70364
A156: 146 | B156: ESCORTS | C156: 1158.65 | D156: 1163.28 | E156: 1151.57 | F156: 1144.48 | G156: 1132.77 | H156: 1170.37 | I156: 1182.08 | J156: 1189.17 | K156: 1175 | L156: 1156.2 | M156: 12.70521
A157: 147 | B157: EXIDEIND | C157: 187.15 | D157: 187.42 | E157: 186.33 | F157: 185.52 | G157: 184.43 | H157: 188.23 | I157: 189.32 | J157: 190.13 | K157: 188.5 | L157: 186.6 | M157: 23.19581
A158: 148 | B158: FDC | C158: 354.4 | D158: 351.13 | E158: 345.27 | F158: 336.13 | G158: 330.27 | H158: 360.27 | I158: 366.13 | J158: 375.27 | K158: 357 | L158: 342 | M158: 6.71228
A159: 149 | B159: FEDERALBNK | C159: 85.15 | D159: 84.68 | E159: 83.87 | F159: 82.58 | G159: 81.77 | H159: 85.97 | I159: 86.78 | J159: 88.07 | K159: 85.5 | L159: 83.4 | M159: 240.25317
A160: 150 | B160: FINEORG | C160: 3495.7 | D160: 3509.83 | E160: 3450.87 | F160: 3406.03 | G160: 3347.07 | H160: 3554.67 | I160: 3613.63 | J160: 3658.47 | K160: 3568.8 | L160: 3465 | M160: 0.73161
A161: 151 | B161: FINCABLES | C161: 385.6 | D161: 387.48 | E161: 380.97 | F161: 376.33 | G161: 369.82 | H161: 392.12 | I161: 398.63 | J161: 403.27 | K161: 394 | L161: 382.85 | M161: 5.06476
A162: 152 | B162: FINPIPE | C162: 156.65 | D162: 157.78 | E162: 154.92 | F162: 153.18 | G162: 150.32 | H162: 159.52 | I162: 162.38 | J162: 164.12 | K162: 160.65 | L162: 156.05 | M162: 7.01613
A163: 153 | B163: FSL | C163: 138.6 | D163: 139.67 | E163: 135.88 | F163: 133.17 | G163: 129.38 | H163: 142.38 | I163: 146.17 | J163: 148.88 | K163: 143.45 | L163: 136.95 | M163: 42.89786
A164: 154 | B164: FORTIS | C164: 227.5 | D164: 226.32 | E164: 222.93 | F164: 218.37 | G164: 214.98 | H164: 230.88 | I164: 234.27 | J164: 238.83 | K164: 229.7 | L164: 221.75 | M164: 37.98892
A165: 155 | B165: FCONSUMER | C165: 6.8 | D165: 6.92 | E165: 6.53 | F165: 6.27 | G165: 5.88 | H165: 7.18 | I165: 7.57 | J165: 7.83 | K165: 7.3 | L165: 6.65 | M165: 145.73819
A166: 156 | B166: FRETAIL | C166: 45.95 | D166: 46.15 | E166: 44.90 | F166: 43.85 | G166: 42.60 | H166: 47.20 | I166: 48.45 | J166: 49.50 | K166: 47.4 | L166: 45.1 | M166: 56.83633
A167: 157 | B167: GAIL | C167: 145.75 | D167: 147.17 | E167: 143.88 | F167: 142.02 | G167: 138.73 | H167: 149.03 | I167: 152.32 | J167: 154.18 | K167: 150.45 | L167: 145.3 | M167: 170.50299
A168: 158 | B168: GEPIL | C168: 266.75 | D168: 264.50 | E168: 257.35 | F168: 247.95 | G168: 240.80 | H168: 273.90 | I168: 281.05 | J168: 290.45 | K168: 271.65 | L168: 255.1 | M168: 4.01381
A169: 159 | B169: GHCL | C169: 258.85 | D169: 261.57 | E169: 255.28 | F169: 251.72 | G169: 245.43 | H169: 265.13 | I169: 271.42 | J169: 274.98 | K169: 267.85 | L169: 258 | M169: 4.33757
A170: 160 | B170: GMMPFAUDLR | C170: 5092 | D170: 5141.18 | E170: 4949.82 | F170: 4807.63 | G170: 4616.27 | H170: 5283.37 | I170: 5474.73 | J170: 5616.92 | K170: 5332.55 | L170: 4999 | M170: 2.62515
A171: 161 | B171: GMRINFRA | C171: 26.4 | D171: 26.30 | E171: 25.95 | F171: 25.50 | G171: 25.15 | H171: 26.75 | I171: 27.10 | J171: 27.55 | K171: 26.65 | L171: 25.85 | M171: 179.82002
A172: 162 | B172: GALAXYSURF | C172: 3073 | D172: 3086.33 | E172: 3038.67 | F172: 3004.33 | G172: 2956.67 | H172: 3120.67 | I172: 3168.33 | J172: 3202.67 | K172: 3134 | L172: 3052 | M172: 1.38985
A173: 163 | B173: GRSE | C173: 185.5 | D173: 186.62 | E173: 183.88 | F173: 182.27 | G173: 179.53 | H173: 188.23 | I173: 190.97 | J173: 192.58 | K173: 189.35 | L173: 185 | M173: 3.36242
A174: 164 | B174: GARFIBRES | C174: 2893 | D174: 2880.62 | E174: 2822.33 | F174: 2751.67 | G174: 2693.38 | H174: 2951.28 | I174: 3009.57 | J174: 3080.23 | K174: 2938.9 | L174: 2809.95 | M174: 0.42289
A175: 165 | B175: GICRE | C175: 194.05 | D175: 195.15 | E175: 192.50 | F175: 190.95 | G175: 188.30 | H175: 196.70 | I175: 199.35 | J175: 200.90 | K175: 197.8 | L175: 193.6 | M175: 4.59892
A176: 166 | B176: GILLETTE | C176: 5480.1 | D176: 5505.07 | E176: 5450.18 | F176: 5420.27 | G176: 5365.38 | H176: 5534.98 | I176: 5589.87 | J176: 5619.78 | K176: 5559.95 | L176: 5475.15 | M176: 0.15921
A177: 167 | B177: GLAXO | C177: 1462.15 | D177: 1468.07 | E177: 1448.28 | F177: 1434.42 | G177: 1414.63 | H177: 1481.93 | I177: 1501.72 | J177: 1515.58 | K177: 1487.85 | L177: 1454.2 | M177: 0.41049
A178: 168 | B178: GLENMARK | C178: 607.25 | D178: 608.55 | E178: 604.35 | F178: 601.45 | G178: 597.25 | H178: 611.45 | I178: 615.65 | J178: 618.55 | K178: 612.75 | L178: 605.65 | M178: 11.85358
A179: 169 | B179: GODFRYPHLP | C179: 901.05 | D179: 903.87 | E179: 882.18 | F179: 863.32 | G179: 841.63 | H179: 922.73 | I179: 944.42 | J179: 963.28 | K179: 925.55 | L179: 885 | M179: 1.1232
A180: 170 | B180: GODREJAGRO | C180: 549.55 | D180: 549.07 | E180: 542.48 | F180: 535.42 | G180: 528.83 | H180: 556.13 | I180: 562.72 | J180: 569.78 | K180: 555.65 | L180: 542 | M180: 2.29057
A181: 171 | B181: GODREJCP | C181: 818.45 | D181: 818.63 | E181: 813.62 | F181: 808.78 | G181: 803.77 | H181: 823.47 | I181: 828.48 | J181: 833.32 | K181: 823.65 | L181: 813.8 | M181: 15.105
A182: 172 | B182: GODREJIND | C182: 563.6 | D182: 567.67 | E182: 551.93 | F182: 540.27 | G182: 524.53 | H182: 579.33 | I182: 595.07 | J182: 606.73 | K182: 583.4 | L182: 556 | M182: 6.35668
A183: 173 | B183: GODREJPROP | C183: 1305.25 | D183: 1311.07 | E183: 1294.18 | F183: 1283.12 | G183: 1266.23 | H183: 1322.13 | I183: 1339.02 | J183: 1350.08 | K183: 1327.95 | L183: 1300 | M183: 13.92137
A184: 174 | B184: GRANULES | C184: 323 | D184: 324.62 | E184: 320.88 | F184: 318.77 | G184: 315.03 | H184: 326.73 | I184: 330.47 | J184: 332.58 | K184: 328.35 | L184: 322.5 | M184: 22.19737
A185: 175 | B185: GRAPHITE | C185: 742.2 | D185: 747.65 | E185: 734.55 | F185: 726.90 | G185: 713.80 | H185: 755.30 | I185: 768.40 | J185: 776.05 | K185: 760.75 | L185: 740 | M185: 7.27512
A186: 176 | B186: GRASIM | C186: 1371.85 | D186: 1374.60 | E186: 1362.25 | F186: 1352.65 | G186: 1340.30 | H186: 1384.20 | I186: 1396.55 | J186: 1406.15 | K186: 1386.95 | L186: 1365 | M186: 7.40146
A187: 177 | B187: GESHIP | C187: 403.9 | D187: 405.73 | E187: 399.72 | F187: 395.53 | G187: 389.52 | H187: 409.92 | I187: 415.93 | J187: 420.12 | K187: 411.75 | L187: 401.55 | M187: 3.05474
A188: 178 | B188: GREAVESCOT | C188: 130.85 | D188: 132.50 | E188: 128.50 | F188: 126.15 | G188: 122.15 | H188: 134.85 | I188: 138.85 | J188: 141.20 | K188: 136.5 | L188: 130.15 | M188: 8.73331
A189: 179 | B189: GRINDWELL | C189: 1193.75 | D189: 1203.28 | E189: 1171.57 | F189: 1149.38 | G189: 1117.67 | H189: 1225.47 | I189: 1257.18 | J189: 1279.37 | K189: 1235 | L189: 1181.1 | M189: 0.58792
A190: 180 | B190: GUJALKALI | C190: 414 | D190: 417.27 | E190: 409.53 | F190: 405.07 | G190: 397.33 | H190: 421.73 | I190: 429.47 | J190: 433.93 | K190: 425 | L190: 412.8 | M190: 3.42771
A191: 181 | B191: GAEL | C191: 181.9 | D191: 182.32 | E191: 178.08 | F191: 174.27 | G191: 170.03 | H191: 186.13 | I191: 190.37 | J191: 194.18 | K191: 186.55 | L191: 178.5 | M191: 10.1907
A192: 182 | B192: FLUOROCHEM | C192: 831 | D192: 836.45 | E192: 818.90 | F192: 806.80 | G192: 789.25 | H192: 848.55 | I192: 866.10 | J192: 878.20 | K192: 854 | L192: 824.35 | M192: 1.20152
A193: 183 | B193: GUJGASLTD | C193: 512 | D193: 513.00 | E193: 505.00 | F193: 498.00 | G193: 490.00 | H193: 520.00 | I193: 528.00 | J193: 535.00 | K193: 521 | L193: 506 | M193: 18.66328
A194: 184 | B194: GMDCLTD | C194: 74.6 | D194: 75.33 | E194: 73.27 | F194: 71.93 | G194: 69.87 | H194: 76.67 | I194: 78.73 | J194: 80.07 | K194: 77.4 | L194: 74 | M194: 35.49616
A195: 185 | B195: GNFC | C195: 385.95 | D195: 388.65 | E195: 381.40 | F195: 376.85 | G195: 369.60 | H195: 393.20 | I195: 400.45 | J195: 405.00 | K195: 395.9 | L195: 384.1 | M195: 6.85301
A196: 186 | B196: GPPL | C196: 104.3 | D196: 104.55 | E196: 102.80 | F196: 101.30 | G196: 99.55 | H196: 106.05 | I196: 107.80 | J196: 109.30 | K196: 106.3 | L196: 103.05 | M196: 17.67319
A197: 187 | B197: GSFC | C197: 118.55 | D197: 119.72 | E197: 116.38 | F197: 114.22 | G197: 110.88 | H197: 121.88 | I197: 125.22 | J197: 127.38 | K197: 123.05 | L197: 117.55 | M197: 31.25927
A198: 188 | B198: GSPL | C198: 271.8 | D198: 271.25 | E198: 269.55 | F198: 267.30 | G198: 265.60 | H198: 273.50 | I198: 275.20 | J198: 277.45 | K198: 272.95 | L198: 269 | M198: 2.06621
A199: 189 | B199: GULFOILLUB | C199: 705.4 | D199: 707.13 | E199: 690.27 | F199: 675.13 | G199: 658.27 | H199: 722.27 | I199: 739.13 | J199: 754.27 | K199: 724 | L199: 692 | M199: 0.41115
A200: 190 | B200: HEG | C200: 2194.35 | D200: 2201.93 | E200: 2175.02 | F200: 2155.68 | G200: 2128.77 | H200: 2221.27 | I200: 2248.18 | J200: 2267.52 | K200: 2228.85 | L200: 2182.6 | M200: 1.26062
A201: 191 | B201: HCLTECH | C201: 930.65 | D201: 929.43 | E201: 924.22 | F201: 917.78 | G201: 912.57 | H201: 935.87 | I201: 941.08 | J201: 947.52 | K201: 934.65 | L201: 923 | M201: 41.61547
A202: 192 | B202: HDFCAMC | C202: 2813.6 | D202: 2815.82 | E202: 2797.83 | F202: 2782.07 | G202: 2764.08 | H202: 2831.58 | I202: 2849.57 | J202: 2865.33 | K202: 2833.8 | L202: 2800.05 | M202: 1.30135
A203: 193 | B203: HDFCBANK | C203: 1497.3 | D203: 1480.73 | E203: 1459.57 | F203: 1421.83 | G203: 1400.67 | H203: 1518.47 | I203: 1539.63 | J203: 1577.37 | K203: 1501.9 | L203: 1443 | M203: 96.70823
A204: 194 | B204: HDFCLIFE | C204: 670.7 | D204: 670.87 | E204: 666.83 | F204: 662.97 | G204: 658.93 | H204: 674.73 | I204: 678.77 | J204: 682.63 | K204: 674.9 | L204: 667 | M204: 16.29616
A205: 195 | B205: HFCL | C205: 49.1 | D205: 48.27 | E205: 45.83 | F205: 42.57 | G205: 40.13 | H205: 51.53 | I205: 53.97 | J205: 57.23 | K205: 50.7 | L205: 45 | M205: 1075.40579
A206: 196 | B206: HATHWAY | C206: 25.1 | D206: 24.98 | E206: 24.62 | F206: 24.13 | G206: 23.77 | H206: 25.47 | I206: 25.83 | J206: 26.32 | K206: 25.35 | L206: 24.5 | M206: 134.95932
... 321 more rows

Sheet Bulk Deals
E6: Back To Main Page
A7: Subject : | B7: BULK DEAL | D7: =Main!B10 -> 2021-05-24
A9: Date | B9: Scrip code | C9: Scrip Name | D9: Client Name | E9: Buy / Sell | F9: Quantity Traded | G9: Trade Price / Wt.Avg.trade price | H9: Exchange
A10: 2021-05-21 | B10: 530889 | C10: ALKA | D10: UDAY V GHIYE | E10: BUY | F10: 1,585,000 | G10: 0.53 | H10: BSE
A11: 2021-05-21 | B11: 542865 | C11: ANUROOP | D11: SATYA PRAKASH MITTAL | E11: BUY | F11: 70,000 | G11: 11.79 | H11: BSE
A12: 2021-05-21 | B12: 531752 | C12: BIOGEN | D12: R SATHIAMURTHI | E12: BUY | F12: 4,000,000 | G12: 0.21 | H12: BSE
A13: 2021-05-21 | B13: 534796 | C13: CDG | D13: LAXMIPAT DUDHERIA | E13: BUY | F13: 17,361 | G13: 21.95 | H13: BSE
A14: 2021-05-21 | B14: 538708 | C14: ETIL | D14: ALPHA LEON ENTERPRISES LLP | E14: SELL | F14: 478,963 | G14: 2.92 | H14: BSE
A15: 2021-05-21 | B15: 538708 | C15: ETIL | D15: ARPAN DAS | E15: BUY | F15: 255,287 | G15: 2.93 | H15: BSE
A16: 2021-05-21 | B16: 538708 | C16: ETIL | D16: ARUN LAHA | E16: BUY | F16: 200,000 | G16: 2.92 | H16: BSE
A17: 2021-05-21 | B17: 522183 | C17: ITL | D17: SHARAD KANAYALAL SHAH | E17: BUY | F17: 27,455 | G17: 145.65 | H17: BSE
A18: 2021-05-21 | B18: 505523 | C18: MAHACORP | D18: OLGA TRADING PRIVATE LIMITED | E18: SELL | F18: 705,000 | G18: 0.54 | H18: BSE
A19: 2021-05-21 | B19: 543220 | C19: MAXHEALTH | D19: WF ASIAN RECONNAISSANCE FUND LTD | E19: SELL | F19: 8,250,000 | G19: 227.07 | H19: BSE
A20: 2021-05-21 | B20: 539519 | C20: MAYUKH | D20: INDRAVADAN J MEHTA | E20: SELL | F20: 60,000 | G20: 15.6 | H20: BSE
A21: 2021-05-21 | B21: 539519 | C21: MAYUKH | D21: UTKARSH AJAYKUMAR PATEL | E21: SELL | F21: 46,400 | G21: 16.06 | H21: BSE
A22: 2021-05-21 | B22: 540809 | C22: MRCEXIM | D22: ESPS FINSERVE PRIVATE LIMITED. | E22: BUY | F22: 64,000 | G22: 4.17 | H22: BSE
A23: 2021-05-21 | B23: 540809 | C23: MRCEXIM | D23: SUSHIL KUMAR MISHRA | E23: SELL | F23: 64,000 | G23: 4.1 | H23: BSE
A24: 2021-05-21 | B24: 543194 | C24: NIRMITEE | D24: ARYAMAN BROKING LIMITED | E24: BUY | F24: 14,700 | G24: 374.96 | H24: BSE
A25: 2021-05-21 | B25: 543194 | C25: NIRMITEE | D25: ARYAMAN BROKING LIMITED | E25: SELL | F25: 1,200 | G25: 392.5 | H25: BSE
A26: 2021-05-21 | B26: 543194 | C26: NIRMITEE | D26: AMAR MUKESHBHAI SHAH | E26: SELL | F26: 14,400 | G26: 375 | H26: BSE
A27: 2021-05-21 | B27: 535657 | C27: OONE | D27: ZULIA ZAFAR | E27: BUY | F27: 77,245 | G27: 3.67 | H27: BSE
A28: 2021-05-21 | B28: 540198 | C28: OSIAJEE | D28: DATTA PRALHAD MURKUT | E28: BUY | F28: 30,500 | G28: 24.1 | H28: BSE
A29: 2021-05-21 | B29: 540198 | C29: OSIAJEE | D29: REEMA SAROYA | E29: BUY | F29: 37,199 | G29: 24.61 | H29: BSE
A30: 2021-05-21 | B30: 540198 | C30: OSIAJEE | D30: ACVC FOREX PRIVATE LIMITED | E30: BUY | F30: 70 | G30: 24.69 | H30: BSE
A31: 2021-05-21 | B31: 540198 | C31: OSIAJEE | D31: ACVC FOREX PRIVATE LIMITED | E31: SELL | F31: 107,654 | G31: 24.16 | H31: BSE
A32: 2021-05-21 | B32: 540175 | C32: REGENCY | D32: AMIT BAJAJ | E32: BUY | F32: 20,000 | G32: 12.45 | H32: BSE
A33: 2021-05-21 | B33: 540175 | C33: REGENCY | D33: VEENA TANDON | E33: SELL | F33: 20,927 | G33: 12.46 | H33: BSE
A34: 2021-05-21 | B34: 540821 | C34: SADHNA | D34: SARABJIT SINGH | E34: SELL | F34: 54,500 | G34: 11 | H34: BSE
A35: 2021-05-21 | B35: 540821 | C35: SADHNA | D35: GAURAV GUPTA | E35: BUY | F35: 54,500 | G35: 11 | H35: BSE
A36: 2021-05-21 | B36: 500370 | C36: SALORAINTL | D36: ALERT CONSULTANTS & CREDIT PRIVATE LIMITED | E36: BUY | F36: 83,100 | G36: 47.99 | H36: BSE
A37: 2021-05-21 | B37: 540259 | C37: SHANGAR | D37: SHREE SHIVSHAKTI PROJECT CONSULTANT PRIVATE LIMITED | E37: BUY | F37: 245,818 | G37: 11 | H37: BSE
A38: 2021-05-21 | B38: 540259 | C38: SHANGAR | D38: SHREE SHIVSHAKTI PROJECT CONSULTANT PRIVATE LIMITED | E38: SELL | F38: 176,142 | G38: 11.89 | H38: BSE
A39: 2021-05-21 | B39: 540259 | C39: SHANGAR | D39: GOENKA BUSINESS & FINANCE LIMITED | E39: BUY | F39: 193,141 | G39: 11.78 | H39: BSE
A40: 2021-05-21 | B40: 540259 | C40: SHANGAR | D40: GOENKA BUSINESS & FINANCE LIMITED | E40: SELL | F40: 80 | G40: 12.25 | H40: BSE
A41: 2021-05-21 | B41: 540259 | C41: SHANGAR | D41: OLGA TRADING PRIVATE LIMITED | E41: BUY | F41: 585,789 | G41: 11.3 | H41: BSE
A42: 2021-05-21 | B42: 540259 | C42: SHANGAR | D42: OLGA TRADING PRIVATE LIMITED | E42: SELL | F42: 3,076 | G42: 12.01 | H42: BSE
A43: 2021-05-21 | B43: 540259 | C43: SHANGAR | D43: NAVEEN GUPTA | E43: BUY | F43: 70,340 | G43: 11.6 | H43: BSE
A44: 2021-05-21 | B44: 540259 | C44: SHANGAR | D44: NAVEEN GUPTA | E44: SELL | F44: 63,240 | G44: 11.66 | H44: BSE
A45: 2021-05-21 | B45: 540259 | C45: SHANGAR | D45: JINESH ASHWIN MATALIA | E45: BUY | F45: 100,000 | G45: 11 | H45: BSE
A46: 2021-05-21 | B46: 540259 | C46: SHANGAR | D46: SAMIRBHAI RASIKLAL SHAH | E46: SELL | F46: 1,000,000 | G46: 11 | H46: BSE
A47: 2021-05-21 | B47: 540259 | C47: SHANGAR | D47: JYOTIBEN CHANDULAL SANGHVI | E47: BUY | F47: 100,000 | G47: 11 | H47: BSE
A48: 2021-05-21 | B48: 539026 | C48: SSPNFIN | D48: ESPS FINSERVE PRIVATE LIMITED. | E48: BUY | F48: 56,000 | G48: 8.1 | H48: BSE
A49: 2021-05-21 | B49: 539026 | C49: SSPNFIN | D49: SUSHIL KUMAR MISHRA | E49: SELL | F49: 36,000 | G49: 7.99 | H49: BSE
A50: 2021-05-21 | B50: 539026 | C50: SSPNFIN | D50: FINDOC INVESTMART PVT LTD | E50: BUY | F50: 20,000 | G50: 7.79 | H50: BSE
A51: 2021-05-21 | B51: 539026 | C51: SSPNFIN | D51: FINDOC INVESTMART PVT LTD | E51: SELL | F51: 20,000 | G51: 8.11 | H51: BSE
A52: 2021-05-21 | B52: 539026 | C52: SSPNFIN | D52: MOHIT HIREN SHAH | E52: BUY | F52: 20,000 | G52: 7.9 | H52: BSE
A53: 2021-05-21 | B53: 539026 | C53: SSPNFIN | D53: MAHESH PRATAP SINGH | E53: BUY | F53: 20,000 | G53: 8.15 | H53: BSE
A54: 2021-05-21 | B54: 539026 | C54: SSPNFIN | D54: MOHIT HIREN SHAH | E54: SELL | F54: 20,000 | G54: 7.95 | H54: BSE
A55: 2021-05-21 | B55: 539026 | C55: SSPNFIN | D55: MAHESH PRATAP SINGH | E55: SELL | F55: 20,000 | G55: 8.25 | H55: BSE
A56: 2021-05-21 | B56: 539026 | C56: SSPNFIN | D56: SUNIL KUMAR SINGH | E56: SELL | F56: 32,000 | G56: 8.13 | H56: BSE
A57: 2021-05-21 | B57: 539026 | C57: SSPNFIN | D57: SUBASH RAMASHISH MISHRA | E57: BUY | F57: 36,000 | G57: 8.18 | H57: BSE
A58: 2021-05-21 | B58: 539026 | C58: SSPNFIN | D58: ESPS FINSERVE PRIVATE LIMITED | E58: SELL | F58: 36,000 | G58: 8.19 | H58: BSE
A59: 2021-05-21 | B59: 532070 | C59: SUPRBPA | D59: GHANSHYAM JASHBHAI PATEL | E59: BUY | F59: 60,000 | G59: 10.36 | H59: BSE
A60: 2021-05-21 | B60: 532070 | C60: SUPRBPA | D60: GAYITHRI HANUMANTHARAJU | E60: BUY | F60: 30,840 | G60: 10.67 | H60: BSE
A61: 2021-05-21 | B61: 532070 | C61: SUPRBPA | D61: GAYITHRI HANUMANTHARAJU | E61: SELL | F61: 32,159 | G61: 10.37 | H61: BSE
A62: 2021-05-21 | B62: 538607 | C62: TOYAMIND | D62: SHRENI SHARES PRIVATE LIMITED | E62: SELL | F62: 1,600,000 | G62: 1.56 | H62: BSE
A63: 2021-05-21 | B63: 530459 | C63: VALSONQ | D63: DANTHULURI MALLAPA RAJU VARMA | E63: BUY | F63: 40,000 | G63: 22.63 | H63: BSE
A64: 2021-05-21 | B64: 538565 | C64: VISTARAMAR | D64: KAMLESH JADAVJI JUNGI | E64: SELL | F64: 18,368 | G64: 63.8 | H64: BSE
A65: 2021-05-21 | B65: 539222 | C65: VMV | D65: SAAGAR VINESH VYAS | E65: BUY | F65: 62,500 | G65: 8.25 | H65: BSE
A66: 2021-05-21 | B66: 539222 | C66: VMV | D66: RAJESH RAMANLAL KAPADIA | E66: SELL | F66: 60,000 | G66: 8.26 | H66: BSE
A67: 2021-05-21 | B67: 539222 | C67: VMV | D67: SUBASH RAMASHISH MISHRA | E67: BUY | F67: 35,000 | G67: 8.24 | H67: BSE
A68: 2021-05-21 | B68: 539222 | C68: VMV | D68: ESPS FINSERVE PRIVATE LIMITED | E68: SELL | F68: 35,000 | G68: 8.17 | H68: BSE
A69: 2021-05-21 | B69: APOLLO | C69: Apollo Micro Systems Ltd | D69: GRAVITON RESEARCH CAPITAL LLP | E69: BUY | F69: 109,420 | G69: 120.74 | H69: NSE
A70: 2021-05-21 | B70: APOLSINHOT | C70: Apollo Sindoori Hotels Li | D70: PORINJU V. VELIYATH | E70: BUY | F70: 15,000 | G70: 764.26 | H70: NSE
A71: 2021-05-21 | B71: BANARBEADS | C71: Banaras Beads Ltd | D71: GAURAV DOSHI | E71: BUY | F71: 56,966 | G71: 61.39 | H71: NSE
A72: 2021-05-21 | B72: BANARBEADS | C72: Banaras Beads Ltd | D72: B.W.TRADERS | E72: BUY | F72: 36,874 | G72: 58.51 | H72: NSE
A73: 2021-05-21 | B73: BANARBEADS | C73: Banaras Beads Ltd | D73: NK SECURITIES RESEARCH PRIVATE LIMITED | E73: BUY | F73: 34,292 | G73: 59.82 | H73: NSE
A74: 2021-05-21 | B74: BCLIND | C74: BCL Industries Limited | D74: NIRMAN COMMODITIES PRIVATE LIMITED | E74: BUY | F74: 147,998 | G74: 152.56 | H74: NSE
A75: 2021-05-21 | B75: HARRMALAYA | C75: Harrisons Malayalam Ltd | D75: VIJETA STOCK & SHARES SERVICES PRIVATE LIMITED VIJETA STOCK | E75: BUY | F75: 213,908 | G75: 183.43 | H75: NSE
A76: 2021-05-21 | B76: HFCL | C76: HFCL Limited | D76: GRAVITON RESEARCH CAPITAL LLP | E76: BUY | F76: 6,426,539 | G76: 48.76 | H76: NSE
A77: 2021-05-21 | B77: IBULHSGFIN | C77: Indiabulls Hsg Fin Ltd | D77: TOWER RESEARCH CAPITAL MARKETS INDIA PRIVATE LIMITED | E77: BUY | F77: 2,583,299 | G77: 216.14 | H77: NSE
A78: 2021-05-21 | B78: JUSTDIAL | C78: Justdial Ltd. | D78: GRAVITON RESEARCH CAPITAL LLP | E78: BUY | F78: 333,563 | G78: 808.51 | H78: NSE
A79: 2021-05-21 | B79: KANPRPLA | C79: Kanpur Plastipack Limited | D79: G SANTOSH KAVAR | E79: BUY | F79: 78,557 | G79: 194.41 | H79: NSE
A80: 2021-05-21 | B80: MADHAV | C80: Madhav Marbles and Granit | D80: MANMOHAN CHAUHAN | E80: BUY | F80: 54,378 | G80: 59.21 | H80: NSE
A81: 2021-05-21 | B81: MOKSH | C81: Moksh Ornaments Limited | D81: DHAVAL MEHTA | E81: BUY | F81: 77,000 | G81: 66.34 | H81: NSE
A82: 2021-05-21 | B82: MOKSH | C82: Moksh Ornaments Limited | D82: DHAVAL VINODBHAI GADANI | E82: BUY | F82: 65,385 | G82: 66.51 | H82: NSE
A83: 2021-05-21 | B83: MOKSH | C83: Moksh Ornaments Limited | D83: RAMKUMAR BHOLANATH YADAV | E83: BUY | F83: 77,000 | G83: 66.35 | H83: NSE
A84: 2021-05-21 | B84: MOKSH | C84: Moksh Ornaments Limited | D84: DHARMIK CHAUHAN | E84: BUY | F84: 58,000 | G84: 66.36 | H84: NSE
A85: 2021-05-21 | B85: MOKSH | C85: Moksh Ornaments Limited | D85: KEYUR VINOD CHANDRA PARMAR | E85: BUY | F85: 71,386 | G85: 66.47 | H85: NSE
A86: 2021-05-21 | B86: SINTEX | C86: Sintex Industries Ltd. | D86: ADROIT FINANCIAL SERVICES PVT LTD | E86: BUY | F86: 3,072,042 | G86: 3.45 | H86: NSE
A87: 2021-05-21 | B87: SOUTHBANK | C87: South Indian Bank Ltd. | D87: TOPGAIN FINANCE PRIVATE LIMITED | E87: BUY | F87: 8,448,278 | G87: 11.5 | H87: NSE
A88: 2021-05-21 | B88: SOUTHBANK | C88: South Indian Bank Ltd. | D88: SHARE INDIA SECURITIES LIMITED | E88: BUY | F88: 12,228,407 | G88: 11.35 | H88: NSE
A89: 2021-05-21 | B89: TEXMOPIPES | C89: Texmo Pipe & Products Ltd | D89: NK SECURITIES RESEARCH PRIVATE LIMITED | E89: BUY | F89: 210,939 | G89: 46.6 | H89: NSE
A90: 2021-05-21 | B90: TEXMOPIPES | C90: Texmo Pipe & Products Ltd | D90: PULIN INVESTMENTS PVT. LTD | E90: BUY | F90: 154,466 | G90: 46.78 | H90: NSE
A91: 2021-05-21 | B91: TEXMOPIPES | C91: Texmo Pipe & Products Ltd | D91: GRAVITON RESEARCH CAPITAL LLP | E91: BUY | F91: 239,790 | G91: 46.51 | H91: NSE
A92: 2021-05-21 | B92: VERTOZ | C92: Vertoz Advertising Ltd | D92: SHREE SHIVSHAKTI PROJECT CONSULTANT PRIVATE LIMITE | E92: BUY | F92: 88,426 | G92: 238.66 | H92: NSE
A93: 2021-05-21 | B93: APOLLO | C93: Apollo Micro Systems Ltd | D93: GRAVITON RESEARCH CAPITAL LLP | E93: SELL | F93: 109,420 | G93: 120.75 | H93: NSE
A94: 2021-05-21 | B94: BANARBEADS | C94: Banaras Beads Ltd | D94: GAURAV DOSHI | E94: SELL | F94: 46,887 | G94: 60.84 | H94: NSE
A95: 2021-05-21 | B95: BANARBEADS | C95: Banaras Beads Ltd | D95: B.W.TRADERS | E95: SELL | F95: 1,468 | G95: 59.34 | H95: NSE
A96: 2021-05-21 | B96: BANARBEADS | C96: Banaras Beads Ltd | D96: NK SECURITIES RESEARCH PRIVATE LIMITED | E96: SELL | F96: 34,292 | G96: 59.89 | H96: NSE
A97: 2021-05-21 | B97: BCLIND | C97: BCL Industries Limited | D97: NIRMAN COMMODITIES PRIVATE LIMITED | E97: SELL | F97: 147,998 | G97: 154.28 | H97: NSE
A98: 2021-05-21 | B98: DEN | C98: Den Networks Ltd | D98: BROAD STREET INVESTMENTS (SINGAPORE) PTE. LIMITED. | E98: SELL | F98: 4,138,297 | G98: 46.26 | H98: NSE
A99: 2021-05-21 | B99: FELIX | C99: Felix Industries Ltd. | D99: SILKON TRADES LLP | E99: SELL | F99: 32,000 | G99: 39.75 | H99: NSE
A100: 2021-05-21 | B100: HARRMALAYA | C100: Harrisons Malayalam Ltd | D100: VIJETA STOCK & SHARES SERVICES PRIVATE LIMITED VIJETA STOCK | E100: SELL | F100: 200,308 | G100: 182.96 | H100: NSE
A101: 2021-05-21 | B101: HFCL | C101: HFCL Limited | D101: GRAVITON RESEARCH CAPITAL LLP | E101: SELL | F101: 6,426,539 | G101: 48.78 | H101: NSE
A102: 2021-05-21 | B102: IBULHSGFIN | C102: Indiabulls Hsg Fin Ltd | D102: TOWER RESEARCH CAPITAL MARKETS INDIA PRIVATE LIMITED | E102: SELL | F102: 2,701,456 | G102: 216.25 | H102: NSE
A103: 2021-05-21 | B103: JUSTDIAL | C103: Justdial Ltd. | D103: GRAVITON RESEARCH CAPITAL LLP | E103: SELL | F103: 333,563 | G103: 808.93 | H103: NSE
A104: 2021-05-21 | B104: MADHAV | C104: Madhav Marbles and Granit | D104: MANMOHAN CHAUHAN | E104: SELL | F104: 50,858 | G104: 59.12 | H104: NSE
A105: 2021-05-21 | B105: MOKSH | C105: Moksh Ornaments Limited | D105: RAMKUMAR BHOLANATH YADAV | E105: SELL | F105: 77,000 | G105: 66.33 | H105: NSE
A106: 2021-05-21 | B106: MOKSH | C106: Moksh Ornaments Limited | D106: DHARMIK CHAUHAN | E106: SELL | F106: 58,000 | G106: 66.34 | H106: NSE
A107: 2021-05-21 | B107: MOKSH | C107: Moksh Ornaments Limited | D107: DHAVAL VINODBHAI GADANI | E107: SELL | F107: 65,385 | G107: 66.48 | H107: NSE
A108: 2021-05-21 | B108: MOKSH | C108: Moksh Ornaments Limited | D108: KEYUR VINOD CHANDRA PARMAR | E108: SELL | F108: 71,386 | G108: 66.46 | H108: NSE
A109: 2021-05-21 | B109: MOKSH | C109: Moksh Ornaments Limited | D109: DHAVAL MEHTA | E109: SELL | F109: 77,000 | G109: 66.35 | H109: NSE
A110: 2021-05-21 | B110: RADIOCITY | C110: Music Broadcast Limited | D110: MARCELLUS INVESTMENT MANAGERS PVT LTD | E110: SELL | F110: 3,129,319 | G110: 23.14 | H110: NSE
A111: 2021-05-21 | B111: SICAL | C111: Sical Logistics Limited | D111: AXIS BANK LIMITED | E111: SELL | F111: 300,000 | G111: 12.03 | H111: NSE
A112: 2021-05-21 | B112: SINTEX | C112: Sintex Industries Ltd. | D112: ADROIT FINANCIAL SERVICES PVT LTD | E112: SELL | F112: 2,981,378 | G112: 3.44 | H112: NSE
A113: 2021-05-21 | B113: SMCGLOBAL | C113: SMC Global Securities Ltd | D113: MILLENNIUM INVESTMENT AND ACQUISITION COMPANY INC | E113: SELL | F113: 611,971 | G113: 71.64 | H113: NSE
A114: 2021-05-21 | B114: SOUTHBANK | C114: South Indian Bank Ltd. | D114: SHARE INDIA SECURITIES LIMITED | E114: SELL | F114: 12,468,916 | G114: 11.35 | H114: NSE
A115: 2021-05-21 | B115: SOUTHBANK | C115: South Indian Bank Ltd. | D115: TOPGAIN FINANCE PRIVATE LIMITED | E115: SELL | F115: 11,048,278 | G115: 11.48 | H115: NSE
A116: 2021-05-21 | B116: TEXMOPIPES | C116: Texmo Pipe & Products Ltd | D116: PULIN INVESTMENTS PVT. LTD | E116: SELL | F116: 152,807 | G116: 46.72 | H116: NSE
A117: 2021-05-21 | B117: TEXMOPIPES | C117: Texmo Pipe & Products Ltd | D117: NK SECURITIES RESEARCH PRIVATE LIMITED | E117: SELL | F117: 210,939 | G117: 46.66 | H117: NSE
A118: 2021-05-21 | B118: TEXMOPIPES | C118: Texmo Pipe & Products Ltd | D118: GRAVITON RESEARCH CAPITAL LLP | E118: SELL | F118: 239,790 | G118: 46.76 | H118: NSE
A119: 2021-05-21 | B119: VERTOZ | C119: Vertoz Advertising Ltd | D119: SHREE SHIVSHAKTI PROJECT CONSULTANT PRIVATE LIMITE | E119: SELL | F119: 88,426 | G119: 238.36 | H119: NSE

Sheet Call Tracker (Equity & F&O)
M5: Back To Main Page
A6: Retail Research Technical Calls & Fundamental Performance Report for the month of May-2021
M7: =Main!B10 -> 2021-05-24
B8: Positional Call
A9: Sr.no | B9: Date | D9: Company | E9: Rec | F9: Rec Price | G9: Stop Loss*** | H9: Call Closed At | I9: Target | J9: Remark | K9: Profit / Loss per Share | L9: All charges | M9: Net Gain / Loss % | N9: Status | O9: Closed Date
A10: 1 | B10: 2021-04-05 | D10: HDFCBANK | E10: Buy | F10: 1465-1475 | G10: 1370 | I10: 1600-1700 | J10: Open | R10: H
A11: 2 | B11: 2021-04-09 | D11: GLAXO | E11: Buy | F11: 1440 | G11: 1370 | H11: 1,545.00 | I11: 1550-1600 | J11: Profit of Rs.105/- | K11: =H11-F11 -> 105 | L11: =(F11*-0.8)/100 -> -11.52 | M11: =(K11+L11)/F11 -> 6.49% | N11: Successful | O11: 2021-05-18 | R11: H
A12: 3 | B12: 2021-04-15 | D12: GMMPFAUDLR | E12: Buy | F12: 4125 | G12: 3850 | H12: 4,390.00 | I12: 4500-4600 | J12: Profit of Rs.265/- | K12: =H12-F12 -> 265 | L12: =(F12*-0.8)/100 -> -33.00 | M12: =(K12+L12)/F12 -> 5.62% | N12: Successful | O12: 2021-05-10 | R12: N
A13: 4 | B13: 2021-04-27 | D13: GODREJAGRO | E13: Buy | F13: 492.5 | G13: 460 | H13: 524.00 | I13: 550 | J13: Profit of Rs.31.50/- | K13: =H13-F13 -> 31.5 | L13: =(F13*-0.8)/100 -> -3.94 | M13: =(K13+L13)/F13 -> 5.60% | N13: Successful | O13: 2021-05-05 | R13: N
A14: 5 | B14: 2021-04-28 | D14: HDFCAMC | E14: Buy | F14: 2790-2810 | G14: 2600 | I14: 3200 | J14: Open | R14: N
A15: 6 | B15: 2021-04-29 | D15: SUMICHEM | E15: Buy | F15: 300 | G15: 278 | H15: 318.00 | I15: 330-340 | J15: Profit of Rs.18/- | K15: =H15-F15 -> 18 | L15: =(F15*-0.8)/100 -> -2.40 | M15: =(K15+L15)/F15 -> 5.20% | N15: Successful | O15: 2021-05-17 | R15: H
A16: 7 | B16: 2021-05-03 | D16: BALKRISIND | E16: Buy | F16: 1750 | G16: 1635 | H16: 1,857.50 | I16: 1950 | J16: Profit of Rs.107.5/- | K16: =H16-F16 -> 107.5 | L16: =(F16*-0.8)/100 -> -14.00 | M16: =(K16+L16)/F16 -> 5.34% | N16: Successful | O16: 2021-05-10 | R16: N
A17: 8 | B17: 2021-05-03 | D17: HDFCLIFE | E17: Buy | F17: 660-666 | G17: 619 | I17: 720-740 | J17: Open | R17: H
A18: 9 | B18: 2021-05-17 | D18: LTI | E18: Buy | F18: 3535 | G18: 3340 | H18: 3,752.50 | I18: 3750-3850 | J18: Profit of Rs.217.5/- | K18: =H18-F18 -> 217.5 | L18: =(F18*-0.8)/100 -> -28.28 | M18: =(K18+L18)/F18 -> 5.35% | N18: Successful | O18: 2021-05-19 | R18: H
A19: 10 | B19: 2021-05-19 | D19: BURGERKING | E19: Buy | F19: 141-142 | G19: 129 | I19: 155-160 | J19: Open | R19: H
A20: 11 | B20: 2021-05-21 | D20: RADICO | E20: Buy | F20: 590-595 | G20: 555 | I20: 650-680 | J20: Open | R20: H
A24: CLBS = Closing Basis ***
A25: Dividend adjusted <> | F25: Reinitiated $
A26: Part book {} | F26: Revised stoploss #
B28: Momentum Call
A29: Sr.no | B29: Date | D29: Company | E29: Rec | F29: Rec Price | G29: Stop Loss | H29: Call Closed At | I29: Target | J29: Remark | K29: Profit / Loss per Share/Lot | L29: All charges | M29: Net Gain / Loss % | N29: Status | O29: Closed Date
A30: 1 | B30: 2021-04-20 | D30: IGL | E30: Buy | F30: 510 | G30: 494 | H30: 526 | I30: 535-545 | J30: Profit of Rs.16/- | K30: =H30-F30 -> 16 | L30: =(F30*-0.7)/100 -> -3.57 | M30: =(K30+L30)/F30 -> 2.44% | N30: Successful | O30: 2021-05-07 | R30: H
A31: 2 | B31: 2021-04-28 | D31: COLPAL | E31: Buy | F31: 1500 | G31: 1450 | H31: 1541 | I31: 1600 | J31: Profit of Rs.41/- | K31: =H31-F31 -> 41 | L31: =(F31*-0.7)/100 -> -10.50 | M31: =(K31+L31)/F31 -> 2.03% | N31: Successful | O31: 2021-05-12 | R31: N
A32: 3 | B32: 2021-04-30 | D32: GUJGASLTD | E32: Buy | F32: 533.5 | G32: 517 | H32: 548.5 | I32: 560-565 | J32: Profit of Rs.15/- | K32: =H32-F32 -> 15 | L32: =(F32*-0.7)/100 -> -3.73 | M32: =(K32+L32)/F32 -> 2.11% | N32: Successful | O32: 2021-05-07 | R32: N
A33: 4 | B33: 2021-05-03 | D33: SUNPHARMA | E33: Buy | F33: 651 | G33: 630 | H33: 663 | I33: 690 | J33: Profit of Rs.12/- | K33: 12 | L33: =(F33*-0.07)/100 -> -0.46 | M33: =(K33+L33)/F33 -> 1.77% | N33: Successful | O33: 2021-05-03 | R33: H
A34: 5 | B34: 2021-05-03 | D34: DABUR | E34: Buy | F34: 543 | G34: 524 | H34: 524 | I34: 570-575 | J34: Loss of Rs. 19/- | K34: -19 | L34: =(F34*-0.7)/100 -> -3.80 | M34: -4.20% | N34: Unsuccessful | O34: 2021-05-10 | R34: H
A35: 6 | B35: 2021-05-04 | D35: BHARTIARTL | E35: Buy | F35: 558.5 | G35: 544 | H35: 574 | I35: 580-590 | J35: Profit of Rs.15.5/- | K35: 15.5 | L35: -3.91 | M35: =(K35+L35)/F35 -> 2.08% | N35: Successful | O35: 2021-05-10 | R35: H
A36: 7 | B36: 2021-05-05 | D36: CAPLIPOINT | E36: Buy | F36: 526 | G36: 510 | H36: 535 | I36: 550 | J36: Profit of Rs.9/- | K36: 9 | L36: -3.68 | M36: =(K36+L36)/F36 -> 1.01% | N36: Successful | O36: 2021-05-06 | R36: N
A37: 8 | B37: 2021-05-05 | D37: AEGISCHEM | E37: Buy | F37: 326.5 | G37: 317 | H37: 338 | I37: 345 | J37: Profit of Rs.11.5/- | K37: 11.5 | L37: -2.29 | M37: 2.82% | N37: Successful | O37: 2021-05-10 | R37: H
A38: 9 | B38: 2021-05-07 | D38: CADILAHC | E38: Buy | F38: 609 | G38: 590 | H38: 628 | I38: 650 | J38: Profit of Rs.19/- | K38: 19 | L38: -4.26 | M38: =(K38+L38)/F38 -> 2.42% | N38: Successful | O38: 2021-05-10 | R38: N
A39: 10 | B39: 2021-05-07 | D39: DHANUKA | E39: Buy | F39: 802.5 | G39: 778 | H39: 825 | I39: 840-850 | J39: Profit of Rs.22.5/- | K39: 22.5 | L39: -5.62 | M39: =(K39+L39)/F39 -> 2.10% | N39: Successful | O39: 2021-05-10 | R39: H
A40: 11 | B40: 2021-05-10 | D40: GUJGASLTD | E40: Buy | F40: 530 | G40: 515 | H40: 530 | I40: 560-565 | J40: Neutral | K40: 0 | L40: -3.71 | M40: =(K40+L40)/F40 -> -0.70% | N40: Neutral | O40: 2021-05-11 | R40: H
A41: 12 | B41: 2021-05-10 | D41: ASIANPAINT | E41: Buy | F41: 2550 | G41: 2475 | H41: 2620 | I41: 2700-2720 | J41: Profit of Rs.70/- | K41: =H41-F41 -> 70 | L41: =(F41*-0.7)/100 -> -17.85 | M41: 2.05% | N41: Successful | O41: 2021-05-14 | R41: H
A42: 13 | B42: 2021-05-11 | D42: PIDILITIND | E42: Buy | F42: 1837 | G42: 1780 | H42: 1877.5 | I42: 1900-1920 | J42: Profit of Rs.40.5/- | K42: =H42-F42 -> 40.5 | L42: =(F42*-0.07)/100 -> -1.29 | M42: =(K42+L42)/F42 -> 2.13% | N42: Successful | O42: 2021-05-11 | R42: H
A43: 14 | B43: 2021-05-11 | D43: STAR | E43: Buy | F43: 846.5 | G43: 820 | H43: 820 | I43: 895 | J43: Loss of Rs. 26.5/- | K43: =H43-F43 -> -26.5 | L43: =(F43*-0.7)/100 -> -5.93 | M43: -3.83% | N43: Unsuccessful | O43: 2021-05-12 | R43: N
A44: 15 | B44: 2021-05-12 | D44: GUJGASLTD | E44: Buy | F44: 524 | G44: 507 | H44: 507 | I44: 560 | J44: Loss of Rs. 17/- | K44: =H44-F44 -> -17 | L44: =(F44*-0.7)/100 -> -3.67 | M44: =(K44+L44)/F44 -> -3.94% | N44: Unsuccessful | O44: 2021-05-14 | R44: N
A45: 16 | B45: 2021-05-14 | D45: IGL | E45: Buy | F45: 514-517 | G45: 497 | I45: 540-550 | J45: Open | R45: H
A46: 17 | B46: 2021-05-14 | D46: CCL | E46: Buy | F46: 292 | G46: 284 | H46: 298.5 | I46: 310 | J46: Profit of Rs.6.5/- | K46: =H46-F46 -> 6.5 | L46: =(F46*-0.07)/100 -> -0.20 | M46: =(K46+L46)/F46 -> 2.16% | N46: Successful | O46: 2021-05-14 | R46: H
A47: 18 | B47: 2021-05-14 | D47: IPCALAB | E47: Buy | F47: 2160 | G47: 2090 | H47: 2225 | I47: 2250-2260 | J47: Profit of Rs.65/- | K47: =H47-F47 -> 65 | L47: =(F47*-0.7)/100 -> -15.12 | M47: 2.31% | N47: Successful | O47: 2021-05-20 | R47: N
A48: 19 | B48: 2021-05-18 | D48: BHARTIARTL | E48: Buy | F48: 541 | G48: 524 | H48: 523 | I48: 570-575 | J48: Loss of Rs. 18/- | K48: =H48-F48 -> -18 | L48: =(F48*-0.7)/100 -> -3.79 | M48: -4.03% | N48: Unsuccessful | O48: 2021-05-20 | R48: H
A49: 20 | B49: 2021-05-18 | D49: BEML | E49: Buy | F49: 1321.5 | G49: 1280 | H49: 1357 | I49: 1380-1400 | J49: Profit of Rs.65/- | K49: =H49-F49 -> 35.5 | L49: =(F49*-0.7)/100 -> -9.25 | M49: =(K49+L49)/F49 -> 1.99% | N49: Successful | O49: 2021-05-21 | R49: N
A50: 21 | B50: 2021-05-18 | D50: GUJGASLTD | E50: Buy | F50: 527-530 | G50: 514 | I50: 560 | J50: Open | R50: H
A51: 22 | B51: 2021-05-20 | D51: SUNTV | E51: Buy | F51: 534-537 | G51: 518 | I51: 555 | J51: Open | R51: N
A52: 23 | B52: 2021-05-20 | D52: SBIN | E52: Buy | F52: 384 | G52: 369 | H52: 397 | I52: 405-415 | J52: Profit of Rs.13/- | K52: =H52-F52 -> 13 | L52: =(F52*-0.7)/100 -> -2.69 | M52: =(K52+L52)/F52 -> 2.69% | N52: Successful | O52: 2021-05-21 | R52: H
A53: 24 | B53: 2021-05-20 | D53: HCLTECH | E53: Buy | F53: 923-927 | G53: 889 | I53: 970-980 | J53: Open | R53: H
A54: 25 | B54: 2021-05-21 | D54: BEML | E54: Buy | F54: 1312-1316 | G54: 1275 | I54: 1380-1400 | J54: Open | R54: N
A58: CLBS = Closing Basis *** | H58: *
A59: Dividend adjusted <> | F59: Reinitiated $
F60: Revised stoploss #
A62: Master Trade High Risk
A63: Sr.no | B63: Date | D63: Company | E63: Rec | F63: Rec Price | G63: Stop Loss | H63: Call Closed At | I63: Target | J63: Remark | K63: Profit / Loss per share | L63: All charges | M63: Gain / Loss per Lot | N63: Lot | O63: Status | P63: Closed Date
A64: 1 | B64: 2021-05-05 | D64: CIPLA MAY FUT | E64: Buy | F64: 893 | G64: 871 | H64: 908.5 | I64: 730 | J64: Profit of Rs.15.5/- | K64: =H64-F64 -> 15.5 | L64: =(H64*N64)*0.07% -> 413.37 | M64: =(K64*N64)-L64 -> 9661.6 | N64: 650 | O64: Successful | P64: 2021-05-06 | R64: N
A65: 2 | B65: 2021-05-06 | D65: SUNPHARMA MAY FUT | E65: Buy | F65: 683 | G65: 674 | H65: 692.5 | I65: 705 | J65: Profit of Rs.9.5/- | K65: =H65-F65 -> 9.5 | L65: =(H65*N65)*0.07% -> 678.65 | M65: =(K65*N65)-L65 -> 12621.4 | N65: 1400 | O65: Successful | P65: 2021-05-06 | R65: H
A66: 3 | B66: 2021-05-06 | D66: CIPLA MAY FUT | E66: Buy | F66: 895 | G66: 874 | H66: 906 | I66: 935 | J66: Profit of Rs.11/- | K66: 11 | L66: =(H66*N66)*0.07% -> 412.23 | M66: 6737.8 | N66: 650 | O66: Successful | P66: 2021-05-10 | R66: H
A67: 4 | B67: 2021-05-12 | D67: CIPLA MAY FUT | E67: Buy | F67: 895 | G67: 874 | H67: 908.5 | I67: 935 | J67: Profit of Rs.13.5/- | K67: =H67-F67 -> 13.5 | L67: =(H67*N67)*0.07% -> 413.37 | M67: =(K67*N67)-L67 -> 8361.6 | N67: 650 | O67: Successful | P67: 2021-05-12 | R67: N
A68: 5 | B68: 2021-05-14 | D68: CUMMINSIND MAY FUT | E68: Buy | F68: 826 | G68: 805 | H68: 805 | I68: 850-860 | J68: Loss of Rs.21/- | K68: -21 | L68: =(H68*N68)*0.07% -> 338.10 | M68: -12938.1 | N68: 600 | O68: Unsuccessful | P68: 2021-05-17 | R68: N
A69: 6 | B69: 2021-05-19 | D69: ITC MAY FUT | E69: Buy | F69: 208.8-209.2 | G69: 204 | I69: 217 | J69: Open | R69: H
D70: ITC 215 CE MAY | E70: Buy | F70: 1.40-1.60 | R70: H
A74: Master Trade Medium Risk
A75: Sr.no | B75: Date | D75: Company | E75: Rec | F75: Rec Price | G75: Stop Loss | H75: Call Closed At | I75: Target | J75: Remark | K75: Profit/ Loss per lot | L75: All charges | M75: Gain / Loss per Lot | N75: Lot | O75: Status | P75: Closed Date
A76: 1 | B76: 2021-05-03 | D76: ICICIBANK 620 CE MAY | E76: Buy | F76: 12 | G76: 8 | H76: 13.25 | I76: 20 | J76: Profit of Rs.1.25/- | K76: =H76-F76 -> 1.25 | L76: 100 | M76: =(K76*N76)-L76 -> 1618.8 | N76: 1375 | O76: Successful | P76: 2021-05-03 | R76: H
A77: 2 | B77: 2021-05-04 | D77: HINDUNILVR 2440 CE MAY | E77: Buy | F77: 37 | G77: 19 | H77: 45 | I77: 70-75 | J77: Profit of Rs.8/- | K77: 8 | L77: 100 | M77: 2300.0 | N77: 300 | O77: Successful | P77: 2021-05-04 | R77: H
A78: 3 | B78: 2021-05-04 | D78: HINDUNILVR 2460 CE MAY | E78: Buy | F78: 36 | G78: 19 | H78: 40.5 | I78: 70-75 | J78: Profit of Rs.4.5/- | K78: 4.5 | L78: 100 | M78: 1250.0 | N78: 300 | O78: Successful | P78: 2021-05-04 | R78: H
A79: 4 | B79: 2021-05-04 | D79: NIFTY 14500 PE 06-MAY | E79: Buy | F79: 57.5 | G79: 19 | H79: 74 | I79: 120 | J79: Profit of Rs.16.5/- | K79: 16.5 | L79: 100 | M79: 1137.5 | N79: 75 | O79: Successful | P79: 2021-05-04 | R79: N
A80: 5 | B80: 2021-05-05 | D80: HDFC 2500 CE MAY | E80: Buy | F80: 41 | G80: 25 | H80: 47.5 | I80: 70-75 | J80: Profit of Rs.6.5/- | K80: 6.5 | L80: 100 | M80: 1850.0 | N80: 300 | O80: Successful | P80: 2021-05-05 | R80: H
A81: 6 | B81: 2021-05-05 | D81: HDFC 2500 CE MAY | E81: Buy | F81: 39 | G81: 24 | H81: 45 | I81: 70-75 | J81: Profit of Rs.6/- | K81: 6 | L81: 100 | M81: 1700.0 | N81: 300 | O81: Successful | P81: 2021-05-06 | R81: H
A82: 7 | B82: 2021-05-05 | D82: HINDUNILVR 2460 CE MAY | E82: Buy | F82: 36 | G82: 19 | H82: 39.5 | I82: 70-75 | J82: Profit of Rs.3.5/- | K82: =H82-F82 -> 3.5 | L82: 100 | M82: =(K82*N82)-L82 -> 950.0 | N82: 300 | O82: Successful | P82: 2021-05-10 | R82: H
A83: 8 | B83: 2021-05-06 | D83: NIFTY 14650 CE 06-MAY | E83: Buy | F83: 35 | H83: 49 | I83: 90 | J83: Profit of Rs.14/- | K83: =H83-F83 -> 14 | L83: 100 | M83: =(K83*N83)-L83 -> 950.0 | N83: 75 | O83: Successful | P83: 2021-05-06 | R83: N
A84: 9 | B84: 2021-05-06 | D84: HDFCBANK 1420 CE MAY | E84: Buy | F84: 37 | G84: 27 | H84: 41 | I84: 55 | J84: Profit of Rs.4/- | K84: =H84-F84 -> 4 | L84: 100 | M84: =(K84*N84)-L84 -> 2100.0 | N84: 550 | O84: Successful | P84: 2021-05-07 | R84: N
A85: 10 | B85: 2021-05-06 | D85: ICICIBANK 620 CE MAY | E85: Buy | F85: 12.5 | G85: 7.5 | H85: 16 | I85: 20 | J85: Profit of Rs.3.5/- | K85: =H85-F85 -> 3.5 | L85: 100 | M85: =(K85*N85)-L85 -> 4712.5 | N85: 1375 | O85: Successful | P85: 2021-05-07 | R85: H
A86: 11 | B86: 2021-05-07 | D86: NIFTY 14750 PE 12-MAY | E86: Buy | F86: 96 | G86: 58 | H86: 110 | I86: 170 | J86: Profit of Rs.14/- | K86: 14 | L86: 100 | M86: 950.0 | N86: 75 | O86: Successful | P86: 2021-05-07 | R86: N
A87: 12 | B87: 2021-05-07 | D87: DABUR 550 CE MAY | E87: Buy | F87: 12 | G87: 7 | H87: 13 | I87: 18-20 | J87: Profit of Rs.1/- | K87: =H87-F87 -> 1 | L87: 100 | M87: =(K87*N87)-L87 -> 1150.0 | N87: 1250 | O87: Successful | P87: 2021-05-07 | R87: H
A88: 13 | B88: 2021-05-10 | D88: NIFTY 14900 PE 12-MAY | E88: Buy | F88: 69 | G88: 38 | H88: 78 | I88: 130 | J88: Profit of Rs.9/- | K88: =H88-F88 -> 9 | L88: 100 | M88: =(K88*N88)-L88 -> 575.0 | N88: 75 | O88: Successful | P88: 2021-05-10 | R88: N
A89: 14 | B89: 2021-05-11 | D89: ICICIBANK 620 CE MAY | E89: Buy | F89: 9.75 | G89: 5.5 | H89: 11.75 | I89: 15-17 | J89: Profit of Rs.2/- | K89: =H89-F89 -> 2 | L89: 100 | M89: =(K89*N89)-L89 -> 2650.0 | N89: 1375 | O89: Successful | P89: 2021-05-11 | R89: N
A90: 15 | B90: 2021-05-11 | D90: NIFTY 14850 PE 12-MAY | E90: Buy | F90: 61 | G90: 25 | H90: 77 | I90: 120 | J90: Profit of Rs.16/- | K90: =H90-F90 -> 16 | L90: 100 | M90: =(K90*N90)-L90 -> 1100.0 | N90: 75 | O90: Successful | P90: 2021-05-11 | R90: N
A91: 16 | B91: 2021-05-11 | D91: CIPLA 930 CE MAY | E91: Buy | F91: 26.5 | G91: 17 | H91: 32 | I91: 45-50 | J91: Profit of Rs.5.5/- | K91: =H91-F91 -> 5.5 | L91: 100 | M91: =(K91*N91)-L91 -> 3475.0 | N91: 650 | O91: Successful | P91: 2021-05-14 | R91: H
A92: 17 | B92: 2021-05-12 | D92: PIDILITIND 1900 CE MAY | E92: Buy | F92: 34 | G92: 24 | H92: 39.5 | I92: 50-55 | J92: Profit of Rs.5.5/- | K92: =H92-F92 -> 5.5 | L92: 100 | M92: =(K92*N92)-L92 -> 2650.0 | N92: 500 | O92: Successful | P92: 2021-05-12 | R92: H
A93: 18 | B93: 2021-05-12 | D93: DABUR 545 CE MAY | E93: Sell | F93: 6-6.2 | G93: 10.5 | I93: 0.1 | J93: Open | R93: H
A94: 19 | B94: 2021-05-12 | D94: HDFCBANK 1420 CE MAY | E94: Buy | F94: 25 | G94: 15 | H94: 28 | I94: 40-45 | J94: Profit of Rs.3/- | K94: =H94-F94 -> 3 | L94: 100 | M94: =(K94*N94)-L94 -> 1550.0 | N94: 550 | O94: Successful | P94: 2021-05-17 | R94: N
A95: 20 | B95: 2021-05-12 | D95: ICICIBANK 620 CE MAY | E95: Buy | F95: 7.5 | G95: 4 | H95: 9.25 | I95: 14-16 | J95: Profit of Rs.1.75/- | K95: =H95-F95 -> 1.75 | L95: 100 | M95: =(K95*N95)-L95 -> 2306.3 | N95: 1375 | O95: Successful | P95: 2021-05-17 | R95: H
A96: 21 | B96: 2021-05-14 | D96: CIPLA 930 CE MAY | E96: Buy | F96: 28.5 | G96: 19 | H96: 21 | I96: 45-50 | J96: Loss of Rs.7.5/- | K96: -7.5 | L96: 100 | M96: =(K96*N96)-L96 -> -4975.0 | N96: 650 | O96: Unsuccessful | P96: 2021-05-17 | R96: H
A97: 22 | B97: 2021-05-14 | D97: NIFTY 14750 CE 20-MAY | E97: Buy | F97: 86.5 | G97: 40 | H97: 101.5 | I97: 150-170 | J97: Profit of Rs.15/- | K97: =H97-F97 -> 15 | L97: 100 | M97: =(K97*N97)-L97 -> 1025.0 | N97: 75 | O97: Successful | P97: 2021-05-14 | R97: N
A98: 23 | B98: 2021-05-14 | D98: BHARTIARTL 580 CE MAY | E98: Buy | F98: 9 | G98: 6 | H98: 6 | I98: 15-17 | J98: Loss of Rs.3/- | K98: =H98-F98 -> -3 | L98: 100 | M98: =(K98*N98)-L98 -> -5653.0 | N98: 1851 | O98: Unsuccessful | P98: 2021-05-18 | R98: H
A99: 24 | B99: 2021-05-17 | D99: NIFTY 14700 PE 20-MAY | E99: Buy | F99: 79 | G99: 35 | H99: 39 | I99: 150 | J99: Loss of Rs.40/- | K99: =H99-F99 -> -40 | L99: 100 | M99: =(K99*N99)-L99 -> -3100.0 | N99: 75 | O99: Unsuccessful | P99: 2021-05-17 | R99: N
A100: 25 | B100: 2021-05-17 | D100: M&MFIN 170 CE MAY | E100: Sell | F100: 2.40-2.60 | G100: 3.75 | I100: 0.1 | J100: Open | R100: N
A101: 26 | B101: 2021-05-17 | D101: BATAINDIA 1420 CE MAY | E101: Buy | F101: 27 | G101: 17 | H101: 31 | I101: 40-45 | J101: Profit of Rs.4/- | K101: =H101-F101 -> 4 | L101: 100 | M101: =(K101*N101)-L101 -> 2100.0 | N101: 550 | O101: Successful | P101: 2021-05-17 | R101: N
A102: 27 | B102: 2021-05-18 | D102: HDFCBANK 1480 CE MAY | E102: Buy | F102: 16 | G102: 6.5 | H102: 20.5 | I102: 30-35 | J102: Profit of Rs.4.5/- | K102: 4.5 | L102: 100 | M102: 2375.0 | N102: 550 | O102: Successful | P102: 2021-05-18 | R102: N
A103: 28 | B103: 2021-05-18 | D103: M&M 800 CE MAY | E103: Buy | F103: 15.5 | G103: 7 | H103: 19.5 | I103: 25-30 | J103: Profit of Rs.4/- | K103: =H103-F103 -> 4 | L103: 100 | M103: =(K103*N103)-L103 -> 2700.0 | N103: 700 | O103: Successful | P103: 2021-05-18 | R103: H
A104: 29 | B104: 2021-05-18 | D104: MARUTI 6900 CE MAY | E104: Buy | F104: 96-100 | G104: 49 | I104: 160-190 | J104: Open | R104: N
A105: 30 | B105: 2021-05-18 | D105: M&M 800 CE MAY | E105: Buy | F105: 15 | G105: 7 | H105: 19.5 | I105: 25-30 | J105: Profit of Rs.4.5/- | K105: =H105-F105 -> 4.5 | L105: 100 | M105: =(K105*N105)-L105 -> 3050.0 | N105: 700 | O105: Successful | P105: 2021-05-20 | R105: H
A106: 31 | B106: 2021-05-19 | D106: HDFCBANK 1480 CE MAY | E106: Buy | F106: 15.75 | G106: 6.5 | H106: 18.5 | I106: 30-35 | J106: Profit of Rs.2.75/- | K106: =H106-F106 -> 2.75 | L106: 100 | M106: =(K106*N106)-L106 -> 1412.5 | N106: 550 | O106: Successful | P106: 2021-05-21 | R106: H
A107: 32 | B107: 2021-05-19 | D107: NIFTY 15100 CE 20-MAY | E107: Buy | F107: 43.5 | G107: 5 | H107: 5 | I107: 100-120 | J107: Loss of Rs.38.5/- | K107: =H107-F107 -> -38.5 | L107: 100 | M107: =(K107*N107)-L107 -> -2987.5 | N107: 75 | O107: Unsuccessful | P107: 2021-05-20 | R107: H
A108: 33 | B108: 2021-05-20 | D108: M&M 810 CE MAY | E108: Buy | F108: 13.5 | G108: 6 | H108: 17.5 | I108: 25-27 | J108: Profit of Rs.4/- | K108: =H108-F108 -> 4 | L108: 100 | M108: =(K108*N108)-L108 -> 2700.0 | N108: 700 | O108: Successful | P108: 2021-05-21 | R108: H
A109: 34 | B109: 2021-05-21 | D109: RELIANCE 2000 CE MAY | E109: Buy | F109: 27-29 | G109: 10 | I109: 50-60 | R109: N
A110: 35 | B110: 2021-05-21 | D110: HDFC 2520 CE MAY | E110: Buy | F110: 27-29 | G110: 10 | I110: 50-60 | R110: H
A115: Techno -Funda (positional)
A116: Sr.no | B116: Date | D116: Company | E116: Rec | F116: Rec Price | G116: Stop Loss*** | H116: Call Closed At | I116: Target | J116: Remark | K116: Profit / Loss per Share/Lot | L116: All charges | M116: Net Gain / Loss % | N116: Status | O116: Closed Date
A117: 1 | B117: 2021-02-11 | D117: MCX | E117: Buy | F117: 1515 | G117: 1390 | H117: 1645 | I117: 1800-1850 | J117: Profit of Rs.130/- | K117: =H117-F117 -> 130 | L117: =(F117*-0.8)/100 -> -12.12 | M117: =(K117+L117)/F117 -> 7.78% | N117: Successful | O117: 2021-05-20 | R117: H
A118: 2 | B118: 2021-05-11 | D118: RITES | E118: Buy | F118: 237-241 | G118: 218 | I118: 280-290 | J118: Open | R118: H
A119: 3 | B119: 2021-05-12 | D119: KEC | E119: Buy | F119: 383.5 | G119: 348 | H119: 412 | I119: 450-470 | J119: Part Profit of Rs.28.5/- | K119: =H119-F119 -> 28.5 | L119: =(F119*-0.8)/100 -> -3.07 | M119: =(K119+L119)/F119 -> 6.63% | N119: Successful | O119: 2021-05-21 | R119: H
A121: CLBS = Closing Basis *** | F121: Reinitiated $
A122: Dividend adjusted <> | F122: Revised stoploss #
B124: Intrday Call
A125: Sr.no | B125: Date | D125: Company | E125: Rec | F125: Rec Price | G125: Stop Loss | H125: Call Closed At | I125: Target | J125: Remark | K125: Profit / Loss per Share/Lot | L125: Gain / Loss per Lot | M125: Lot | N125: All charges | O125: Net Gain / Loss % | P125: Status | Q125: Closed Date
B138: Investment Idea
A139: Sr.no | B139: Date | D139: Company | E139: Rec | F139: Rec Price | G139: Point of Review | H139: Close Rate | I139: Target | J139: Remark | K139: Profit / Loss per Share | L139: Gain / Loss % | M139: Status | N139: Closed Date
A140: 1 | B140: 2013-11-01 | D140: L&T Finance Holding | E140: Accu | F140: 82.00 | G140: - | H140: 100 | I140: 100.00 | J140: Target Achieved | K140: =H140-F140 -> 18.00 | L140: =K140/F140 -> 21.95% | M140: Successful | N140: 2016-10-14
A141: 2 | B141: 2014-06-04 | D141: Finolex Inds | E141: Buy | F141: 257.00 | G141: - | H141: 300 | I141: 300.00 | J141: Target Achieved | K141: 43.00 | L141: 16.73% | M141: Successful | N141: 2014-07-02
A142: 3 | B142: 2014-07-08 | D142: JK Cement | E142: Buy | F142: 393.00 | G142: - | H142: 468 | I142: 468.00 | J142: Target Achieved | K142: 75.00 | L142: 19.08% | M142: Successful | N142: 2014-08-12
A143: 4 | B143: 2014-08-06 | D143: Finolex Cables | E143: Buy | F143: 205.00 | G143: - | H143: 275 | I143: 250.00 | J143: Target Achieved | K143: 70.00 | L143: 34.15% | M143: Successful | N143: 2014-11-19
A144: 5 | B144: 2014-09-04 | D144: Exide Inds | E144: Buy | F144: 162.00 | G144: - | H144: 190 | I144: 190.00 | J144: Target Achieved | K144: 28.00 | L144: 17.28% | M144: Successful | N144: 2015-01-02
A145: 6 | B145: 2014-09-04 | D145: Deepak Nitrite | E145: Buy | F145: 75.00 | G145: - | H145: 91.5 | I145: 95-100 | J145: Profit of Rs.16.50/- | K145: 16.50 | L145: 22.00% | M145: Successful | N145: 2014-11-11
A146: 7 | B146: 2014-10-01 | D146: Mercks | E146: Buy | F146: 850.00 | G146: - | H146: 982.5 | I146: 1050.00 | J146: Profit of Rs.132.50/- | K146: 132.50 | L146: 15.59% | M146: Successful | N146: 2015-02-04
A147: 8 | B147: 2014-10-01 | D147: Grindwell Norton | E147: Buy | F147: 475.00 | G147: - | H147: 515 | I147: 600.00 | J147: Profit of Rs.40/- | K147: 40.00 | L147: 8.42% | M147: Successful | N147: 2014-10-27
A148: 9 | B148: 2014-10-01 | D148: Snowman Logistics | E148: Buy | F148: 86.00 | G148: - | H148: 99 | I148: 140.00 | J148: Profit of Rs.13.00/- | K148: 13.00 | L148: 15.12% | M148: Successful | N148: 2014-10-27
A149: 10 | B149: 2014-10-14 | D149: Birla Corp | E149: Buy | F149: 496.60 | G149: - | H149: 621 | I149: 580.00 | J149: Target Achieved | K149: 124.40 | L149: 25.05% | M149: Successful | N149: 2016-08-23
A150: 11 | B150: 2014-10-14 | D150: Ultratech Cem | E150: Buy | F150: 2481.90 | G150: - | H150: 2840 | I150: 2870.00 | J150: Profit of Rs.358.10/- | K150: 358.10 | L150: 14.43% | M150: Successful | N150: 2015-01-13
A151: 12 | B151: 2014-10-16 | D151: Sintex Inds | E151: Buy | F151: 84.50 | G151: - | H151: 93 | I151: 110.00 | J151: Profit of Rs.8.50/- | K151: 8.50 | L151: 10.06% | M151: Successful | N151: 2014-10-27
A152: 13 | B152: 2014-10-16 | D152: HSIL | E152: Buy | F152: 401.00 | G152: - | H152: 428 | I152: 450.00 | J152: Profit of Rs.27.00/- | K152: 27.00 | L152: 6.73% | M152: Successful | N152: 2015-01-16
A153: 14 | B153: 2014-10-16 | D153: Eveready Inds | E153: Buy | F153: 101.00 | G153: - | H153: 112 | I153: 120.00 | J153: Profit of Rs.11.00/- | K153: 11.00 | L153: 10.89% | M153: Successful | N153: 2014-10-27
A154: 15 | B154: 2014-11-11 | D154: Pennar Inds | E154: Buy | F154: 59.00 | G154: - | H154: 76 | I154: 76.00 | J154: Target Achieved | K154: 17.00 | L154: 28.81% | M154: Successful | N154: 2017-10-24
A155: 16 | B155: 2014-11-11 | D155: Snowman Logistics | E155: Buy | F155: 99.00 | G155: - | H155: 120 | I155: 120.00 | J155: Profit of Rs.21/- | K155: 21.00 | L155: 21.21% | M155: Successful | N155: 2014-11-17
A156: 17 | B156: 2014-11-13 | D156: Dharamsi Morarji Chem | E156: Buy | F156: 22.00 | G156: - | H156: 33.55 | I156: 32.00 | J156: Profit of Rs 11.55/- | K156: 11.55 | L156: 52.50% | M156: Successful | N156: 2015-07-03
A157: 18 | B157: 2014-12-03 | D157: Tatachem | E157: Buy | F157: 440.00 | G157: - | H157: 520 | I157: 520.00 | J157: Profit of Rs 80.00/- | K157: 80.00 | L157: 18.18% | M157: Successful | N157: 2015-07-23
A158: 19 | B158: 2014-12-03 | D158: Advanta | E158: Buy | F158: 360.00 | G158: - | H158: 427 | I158: 425.00 | J158: Profit of Rs.67.00/- | K158: 67.00 | L158: 18.61% | M158: Successful | N158: 2015-02-23
A159: 20 | B159: 2015-01-08 | D159: GDL | E159: Buy | F159: 360.00 | G159: - | H159: 455 | I159: 420.00 | J159: Profit of Rs.95.00/- | K159: 95.00 | L159: 26.39% | M159: Successful | N159: 2015-01-20
A160: 21 | B160: 2015-01-08 | D160: NRB Bearing | E160: Buy | F160: 130.00 | H160: 175.5 | I160: 165.00 | J160: Profit of Rs 45.50/- | K160: 45.50 | L160: 35.00% | M160: Successful | N160: 2017-12-19
A161: 22 | B161: 2015-02-05 | D161: GSFC | E161: Accu | F161: 98.00 | H161: 120 | I161: 120.00 | J161: Target Achieved | K161: 22.00 | L161: 22.45% | M161: Successful | N161: 2017-01-18
A162: 23 | B162: 2015-02-05 | D162: Sundrmfast | E162: Accu | F162: 196.00 | H162: 262 | I162: 255.00 | J162: Target Achieved | K162: 66.00 | L162: 33.67% | M162: Successful | N162: 2016-08-17
A163: 24 | B163: 2015-03-04 | D163: GPPL | E163: Accu | F163: 235 | H163: 77.00 | I163: 280-285 | J163: Loss of Rs.158/- | K163: -158.00 | L163: -67.23% | M163: Unsuccessful | N163: 2019-02-26
A164: 25 | B164: 2015-03-04 | D164: ORIENTCEM | E164: Accu | F164: 185.00 | H164: 224 | I164: 220-225 | J164: Target Achieved | K164: 39.00 | L164: 21.08% | M164: Successful | N164: 2016-10-04
A165: 26 | B165: 2015-03-27 | D165: PFS | E165: Accu | F165: 49.5 | H165: 15.85 | I165: 67.00 | J165: Loss of Rs.33.65/- | K165: -33.65 | L165: -68% | M165: Unsuccessful | N165: 2019-06-11
A166: 27 | B166: 2015-03-30 | D166: Walchandnagar Ind Ltd | E166: Accu | F166: 183.50 | H166: 219 | I166: 218.00 | J166: Profit of Rs.35.50/- | K166: 35.50 | L166: 19.35% | M166: Successful | N166: 2015-04-09
A167: 28 | B167: 2015-04-20 | D167: Kalpataru Power Transmission Ltd | E167: Accu | F167: =(227+237)/2 -> 232.00 | H167: 298 | I167: 298.00 | J167: Target Achieved | K167: 66.00 | L167: 28.45% | M167: Successful | N167: 2017-03-29
A168: 29 | B168: 2015-05-04 | D168: Mastek Ltd | E168: Buy | F168: 385.00 | H168: =212.5+331 -> 543.5 | I168: 510.00 | J168: Profit of Rs 158.50/- | K168: 158.50 | L168: 41.17% | M168: Successful | N168: 2015-08-19
A169: 30 | B169: 2015-05-04 | D169: Suprajit Eng | E169: Buy | F169: 115.50 | H169: 146 | I169: 142.00 | J169: Profit of Rs 30.50/- | K169: 30.50 | L169: 26.41% | M169: Successful | N169: 2015-07-17
A170: 31 | B170: 2015-05-27 | D170: TCI | E170: Buy | F170: 237.50 | H170: 279.5 | I170: 278.00 | J170: Target Achieved | K170: 42.00 | L170: 17.68% | M170: Successful | N170: 2015-08-06
A171: 32 | B171: 2015-06-19 | D171: HSIL | E171: Accu | F171: 340.00 | H171: 448 | I171: 448.00 | J171: Target Achieved | K171: 108.00 | L171: 31.76% | M171: Successful | N171: 2017-10-10
A172: 33 | B172: 2015-07-06 | D172: Capital First | E172: Accu | F172: 390.00 | H172: 460 | I172: 460.00 | J172: Target Achieved | K172: =H172-F172 -> 70.00 | L172: =K172/F172 -> 17.95% | M172: Successful | N172: 2016-04-18
A173: 34 | B173: 2015-07-10 | D173: Dolphin OffShore | E173: Accu | F173: 122.5 | H173: 61.00 | I173: 172.00 | J173: Loss of Rs.61.50/- | K173: -61.50 | L173: -50.20% | M173: Unsuccessful | N173: 2018-08-21
A174: 35 | B174: 2015-08-03 | D174: Allcargo logistics | E174: Accu | F174: 297.50 | H174: 350 | I174: 360.00 | J174: Profit of Rs 52.50/- | K174: 52.50 | L174: 17.65% | M174: Successful | N174: 2015-08-16
A175: 36 | B175: 2015-08-03 | D175: Camline Fine | E175: Accu | F175: 115.50 | H175: 149 | I175: 140.00 | J175: Profit of Rs 33.50/- | K175: 33.50 | L175: 29.00% | M175: Successful | N175: 2017-01-05
A176: 37 | B176: 2015-09-04 | D176: TCI | E176: Accu | F176: 226.00 | H176: 292 | I176: 292.00 | J176: Target Achieved | K176: 66.00 | L176: 29.20% | M176: Successful | N176: 2015-10-09
A177: 38 | B177: 2015-09-07 | D177: Kalpataru Power Transmission Ltd | E177: Accu | F177: 232.50 | H177: 312.5 | I177: 310.00 | J177: Target Achieved | K177: 80.00 | L177: 34.41% | M177: Successful | N177: 2017-03-29
A178: 39 | B178: 2015-09-21 | D178: LLOYD ELECTRIC & ENG LTD | E178: Accu | F178: 196.50 | H178: 238 | I178: 238.00 | J178: Target Achieved | K178: 41.50 | L178: 21.12% | M178: Successful | N178: 2015-10-14
A179: 40 | B179: 2015-09-24 | D179: L&T Finance Holding | E179: Accu | F179: 65.00 | H179: 82 | I179: 82.00 | J179: Target Achieved | K179: 17.00 | L179: 26.15% | M179: Successful | N179: 2016-07-27
A180: 41 | B180: 2015-10-14 | D180: KEC International ltd | E180: Accu | F180: 144.00 | H180: 182.5 | I180: 181.00 | J180: Target Achieved | K180: 38.50 | L180: 26.74% | M180: Successful | N180: 2017-03-23
A181: 42 | B181: 2015-10-14 | D181: Gruh Finance | E181: Accu | F181: 264.00 | H181: 311 | I181: 311.00 | J181: Target Achieved | K181: 47.00 | L181: 17.80% | M181: Successful | N181: 2016-08-22
A182: 43 | B182: 2015-11-10 | D182: Pidilitind | E182: Buy | F182: 549.50 | H182: 630 | I182: 630.00 | J182: Target Achieved | K182: 80.50 | L182: 14.65% | M182: Successful | N182: 2016-02-19
A183: 44 | B183: 2015-12-04 | D183: Zensar Technology | E183: Accu | F183: 1027.50 | H183: 1315 | I183: 1250.00 | J183: Target Achieved | K183: 287.50 | L183: 27.98% | M183: Successful | N183: 2018-05-24
A184: 45 | B184: 2015-12-29 | D184: Vinati Organics Ltd | E184: Accu | F184: 465.00 | H184: 540 | I184: 540.00 | J184: Target Achieved | K184: 75.00 | L184: 16.13% | M184: Successful | N184: 2016-06-09
A185: 46 | B185: 2016-01-11 | D185: GSFC | E185: Buy | F185: 81.00 | H185: 110 | I185: 110.00 | J185: Target Achieved | K185: 29.00 | L185: 35.80% | M185: Successful | N185: 2017-01-10
A186: 47 | B186: 2016-01-13 | D186: SSWL | E186: Buy | F186: 417.50 | H186: 547 | I186: 535.00 | J186: Target Achieved | K186: 129.50 | L186: 31.02% | M186: Successful | N186: 2016-07-27
A187: 48 | B187: 2016-02-08 | D187: Persistent System Ltd | E187: Accu | F187: 650.00 | H187: 800 | I187: 800.00 | J187: Target Achieved | K187: 150.00 | L187: 23.08% | M187: Successful | N187: 2018-02-23
A188: 49 | B188: 2016-03-04 | D188: UPL | E188: Accu | F188: 437.50 | H188: 504.5 | I188: 522.00 | J188: Profit of Rs.67/- | K188: 67.00 | L188: 15.31% | M188: Successful | N188: 2016-04-20
A189: 50 | B189: 2016-03-09 | D189: Ashoka Buildcon Ltd | E189: Accu | F189: 189.50 | H189: 218 | I189: 218.00 | J189: Target Achieved | K189: 28.50 | L189: 15.04% | M189: Successful | N189: 2017-10-26
A190: 51 | B190: 2016-04-11 | D190: PTC INDIA FIN SERV LTD | E190: Accu | F190: 36.5 | H190: 15.85 | I190: 60.00 | J190: Loss of Rs.20.65/- | K190: -20.65 | L190: -56.58% | M190: Unsuccessful | N190: 2019-06-11
A191: 52 | B191: 2016-04-12 | D191: CAMLINFINE $ | E191: Accu | F191: 93.00 | H191: 149 | I191: 140.00 | J191: Profit of Rs 56/- | K191: 56.00 | L191: 60.22% | M191: Successful | N191: 2017-01-05
A192: 53 | B192: 2016-04-12 | D192: Greaves Cotton Ltd. | E192: Accu | F192: 130.00 | H192: 150 | I192: 150-155 | J192: Target Achieved | K192: 20.00 | L192: 15.38% | M192: Successful | N192: 2016-07-13
A193: 54 | B193: 2016-04-13 | D193: DHFL | E193: Accu | F193: 196.00 | H193: 299 | I193: 299.00 | J193: Target Achieved | K193: 103.00 | L193: 52.55% | M193: Successful | N193: 2016-09-07
A194: 55 | B194: 2016-04-13 | D194: Magma | E194: Accu | F194: 88.00 | H194: 103 | I194: 103.00 | J194: Target Achieved | K194: 15.00 | L194: 17.05% | M194: Successful | N194: 2016-06-09
A195: 56 | B195: 2016-05-02 | D195: KEC International ltd $ | E195: Accu | F195: 127.50 | H195: 148 | I195: 148-150 | J195: Target Achieved | K195: =H195-F195 -> 20.50 | L195: =K195/F195 -> 16.08% | M195: Successful | N195: 2016-07-13
A196: 57 | B196: 2016-05-03 | D196: Mindtree | E196: Accu | F196: 675.00 | H196: 815 | I196: 790-800 | J196: Target Achieved | K196: =H196-F196 -> 140.00 | L196: =K196/F196 -> 20.74% | M196: Successful | N196: 2018-02-23
A197: 58 | B197: 2016-06-01 | D197: Atulauto | E197: Accu | F197: 500 | H197: 232.50 | I197: 565-570 | J197: Loss of Rs.267.50 /- | K197: =H197-F197 -> -267.50 | L197: =K197/F197 -> -53.50% | M197: Unsuccessful | N197: 2019-09-27
A198: 59 | B198: 2016-06-06 | D198: TRITURBINE | E198: Accu | F198: 110.00 | H198: 126.5 | I198: 125.00 | J198: Profit of Rs.16.50/- | K198: =H198-F198 -> 16.50 | L198: =K198/F198 -> 15.00% | M198: Successful | N198: 2016-07-01
A199: 60 | B199: 2016-06-17 | D199: Pennar Industries Ltd | E199: Accu | F199: 44.00 | H199: 69.5 | I199: 69.50 | J199: Profit of Rs.25.50/- | K199: =H199-F199 -> 25.50 | L199: =K199/F199 -> 57.95% | M199: Successful | N199: 2017-08-30
A200: 61 | B200: 2016-06-28 | D200: EVEREADY | E200: Accu | F200: 262.50 | H200: 340 | I200: 333.00 | J200: Profit of Rs.77.50/- | K200: 77.50 | L200: 29.52% | M200: Successful | N200: 2017-10-09
A201: 62 | B201: 2016-06-28 | D201: FIEMIND | E201: Accu | F201: 840.00 | H201: 1230 | I201: 1230.00 | J201: Target Achieved | K201: 390.00 | L201: 46.43% | M201: Successful | N201: 2016-10-06
A202: 63 | B202: 2016-07-05 | D202: Bajaj Corp Ltd | E202: Accu | F202: 395 | H202: =(468.5+342.5)/2 -> 405.50 | I202: 510.00 | J202: Profit of Rs.10.50/- | K202: =H202-F202 -> 10.50 | L202: =K202/F202 -> 3% | M202: Neutral | N202: 2019-05-21
A203: 64 | B203: 2016-08-02 | D203: GPPL $ | E203: Buy | F203: =169.5-12.8 -> 156.7 | H203: 77.00 | I203: 198-200 | J203: Loss of Rs.79.7/- | K203: -79.70 | L203: -50.86% | M203: Unsuccessful | N203: 2019-02-26
A204: 65 | B204: 2016-08-04 | D204: WONDERLA HOLIDAYS LTD | E204: Accu | F204: 400 | H204: 305.00 | I204: 475.00 | J204: Loss of Rs.95/- | K204: -95.00 | L204: -23.75% | M204: Unsuccessful | N204: 2019-05-21
A205: 66 | B205: 2016-08-11 | D205: CAMLINFINE | E205: Accu | F205: 86.50 | H205: 130 | I205: 130.00 | J205: Profit of Rs.43.50/- | K205: 43.50 | L205: 50.29% | M205: Successful | N205: 2017-12-22
A206: 67 | B206: 2016-08-18 | D206: GRANULES | E206: Accu | F206: 133.5 | H206: 126.50 | I206: 178.00 | J206: Exit | K206: -7.00 | L206: -5.24% | M206: Unsuccessful | N206: 2016-09-02
A207: 68 | B207: 2016-08-31 | D207: VA TECH WABAG | E207: Accu | F207: 560.00 | H207: 725 | I207: 725.00 | J207: Target Achieved | K207: 165.00 | L207: 29.46% | M207: Successful | N207: 2016-03-27
A208: 69 | B208: 2016-09-01 | D208: SKIPPER LIMITED | E208: Accu | F208: 160.50 | H208: 210 | I208: 210.00 | J208: Target Achieved | K208: 49.50 | L208: 30.84% | M208: Successful | N208: 2017-05-16
A209: 70 | B209: 2016-10-03 | D209: IFBIND | E209: Accu | F209: 430.00 | H209: 596 | I209: 575.00 | J209: Profit of Rs.166/- | K209: 166.00 | L209: 38.60% | M209: Successful | N209: 2017-02-03
A210: 71 | B210: 2016-10-14 | D210: ASIANTILES | E210: Accu | F210: 280.00 | H210: 345 | I210: 345.00 | J210: Target Achieved | K210: =H210-F210 -> 65.00 | L210: =K210/F210 -> 23.21% | M210: Successful | N210: 2017-03-20
A211: 72 | B211: 2016-10-14 | D211: DEEPIND | E211: Accu | F211: 245.00 | H211: 325.5 | I211: 330.00 | J211: Profit of Rs.80.5/- | K211: 80.50 | L211: =K211/F211 -> 32.86% | M211: Successful | N211: 2017-02-03
A212: 73 | B212: 2016-10-17 | D212: DCBBANK | E212: Accu | F212: 125.00 | H212: 160 | I212: 160.00 | J212: Target Achieved | K212: 35.00 | L212: 28.00% | M212: Successful | N212: 2017-03-09
A213: 74 | B213: 2016-10-17 | D213: ORIENTREF | E213: Accu | F213: 114.00 | H213: 145 | I213: 145.00 | J213: Target Achieved | K213: 31.00 | L213: =K213/F213 -> 27.19% | M213: Successful | N213: 2017-05-04
A214: 75 | B214: 2016-10-17 | D214: GANECOS | E214: Accu | F214: 212.00 | H214: 280 | I214: 276.00 | J214: Profit of Rs.68/- | K214: 68.00 | L214: =K214/F214 -> 32.08% | M214: Successful | N214: 2017-05-03
A215: 76 | B215: 2016-11-04 | D215: NBCC | E215: Accu | F215: 155.00 | H215: 210 | I215: 210.00 | J215: Profit of Rs.55/- | K215: 55.00 | L215: =K215/F215 -> 35.48% | M215: Successful | N215: 2017-07-28
A216: 77 | B216: 2016-12-06 | D216: PRECAM | E216: Accu | F216: 150.5 | H216: 72.50 | I216: 174.00 | J216: Loss of Rs.78/- | K216: -78.00 | L216: -51.83% | M216: Unsuccessful | N216: 2018-08-21
A217: 78 | B217: 2016-12-08 | D217: INFRATEL | E217: Accu | F217: 380.00 | H217: 478 | I217: 468.00 | J217: Target Achieved | K217: =H217-F217 -> 98.00 | L217: =K217/F217 -> 25.79% | M217: Successful | N217: 2017-10-17
A218: 79 | B218: 2016-12-30 | D218: GODREJPROP | E218: Accu | F218: 305.00 | H218: 375 | I218: 375.00 | J218: Target Achieved | K218: =H218-F218 -> 70.00 | L218: =K218/F218 -> 22.95% | M218: Successful | N218: 2017-02-02
A219: 80 | B219: 2017-01-04 | D219: DEEPAKNTR | E219: Accu | F219: 99.50 | H219: 158 | I219: 158.00 | J219: Target Achieved | K219: =H219-F219 -> 58.50 | L219: =K219/F219 -> 58.79% | M219: Successful | N219: 2017-06-12
A220: 81 | B220: 2017-01-04 | D220: DEEPAKNTR | E220: Accu | F220: 99.50 | H220: 158 | I220: 158.00 | J220: Target Achieved | K220: 58.50 | L220: 58.79% | M220: Successful | N220: 2017-06-12
A221: 82 | B221: 2017-02-20 | D221: RECLTD | E221: Accu | F221: 140.50 | H221: 220 | I221: 220.00 | J221: Target Achieved | K221: =H221-F221 -> 79.50 | L221: =K221/F221 -> 56.58% | M221: Successful | N221: 2017-05-09
A222: 83 | B222: 2017-02-20 | D222: SUBROS | E222: Accu | F222: 202.50 | H222: 234 | I222: 234.00 | J222: Target Achieved | K222: 31.50 | L222: 15.56% | M222: Successful | N222: 2017-04-11
A223: 84 | B223: 2017-03-24 | D223: VRLLOG | E223: Accu | F223: 300.50 | H223: 417.5 | I223: 420.00 | J223: Profit of Rs.117/- | K223: =H223-F223 -> 117.00 | L223: =K223/F223 -> 38.94% | M223: Successful | N223: 2017-12-01
A224: 85 | B224: 2017-03-24 | D224: FIEMIND | E224: Accu | F224: 850.00 | H224: 1042.5 | I224: 1023.00 | J224: Profit of Rs 192.50/- | K224: 192.50 | L224: 22.65% | M224: Successful | N224: 2017-04-05
A225: 86 | B225: 2017-04-05 | D225: RATNAMANI | E225: Accu | F225: 785.00 | H225: 930 | I225: 920.00 | J225: Profit of Rs.145/- | K225: =H225-F225 -> 145.00 | L225: =K225/F225 -> 18.47% | M225: Successful | N225: 2017-08-29
A226: 87 | B226: 2017-04-06 | D226: ZEEMEDIA | E226: Accu | F226: 40 | H226: 13.10 | I226: 60.00 | J226: Loss of Rs.26.9/- | K226: -26.90 | L226: -67.25% | M226: Unsuccessful | N226: 2018-02-07
A227: 88 | B227: 2017-04-12 | D227: DABUR | E227: Accu | F227: 289.50 | H227: 354 | I227: 360.00 | J227: Profit of Rs.64.5/- | K227: =H227-F227 -> 64.50 | L227: =K227/F227 -> 22.28% | M227: Successful | N227: 2017-11-01
A228: 89 | B228: 2017-04-20 | D228: KPRMILL | E228: Accu | F228: 700.00 | H228: 840 | I228: 840.00 | J228: Profit of Rs.140/- | K228: 140.00 | L228: 20.00% | M228: Successful | N228: 2017-06-07
A229: 90 | B229: 2017-06-01 | D229: ESSELPACK | E229: Accu | F229: 130.00 | H229: 144.25 | I229: 170.00 | J229: Profit of Rs.14.25/- | K229: 14.25 | L229: 10.96% | M229: Successful | N229: 2019-07-29
A230: 91 | B230: 2017-06-15 | D230: KEI | E230: Accu | F230: 214.50 | H230: 262 | I230: 262.00 | J230: Profit of Rs.47.5/- | K230: 47.50 | L230: 22.14% | M230: Successful | N230: 2017-08-30
A231: 92 | B231: 2017-07-17 | D231: MAYURUNIQ | E231: Accu | F231: 370.00 | H231: 447.5 | I231: 450.00 | J231: Target Achieved | K231: 77.50 | L231: 20.95% | M231: Successful | N231: 2017-10-27
A232: 93 | B232: 2017-07-27 | D232: RAMCOCEM | E232: Accu | F232: 657.50 | H232: 825 | I232: 820.00 | J232: Target Achieved | K232: 167.50 | L232: 25.48% | M232: Successful | N232: 2017-12-21
A233: 94 | B233: 2017-08-17 | D233: FINPIPE | E233: Accu | F233: 605.00 | H233: 750 | I233: 750.00 | J233: Profit of Rs.145/- | K233: 145.00 | L233: 23.97% | M233: Successful | N233: 2017-10-19
... 72 more rows
